Workbook

Sheet Welcome
C3: Enhanced Interchange Safety Analysis Tool
G6: Build 06.10
B7: FOREWORD
B8: This software can be used to evaluate the relationship between various highway design configurations and the expected average crash frequency. The profession's understanding of the influence of geometric design and traffic control features on safety is an evolving process. As additional information becomes available, this software will be updated to include the latest findings.
B12: The "Introduction" worksheet provides useful information about this software. This information should be read prior to first use of the software. The Introduction worksheet can be selected from the tabs at the bottom of the screen. After reading the Introduction, the other worksheets can be used to evaluate a freeway facility.
B16: This software is intended for use with the document identified below. The analyst is encouraged to read this document so that he or she will have an understanding of how best to use the software and interpret its output.
B19: Bonneson, J., M. Pratt, S. Geedipally, D. Lord, T. Neuman, and J. Moller. Enhanced Interchange Safety Analysis Tool: User Manual. Texas Transportation Institute, Texas A&M University, College Station, Texas, July 2013.
B22: ACKNOWLEDGMENT OF SPONSORSHIP
B23: This work was sponsored by the American Association of State Highway and Transportation Officials (AASHTO), in cooperation with the Federal Highway Administration, and was conducted in the National Cooperative Highway Research Program (NCHRP), which is administered by the Transportation Research Board of the National Academies.
B27: DISCLAIMER
B28: This material represents the computational engine implementation of the freeway and interchange methodologies developed for the second edition of the Highway Safety Manual (HSM).
B31: This computational engine is offered as is, without warranty or promise of support of any kind either expressed or implied. Under no circumstance will the National Academy of Sciences or the Transportation Research Board (TRB) be liable for any loss or damage caused by the installation or use of this product. The National Academy of Sciences, TRB, and the TRB National Cooperative Highway Research Program (NCHRP) make no representation or warranty of any kind, expressed or implied, in fact or in law, including without limitations the warranty of merchantability or the warranty of fitness for a particular purpose, and shall not in any case be liable for any consequential or special damages.
B38: This computational engine is subject to change without notice and does not represent a commitment on the part of the National Academy of Sciences, the TRB Committee on Highway Safety Performance, TRB, or the NCHRP to notify any person of such revisions.
B42: COPYRIGHT © 2011

Sheet Introduction
C3: INTRODUCTION
B6: PREFACE
B7: The Enhanced Interchange Safety Analysis Tool (ISATe) provides information about the relationship between geometric design features and safety. It is based on research that quantified the relationship between various design elements (e.g., lane width) or design components (e.g., left-turn bay) and average crash frequency. The information provided in ISATe is intended to help designers make informed judgments about the safety performance of design alternatives.
B12: ISATe does not define design controls and does not represent a design requirement. It is not a substitute for engineering judgment. Further, it does not represent a legal requirement for roadway design.
B15: As discussed in the Highway Safety Manual, analysts should be aware that variability in crash data is so large that crash counts averaged over only a few years may not reveal telling information about the true average crash frequency at a given site. This large variability, combined with the subtle influence that most geometric features have on safety, can make it difficult to observe the safety effect of a change in geometry in the year or two following the change. In many cases, the change must be implemented at many sites and monitored for several years before its true effect on safety can be detected using crash data.
B21: EVALUATION SCOPE
B22: ISATe can be used to evaluate the following basic freeway and interchange components:
B24: ● Freeway sections (with or without speed-change lanes).
B25: ● Ramps or collector-distributor (C-D) roads.
B26: ● Crossroad ramp terminals.
B28: It can also be used to evaluate combinations of components, as may exist along a freeway section or in the vicinity of an interchange. Examples include:
B31: ● A freeway section comprised of several consecutive freeway segments.
B32: ● A freeway section within an interchange area with one or more freeway speed-change lanes.
B33: ● An interchange ramp comprised of one or more segments.
B34: ● An interchange consisting of one or more ramps and related ramp terminals.
B36: ISATe can be used to evaluate freeways and interchanges in urban and rural areas. It cannot be used to evaluate crossroad segments at an interchange. If the crossroad needs to be evaluated, then one of the following Part C methods in the Highway Safety Manual may be used for this purpose (as determined by the area type and crossroad cross section):
B40: ● Chapter 10 - Predictive Method for Rural Two-Lane Roads.
B41: ● Chapter 11 - Predictive Method for Rural Multilane Highways.
B42: ● Chapter 12 - Predictive Method for Urban and Suburban Arterials.
B44: WORKSHEET SELECTION
B45: ISATe includes the following worksheets:
B47: ● Welcome | E47: Includes a foreword, acknowledgements, and disclaimer.
B48: ● Introduction | E48: Brief overview of ISATe.
B49: ● Main | E49: Input data to describe evaluation and start calculations.
B50: ● Input Freeway Segments | E50: Input data describing freeway segments and speed-change lanes.
B51: ● Input Ramp Segments | E51: Input data describing ramp and C-D road segments.
B52: ● Input Ramp Terminals | E52: Input data describing crossroad ramp terminals.
B53: ● Output Summary | E53: Summary of analysis results.
B54: ● Output Freeway Segments | E54: Detailed listing of analysis results for freeway segments and speed-change lanes.
B55: ● Output Ramp Segments | E55: Detailed listing of analysis results for ramp and C-D road segments.
B56: ● Output Ramp Terminals | E56: Detailed listing of analysis results for crossroad ramp terminals.
B57: ● Calibration Factors | E57: Calibration factors for predictive models and crash type distributions.
B59: >>> Always proceed to the Main worksheet to start the evaluation process. <<<
B61: USER'S GUIDE
B62: Each spreadsheet is designed in a consistent manner and their use is similar. The cells with a blue background are for user input. Most of the other cells are locked to prevent inadvertent changes to cell contents. A sample portion of the Main worksheet and the Input Freeway Segments worksheet is shown below.
B66: Main Worksheet
D81: Place cursor over the red corner to obtain | I81: Drop-down list. Click on grey square
D82: a pop-up message with useful information. | I82: to show list. Click on input choice.
B84: General Information
B85: The analyst can enter any descriptive information about the location being analyzed. Use the blue cells to enter this data.
B87: Crash Data Description
B88: Indicate whether crash data will be input. If input, these data will provide a more reliable estimate of the expected crash frequency. The crash data can be provided for each site, or for the collective set of sites (i.e., for the entire project). Of these two options, providing crash data for each site will provide a more reliable estimate of the expected crash frequency. The analyst can consult Appendix B of the ISATe User Manual for more information on this topic.
B93: Study Period and Crash Period
B94: All evaluations must have a specified study period. This period represents the consecutive years for which an estimate of the crash frequency is desired. It can represent past years, the current year, or some future years.
B97: The Study Period is defined by the "First year of analysis" and the "Last year of analysis." Input data (i.e., geometric design and traffic data) will need to be provided to describe conditions during the study period.
B100: The Crash Period is optional. It is used if crash data are provided.
B102: The Crash Period is defined by the "First year of crash data" and the "Last year of crash data." Input data (i.e., geometric design and traffic data) will need to be provided to describe conditions during the crash period.
B105: Note that if crash data are provided, then input data are needed for BOTH the study period and the crash period. These periods may or may not represent the same time period. Typically, the crash period is for some number of past years and the study period is for some number of future years.
B109: Input Freeway Segment Worksheet | I109: Click on a button to execute macro code.
J125: Drop-down list. Click on grey square
J126: to show list. Click on input choice.
B128: Data entry in this worksheet (and the Input Ramp Segments and Input Ramp Terminals worksheets) should proceed from top to bottom. That is, it should proceed in the direction of increasing row number. Worksheet macro code monitors each input value and adjusts the color of the cells in the rows below (i.e., it identifies the appropriate input cells by changing their background color to blue and eliminates the unneeded input cells by changing their background color to white).
B133: Basic Roadway Data
B134: Enter a value, or make a selection in a drop-down list, for each input variable. Use the blue cells to enter this data. If the value entered is not within range, then a message is displayed indicating "Out of Range!". Re-enter a value that is within the indicated range.
B138: Alignment Data
B139: Data entry is the same as for Basic Roadway Data. If an input value suggests the need for additional input, then additional cells in the same column may be converted to blue and require an input value. Similarly, if an input value suggests that some input cells are not relevant, then these cells will be converted to white. Only data in blue cells will be used in the analysis. Data must be provided for all blue cells (unless stated otherwise).
B144: In the "Input Worksheet for Freeway Segments" graphic shown above, the row labeled "Horizontal curve in segment?" shows "No" for segment 1. This response indicates that segment 1 does not have a curve on it during the crash period or the study period. As a result, the rows labeled "Curve radius", "Length of curve", and "Length of curve in segment" have cells that are white (i.e., no curve so no curve data needed). In contrast, segment 2 has a curve on on both roadbeds of the divided freeway so "Both Dir." is input. As a result, the subsequent three cells are converted to blue and curve data are input. Note that the curve radius is 2,500 ft for the crash period and 3,500 ft for the study period. In this instance, the crash data correspond to a period of time where the curve radius was 2,500 ft but the agency is investigating the safety benefit of curve flattening on this segment.
B152: Traffic Data
B171: AADT volume must be provided for one year in either the crash period or study period. Desirably, AADT volume is provided for each year of interest. The cells associated with the crash period and the study period have a blue background.
B174: In the graphic above, the crash period is for years 2005 to 2007 and the study period is for years 2013 to 2015. If the AADT volume is unknown for one or more years, then the corresponding blue cell is left blank by the analyst. The missing AADT volumes are estimated using the rules described in Section C.5 in Part C of the Highway Safety Manual.
B178: Output Freeway Segments
B179: The output worksheet is divided into several sections. The first section lists the computed CMF values. The next section lists the estimated crash frequency, categorized by fatal-and-injury and property-damage-only crash severity categories. The next section lists the crash severity distribution. The next section lists some intermediate calculations and the last section lists the AADT values used in the calculations (including those values that were estimated because of missing AADT data).
B184: Crash Modification Factors
B201: This section summarizes the CMFs computed using the equations described in the Project 17-45 Final Report. Each CMF is associated with one geometric design or traffic control feature. Its value is 1.0 when the feature’s characteristics are the same as those used to define the base condition for the predictive model. The CMF value will be less than 1.0 if (1) the characteristics of associated feature are different from those of the base condition and (2) the sites that have this variation of the feature experience fewer crashes than otherwise similar sites but with feature characteristics consistent with base conditions. The Highway Safety Manual provides additional discussion of CMFs.
B208: Fatal-and-Injury Crash Frequency
B227: The expected average crash frequency for the freeway segment equals the sum of the expected multiple-vehicle-, single-vehicle-, ramp-entrance-, and ramp-exit-related crashes. It is an estimate of the long-run frequency of crashes for the segment. The expected fatal-and-injury crash frequency and the expected property-damage-only crash frequency are separately computed and summarized in the output worksheet.
B232: Crash Severity Distribution
B248: This section provides the severity distribution of crashes for each segment. The distribution for all segments combined is provided in the Output Summary worksheet.
B251: Calibration Factors
B252: Crash Frequency Models
B266: This section of the spreadsheet is intended for analysts that desire to adjust the predictive models to better match conditions in their jurisdiction. The calibration factors and default model coefficients provided (in yellow shaded cells) are representative of several states. The calibration factors should be used to calibrate the models to local conditions. Changes to the model coefficients should be made with care, and based on sound statistical modeling. Guidance for quantifying local calibration factors is provided in Appendix A of the ISATe User Manual.
B272: Crash Distribution
B288: Default values are provided for the distribution of crashes by area type, crash type, and crash type category. The values shown are representative of roadways on the state highway system in several states. Other values can be used, if desired, to tailor the estimates to local conditions.
B292: FREEWAY SPEED-CHANGE LANE LOCATION
B314: The entrance ramp speed-change lane is considered to coincide with the ramp entrance length (shown in the graphic above) and include all lanes associated with the freeway and ramp for a common travel direction. Similarly, the exit ramp speed-change lane is considered to coincide with the ramp exit length (shown above) and include all lanes associated with the freeway and ramp for a common travel direction.
B319: By applying the aforementioned definition, a speed-change-related crash is identified as a crash that is located between the taper point and the gore point and on the same side of the roadway as the ramp. This definition is likely to identify all speed-change-related crashes, but it may also identify some freeway crashes that are not associated with the speed-change lane. For this reason, some factors that influence crash frequency on freeway segments (e.g., lane width) may also influence crashes in the speed-change lane.
B325: Note that a typical weaving section does not have a speed-change lane at either of its ends.
B327: WEAVING LENGTH AND TYPE
B328: The weaving section geometry has some influence on safety. Three types are defined in the 2000 Highway Capacity Manual. Type B has unique features and is specifically addressed in the safety predictive method. Typical Type B weaving sections are shown in the graphic to the right.
B334: The length of the weaving section has an important influence on the operation and safety of the freeway segment. This influence relates to the degree to which the weaving activity is concentrated along the freeway. The convention used to measure this length is shown in the graphic below.
B347: The length of the weaving section on a collector-distributor road is measured using the same convention as for freeway weaving sections. The graphic above shows the convention used to measure weaving section length on collector-distributor roads.
B352: RAMP CURVE LOCATION
I354: Curves are located along the ramp or collector-distributor road using a linear referencing system. The beginning of the ramp is designated as ramp-mile 0.0.
I358: The gore point will often be used to define ramp-mile 0.0 for a ramp or C-D road. The gore point is located where the pair of solid white pavement edge markings that separate the ramp from the intersecting roadway are 2.0 ft apart.
I364: For exit ramps and C-D roads that diverge from the freeway (and entrance ramps that diverge from the crossroad using a speed-change lane), ramp-mile 0.0 is located where the gore point projects onto the ramp reference line. The ramp reference line is defined as the right edge of the ramp traveled way.
I371: For entrance ramps that intersect the crossroad, ramp-mile 0.0 is located where the ramp reference line intersects with the near edge of traveled way of the crossroad. The location of the ramp-mile 0.0 is shown in the graphic to the left.
B380: RAMP TERMINALS
B381: Ramp Terminal Configurations
B471: Ramp Terminal Boundaries
B491: The graphic above illustrates two crossroad ramp terminals with the D4 configuration. Each terminal represents a separate site. The two terminals are shown in the context of a diamond interchange. The arrangement shown is intended to illustrate the ramp terminal boundaries used for safety evaluation–it is not necessarily typical ramp terminal geometry.
B495: The free-flow loop ramp associated with the four-quadrant parclos (i.e., the A4 and B4 configurations) is not considered to be part of the nearby ramp terminal. All subsequent discussions where “ramp AADT” is identified for these two configurations are referring to the AADT of the diagonal entrance ramp or the AADT of the diagonal exit ramp. With one exception, the loop ramp of the A4 and B4 configuration is not explicitly addressed by the ramp terminal models. The exception is the right-turn channelization that serves traffic entering the loop ramp at the A4 configuration. It can be part of the ramp terminal design and its associated crashes are addressed by the predictive models.
B502: Number of Lanes for Exit Ramps (nex)
B536: The number of lanes serving the exit ramp (nex) is based on the count of lanes taken at the last point where all exiting movements are joined (i.e., at the channelization gore point if right-turn channelization is provided). All lanes counted need to be fully developed for 100 ft or more upstream from the point at which their respective movement intersects with the crossroad. The lane (or lanes) associated with the loop exit ramp at a B4 terminal configuration are not included in this count. The graphic above illustrates the application of this guidance.
B542: Skew Angle
B561: Skew angle is measured for the exit ramp. At a B4 terminal configuration, the skew angle represents that for the diagonal exit ramp (not the loop exit ramp). Skew angle is the acute angle between the crossroad centerline and a line along the center an imaginary vehicle stopped at the end of the exit ramp (i.e., where it joins the crossroad). The vehicle is centered in the traveled way. If vehicles can exit the ramp as left- or right-turn movements, then use a left-turning vehicle as the vehicle of reference. The skew angle is 0.0 degrees if the two reference lines intersect at 90 degrees.
B567: Median Width and Turn Bay Width
B586: The crossroad median width at an intersection is measured between the near edges of the traveled way associated with the opposing through traffic streams. It includes the width of the left shoulder and any left-turn lanes that are present.
B589: The left-turn bay width is measured from the near edge of the traveled way of the adjacent through lane to the lane marking (or curb face) that delineates the median.

Sheet Main
B3: Enhanced Interchange Safety Analysis Tool | AC3: Freeway | AG3: Ramp | AK3: Ramp
B4: General Information | AC4: Segments | AG4: Segments | AK4: Terminals
B5: Project description: | D5: Example Freeway | AA5: First year: | AC5: =MIN($D7, AC7) -> 2025 | AG5: =MIN($D7, AG7) -> 2025 | AK5: =MIN($D7, AK7) -> 2025
B6: Analyst: | D6: FDOT | F6: Date: | G6: =NOW() -> 2021-04-05T16:57:11.410 | I6: Area type: | K6: Urban | AA6: Last year: | AC6: =MAX($D8,AC8) -> 2045 | AG6: =MAX($D8,AG8) -> 2045 | AK6: =MAX($D8,AK8) -> 2045
B7: First year of analysis: | D7: 2025 | AA7: First crash data year: | AC7: =AD7 -> 2025 | AD7: 2025 | AG7: =AH7 -> 2025 | AH7: 2025 | AK7: =AL7 -> 2025 | AL7: 2025
B8: Last year of analysis: | D8: 2045 | E8: =IF(D8<D7, "Note: must equal or exceed first year of analysis.", IF(D8-MIN(AC5,AG5,AK5)+1>24, "Note: last year must be less than or equal to "&TEXT(MIN(AC5,AG5,AK5)+24-1,"0"),".")) -> . | AA8: Last crash data year: | AC8: =MIN($D$8, AD8, AC7+4,YEAR(NOW())) -> 2021 | AD8: 2045 | AG8: =MIN($D$8, AH8, AG7+4,YEAR(NOW())) -> 2021 | AH8: 2045 | AK8: =MIN($D$8, AL8, AK7+4,YEAR(NOW())) -> 2021 | AL8: 2045
B9: Crash Data Description
B10: Freeway segments | G10: =IF(L11-I11>4, "Upper limit of 5 years of crash data.", ".") -> . | AA10: Freeway Segments | AE10: Ramp Segments | AI10: Ramp Terminals
G11: First year of crash data: | I11: 2015 | J11: Last year of crash data: | L11: 2018 | AA11: No crash data | AC11: No crash data | AE11: No crash data | AG11: No crash data | AI11: No crash data | AK11: No crash data
B12: Ramp segments | G12: =IF(L13-I13>4, "Upper limit of 5 years of crash data.", ".") -> . | AA12: Data for all segments combined | AE12: Data for all segments combined | AI12: Data for all terminals combined
G13: First year of crash data: | I13: 2005 | J13: Last year of crash data: | L13: 2007 | AA13: Data for each individual segment | AE13: Data for each individual segment | AI13: Data for each individual terminal
B14: Ramp terminals | G14: =IF(L15-I15>4, "Upper limit of 5 years of crash data.", ".") -> . | AB14: Data? | AC14: =IF(AC11=AA11, FALSE, TRUE) -> FALSE | AG14: =IF(AG11=AE11, FALSE, TRUE) -> FALSE | AK14: =IF(AK11=AI11, FALSE, TRUE) -> FALSE
G15: First year of crash data: | I15: 2005 | J15: Last year of crash data: | L15: 2007 | AB15: Project? | AC15: =IF(AC11=AA12,TRUE,FALSE) -> FALSE | AG15: =IF(AG11=AE12,TRUE,FALSE) -> FALSE | AK15: =IF(AK11=AI12,TRUE,FALSE) -> FALSE
B18: Program Control
B19: 1. Enter data in the Main, Input Freeway Segments, Input Ramp Segments, Input Ramp Terminals worksheets.
B20: 2. Click Perform Calculations button to start calculation process.
B24: 3. Review results in the Output Summary worksheet. Optionally, click the Print buttons to print the summary worksheets.
B25: 4. Optionally, detailed results can be reviewed in the Output Freeway Segments, Output Ramp Segments, Output Ramp Terminals worksheets.
B29: Warning Messages | D29: See note
B30: Freeway Segments | E30: Ramp Segments | H30: Ramp Terminals

Sheet Input Freeway Segments
E3: Input Worksheet for Freeway Segments
G4: ="Segment "& TEXT(INT((COLUMN()-5)/2),"0") -> Segment 1 | I4: ="Segment "& TEXT(INT((COLUMN()-5)/2),"0") -> Segment 2 | K4: ="Segment "& TEXT(INT((COLUMN()-5)/2),"0") -> Segment 3 | M4: ="Segment "& TEXT(INT((COLUMN()-5)/2),"0") -> Segment 4 | O4: ="Segment "& TEXT(INT((COLUMN()-5)/2),"0") -> Segment 5 | Q4: ="Segment "& TEXT(INT((COLUMN()-5)/2),"0") -> Segment 6 | S4: ="Segment "& TEXT(INT((COLUMN()-5)/2),"0") -> Segment 7 | U4: ="Segment "& TEXT(INT((COLUMN()-5)/2),"0") -> Segment 8 | W4: ="Segment "& TEXT(INT((COLUMN()-5)/2),"0") -> Segment 9 | Y4: ="Segment "& TEXT(INT((COLUMN()-5)/2),"0") -> Segment 10 | AA4: ="Segment "& TEXT(INT((COLUMN()-5)/2),"0") -> Segment 11 | AC4: ="Segment "& TEXT(INT((COLUMN()-5)/2),"0") -> Segment 12 | AE4: ="Segment "& TEXT(INT((COLUMN()-5)/2),"0") -> Segment 13 | AG4: ="Segment "& TEXT(INT((COLUMN()-5)/2),"0") -> Segment 14 | AI4: ="Segment "& TEXT(INT((COLUMN()-5)/2),"0") -> Segment 15 | AK4: ="Segment "& TEXT(INT((COLUMN()-5)/2),"0") -> Segment 16 | AM4: ="Segment "& TEXT(INT((COLUMN()-5)/2),"0") -> Segment 17 | AO4: ="Segment "& TEXT(INT((COLUMN()-5)/2),"0") -> Segment 18 | AQ4: ="Segment "& TEXT(INT((COLUMN()-5)/2),"0") -> Segment 19 | AS4: ="Segment "& TEXT(INT((COLUMN()-5)/2),"0") -> Segment 20 | AV4: =G4 -> Segment 1 | AX4: =I4 -> Segment 2 | AZ4: =K4 -> Segment 3 | BB4: =M4 -> Segment 4 | BD4: =O4 -> Segment 5 | BF4: =Q4 -> Segment 6 | BH4: =S4 -> Segment 7 | BJ4: =U4 -> Segment 8 | BL4: =W4 -> Segment 9 | BN4: =Y4 -> Segment 10 | BP4: =AA4 -> Segment 11 | BR4: =AC4 -> Segment 12 | BT4: =AE4 -> Segment 13 | BV4: =AG4 -> Segment 14 | BX4: =AI4 -> Segment 15 | BZ4: =AK4 -> Segment 16 | CB4: =AM4 -> Segment 17 | CD4: =AO4 -> Segment 18 | CF4: =AQ4 -> Segment 19 | CH4: =AS4 -> Segment 20
G5: =IF(Main!$AC$14=TRUE, "Crash Period", "Study Period") -> Study Period | H5: =IF(Main!$AC$14=TRUE, "Study Period", "") ->  | I5: =G5 -> Study Period | K5: Study Period | M5: Study Period | O5: Study Period | Q5: Study Period | S5: Study Period | U5: Study Period | W5: Study Period | Y5: Study Period | AA5: Study Period | AC5: Study Period | AE5: Study Period | AG5: Study Period | AI5: Study Period | AK5: Study Period | AM5: Study Period | AO5: Study Period | AQ5: Study Period | AS5: Study Period | AV5: =G5 -> Study Period | AW5: =H5 ->  | AX5: =I5 -> Study Period | AY5: =J5 ->  | AZ5: =K5 -> Study Period | BA5: =L5 ->  | BB5: =M5 -> Study Period | BC5: =N5 ->  | BD5: =O5 -> Study Period | BE5: =P5 ->  | BF5: =Q5 -> Study Period | BG5: =R5 ->  | BH5: =S5 -> Study Period | BI5: =T5 ->  | BJ5: =U5 -> Study Period | BK5: =V5 ->  | BL5: =W5 -> Study Period | BM5: =X5 ->  | BN5: =Y5 -> Study Period | BO5: =Z5 ->  | BP5: =AA5 -> Study Period | BQ5: =AB5 ->  | BR5: =AC5 -> Study Period | BS5: =AD5 ->  | BT5: =AE5 -> Study Period | BU5: =AF5 ->  | BV5: =AG5 -> Study Period | BW5: =AH5 ->  | BX5: =AI5 -> Study Period | BY5: =AJ5 ->  | BZ5: =AK5 -> Study Period | CA5: =AL5 ->  | CB5: =AM5 -> Study Period | CC5: =AN5 ->  | CD5: =AO5 -> Study Period | CE5: =AP5 ->  | CF5: =AQ5 -> Study Period | CG5: =AR5 ->  | CH5: =AS5 -> Study Period | CI5: =AT5 -> 
C6: (View results in Column AV) | D6: (View results in Advisory Messages)
B7: Basic Roadway Data
B8: Number of through lanes (n): | G8: 6 | H8: =G8 -> 6 | I8: 6 | J8: =I8 -> 6 | K8: 6 | L8: =K8 -> 6 | M8: 6 | N8: =M8 -> 6 | O8: 6 | P8: =O8 -> 6 | R8: =Q8 -> 0 | T8: =S8 -> 0 | V8: =U8 -> 0 | X8: =W8 -> 0 | Z8: =Y8 -> 0 | AB8: =AA8 -> 0 | AD8: =AC8 -> 0 | AF8: =AE8 -> 0 | AH8: =AG8 -> 0 | AJ8: =AI8 -> 0 | AL8: =AK8 -> 0 | AN8: =AM8 -> 0 | AP8: =AO8 -> 0 | AR8: =AQ8 -> 0 | AT8: =AS8 -> 0 | AV8: 6 | AW8: 6 | AX8: 6 | AY8: 6 | AZ8: 6 | BA8: 6 | BB8: 6 | BC8: 6 | BD8: 6 | BE8: 6
B9: Freeway segment description: | G9: FR1 | I9: FR2 | K9: FR3 | L9: Alt seg | M9: FR4 | O9: FR5 | AV9: FR1 | AX9: FR2 | AZ9: FR3 | BA9: Alt seg | BB9: FR4 | BD9: FR5
B10: Segment length (L), mi: | G10: 0.3 | H10: =G10 -> 0.3 | I10: 0.54 | J10: =I10 -> 0.54 | K10: 0.35 | L10: =K10 -> 0.35 | M10: 0.61 | N10: =M10 -> 0.61 | O10: 0.3 | P10: =O10 -> 0.3 | R10: =Q10 -> 0 | T10: =S10 -> 0 | V10: =U10 -> 0 | X10: =W10 -> 0 | Z10: =Y10 -> 0 | AB10: =AA10 -> 0 | AD10: =AC10 -> 0 | AF10: =AE10 -> 0 | AH10: =AG10 -> 0 | AJ10: =AI10 -> 0 | AL10: =AK10 -> 0 | AN10: =AM10 -> 0 | AP10: =AO10 -> 0 | AR10: =AQ10 -> 0 | AT10: =AS10 -> 0 | AV10: 0.150000006 | AW10: 0.150000006 | AX10: 0.5400000215 | AY10: 0.5400000215 | AZ10: 0.349999994 | BA10: 0.349999994 | BB10: 0.6100000143 | BC10: 0.6100000143 | BD10: 0.3000000119 | BE10: 0.3000000119
B11: Alignment Data
B12: Horizontal Curve Data | E12: See note
B13: 1 | C13: Horizontal curve in segment?: | G13: No | H13: =G13 -> No | I13: No | J13: =I13 -> No | K13: No | L13: =K13 -> No | M13: No | N13: =M13 -> No | O13: No | P13: =O13 -> No | R13: =Q13 -> 0 | T13: =S13 -> 0 | V13: =U13 -> 0 | X13: =W13 -> 0 | Z13: =Y13 -> 0 | AB13: =AA13 -> 0 | AD13: =AC13 -> 0 | AF13: =AE13 -> 0 | AH13: =AG13 -> 0 | AJ13: =AI13 -> 0 | AL13: =AK13 -> 0 | AN13: =AM13 -> 0 | AP13: =AO13 -> 0 | AR13: =AQ13 -> 0 | AT13: =AS13 -> 0 | AV13: No | AW13: No | AX13: No | AY13: No | AZ13: No | BA13: No | BB13: No | BC13: No | BD13: No | BE13: No
C14: Curve radius (R1), ft: | H14: 0 | J14: 0 | L14: 0 | M14: 2800 | N14: 2800 | P14: 0 | R14: 0 | T14: 0 | V14: 0 | X14: 0 | Z14: 0 | AB14: 0 | AD14: 0 | AF14: 0 | AH14: 0 | AJ14: 0 | AL14: 0 | AN14: 0 | AP14: 0 | AR14: 0 | AT14: 0 | AV14: 0 | AW14: 0 | AX14: 0 | AY14: 0 | AZ14: 0 | BA14: 0 | BB14: 0 | BC14: 0 | BD14: 0 | BE14: 0
C15: Length of curve (Lc1), mi: | H15: 0 | J15: 0 | L15: 0 | M15: 0.23 | N15: 0.23 | P15: 0 | R15: 0 | T15: 0 | V15: 0 | X15: 0 | Z15: 0 | AB15: 0 | AD15: 0 | AF15: 0 | AH15: 0 | AJ15: 0 | AL15: 0 | AN15: 0 | AP15: 0 | AR15: 0 | AT15: 0 | AV15: 0 | AW15: 0 | AX15: 0 | AY15: 0 | AZ15: 0 | BA15: 0 | BB15: 0 | BC15: 0 | BD15: 0 | BE15: 0
C16: Length of curve in segment (Lc1,seg), mi: | H16: 0 | J16: 0 | L16: 0 | M16: 0.15 | N16: 0.15 | P16: 0 | R16: 0 | T16: 0 | V16: 0 | X16: 0 | Z16: 0 | AB16: 0 | AD16: 0 | AF16: 0 | AH16: 0 | AJ16: 0 | AL16: 0 | AN16: 0 | AP16: 0 | AR16: 0 | AT16: 0 | AV16: 0 | AW16: 0 | AX16: 0 | AY16: 0 | AZ16: 0 | BA16: 0 | BB16: 0 | BC16: 0 | BD16: 0 | BE16: 0
B17: 2 | C17: Horizontal curve in segment?: | G17: No | H17: No | I17: No | J17: No | K17: No | L17: No | M17: No | N17: No | P17: 0 | R17: 0 | T17: 0 | V17: 0 | X17: 0 | Z17: 0 | AB17: 0 | AD17: 0 | AF17: 0 | AH17: 0 | AJ17: 0 | AL17: 0 | AN17: 0 | AP17: 0 | AR17: 0 | AT17: 0
C18: Curve radius (R2), ft: | H18: 0 | J18: 0 | L18: 0 | N18: 0 | P18: 0 | R18: 0 | T18: 0 | V18: 0 | X18: 0 | Z18: 0 | AB18: 0 | AD18: 0 | AF18: 0 | AH18: 0 | AJ18: 0 | AL18: 0 | AN18: 0 | AP18: 0 | AR18: 0 | AT18: 0 | AV18: 0 | AW18: 0 | AX18: 0 | AY18: 0 | AZ18: 0 | BA18: 0 | BB18: 0 | BC18: 0 | BD18: 0 | BE18: 0
C19: Length of curve (Lc2), mi: | H19: =G19 -> 0 | J19: 0 | L19: 0 | N19: 0 | P19: 0 | R19: 0 | T19: 0 | V19: 0 | X19: 0 | Z19: 0 | AB19: 0 | AD19: 0 | AF19: 0 | AH19: 0 | AJ19: 0 | AL19: 0 | AN19: 0 | AP19: 0 | AR19: 0 | AT19: 0 | AV19: 0 | AW19: 0 | AX19: 0 | AY19: 0 | AZ19: 0 | BA19: 0 | BB19: 0 | BC19: 0 | BD19: 0 | BE19: 0
C20: Length of curve in segment (Lc2,seg), mi: | H20: 0 | J20: 0 | L20: 0 | N20: 0 | P20: 0 | R20: 0 | T20: 0 | V20: 0 | X20: 0 | Z20: 0 | AB20: 0 | AD20: 0 | AF20: 0 | AH20: 0 | AJ20: 0 | AL20: 0 | AN20: 0 | AP20: 0 | AR20: 0 | AT20: 0 | AV20: 0 | AW20: 0 | AX20: 0 | AY20: 0 | AZ20: 0 | BA20: 0 | BB20: 0 | BC20: 0 | BD20: 0 | BE20: 0
B21: 3 | C21: Horizontal curve in segment?: | G21: No | H21: =G21 -> No | I21: No | J21: No | K21: No | L21: No | M21: No | N21: No | P21: 0 | R21: 0 | T21: 0 | V21: 0 | X21: 0 | Z21: 0 | AB21: 0 | AD21: 0 | AF21: 0 | AH21: 0 | AJ21: 0 | AL21: 0 | AN21: 0 | AP21: 0 | AR21: 0 | AT21: 0
C22: Curve radius (R3), ft: | H22: =G22 -> 0 | J22: 0 | L22: 0 | N22: 0 | P22: 0 | R22: 0 | T22: 0 | V22: 0 | X22: 0 | Z22: 0 | AB22: 0 | AD22: 0 | AF22: 0 | AH22: 0 | AJ22: 0 | AL22: 0 | AN22: 0 | AP22: 0 | AR22: 0 | AT22: 0 | AV22: 0 | AW22: 0 | AX22: 0 | AY22: 0 | AZ22: 0 | BA22: 0 | BB22: 0 | BC22: 0 | BD22: 0 | BE22: 0
C23: Length of curve (Lc3), mi: | H23: 0 | J23: 0 | L23: 0 | N23: 0 | P23: 0 | R23: 0 | T23: 0 | V23: 0 | X23: 0 | Z23: 0 | AB23: 0 | AD23: 0 | AF23: 0 | AH23: 0 | AJ23: 0 | AL23: 0 | AN23: 0 | AP23: 0 | AR23: 0 | AT23: 0 | AV23: 0 | AW23: 0 | AX23: 0 | AY23: 0 | AZ23: 0 | BA23: 0 | BB23: 0 | BC23: 0 | BD23: 0 | BE23: 0
C24: Length of curve in segment (Lc3,seg), mi: | H24: 0 | J24: 0 | L24: 0 | N24: 0 | P24: 0 | R24: 0 | T24: 0 | V24: 0 | X24: 0 | Z24: 0 | AB24: 0 | AD24: 0 | AF24: 0 | AH24: 0 | AJ24: 0 | AL24: 0 | AN24: 0 | AP24: 0 | AR24: 0 | AT24: 0 | AV24: 0 | AW24: 0 | AX24: 0 | AY24: 0 | AZ24: 0 | BA24: 0 | BB24: 0 | BC24: 0 | BD24: 0 | BE24: 0
B25: Cross Section Data
B26: Lane width (Wl), ft: | G26: 12 | H26: 12 | I26: 12 | J26: =I26 -> 12 | K26: 12 | L26: =K26 -> 12 | M26: 12 | N26: =M26 -> 12 | O26: 12 | P26: =O26 -> 12 | R26: =Q26 -> 0 | T26: =S26 -> 0 | V26: =U26 -> 0 | X26: =W26 -> 0 | Z26: =Y26 -> 0 | AB26: =AA26 -> 0 | AD26: =AC26 -> 0 | AF26: =AE26 -> 0 | AH26: =AG26 -> 0 | AJ26: =AI26 -> 0 | AL26: =AK26 -> 0 | AN26: =AM26 -> 0 | AP26: =AO26 -> 0 | AR26: =AQ26 -> 0 | AT26: =AS26 -> 0 | AV26: 12 | AW26: 12 | AX26: 12 | AY26: 12 | AZ26: 12 | BA26: 12 | BB26: 12 | BC26: 12 | BD26: 12 | BE26: 12
B27: Outside shoulder width (Ws), ft: | G27: 10 | H27: =G27 -> 10 | I27: 10 | J27: 10 | K27: 10 | L27: 10 | M27: 10 | N27: 10 | O27: 10 | P27: 10 | R27: 0 | T27: 0 | V27: 0 | X27: 0 | Z27: 0 | AB27: 0 | AD27: 0 | AF27: 0 | AH27: 0 | AJ27: 0 | AL27: 0 | AN27: 0 | AP27: 0 | AR27: 0 | AT27: 0 | AV27: 10 | AW27: 10 | AX27: 10 | AY27: 10 | AZ27: 10 | BA27: 10 | BB27: 10 | BC27: 10 | BD27: 10 | BE27: 10
B28: Inside shoulder width (Wis), ft: | G28: 8 | H28: 8 | I28: 8 | J28: 8 | K28: 8 | L28: 8 | M28: 8 | N28: 8 | O28: 8 | P28: 8 | R28: 0 | T28: 0 | V28: 0 | X28: 0 | Z28: 0 | AB28: 0 | AD28: 0 | AF28: 0 | AH28: 0 | AJ28: 0 | AL28: 0 | AN28: 0 | AP28: 0 | AR28: 0 | AT28: 0 | AV28: 8 | AW28: 8 | AX28: 8 | AY28: 8 | AZ28: 8 | BA28: 8 | BB28: 8 | BC28: 8 | BD28: 8 | BE28: 8
B29: Median width (Wm), ft: | G29: 50 | H29: 50 | I29: 50 | J29: 50 | K29: 50 | L29: 50 | M29: 50 | N29: 50 | O29: 50 | P29: 50 | R29: 50 | T29: 50 | V29: 50 | X29: 0 | Z29: 0 | AB29: 0 | AD29: 0 | AF29: 0 | AH29: 0 | AJ29: 0 | AL29: 0 | AN29: 0 | AP29: 0 | AR29: 0 | AT29: 0 | AV29: 50 | AW29: 50 | AX29: 50 | AY29: 50 | AZ29: 50 | BA29: 50 | BB29: 50 | BC29: 50 | BD29: 50 | BE29: 50
B30: Rumble strips on outside shoulders?: | G30: No | H30: No | I30: No | J30: No | K30: No | L30: No | M30: No | N30: No | O30: No | P30: No | R30: 0 | T30: 0 | V30: 0 | X30: 0 | Z30: 0 | AB30: 0 | AD30: 0 | AF30: 0 | AH30: 0 | AJ30: 0 | AL30: 0 | AN30: 0 | AP30: 0 | AR30: 0 | AT30: 0 | AV30: No | AW30: No | AX30: No | AY30: No | AZ30: No | BA30: No | BB30: No | BC30: No | BD30: No | BE30: No
C31: Length of rumble strips for travel in increasing milepost direction, mi: | H31: 0 | J31: 0 | K31: 0.08 | L31: 0.08 | M31: 0.25 | N31: 0.25 | P31: 0 | R31: 0 | T31: 0 | V31: 0 | X31: 0 | Z31: 0 | AB31: 0 | AD31: 0 | AF31: 0 | AH31: 0 | AJ31: 0 | AL31: 0 | AN31: 0 | AP31: 0 | AR31: 0 | AT31: 0
C32: Length of rumble strips for travel in decreasing milepost direction, mi: | H32: 0 | J32: 0 | K32: 0.08 | L32: 0.08 | M32: 0.25 | N32: 0.25 | P32: 0 | R32: 0 | T32: 0 | V32: 0 | X32: 0 | Z32: 0 | AB32: 0 | AD32: 0 | AF32: 0 | AH32: 0 | AJ32: 0 | AL32: 0 | AN32: 0 | AP32: 0 | AR32: 0 | AT32: 0
B33: Rumble strips on inside shoulders?: | G33: No | H33: No | I33: No | J33: No | K33: No | L33: No | M33: No | N33: No | O33: No | P33: No | R33: 0 | T33: 0 | V33: 0 | X33: 0 | Z33: 0 | AB33: 0 | AD33: 0 | AF33: 0 | AH33: 0 | AJ33: 0 | AL33: 0 | AN33: 0 | AP33: 0 | AR33: 0 | AT33: 0 | AV33: No | AW33: No | AX33: No | AY33: No | AZ33: No | BA33: No | BB33: No | BC33: No | BD33: No | BE33: No
C34: Length of rumble strips for travel in increasing milepost direction, mi: | H34: 0 | J34: 0 | K34: 0.08 | L34: 0.08 | M34: 0.175 | N34: 0.175 | P34: 0 | R34: 0 | T34: 0 | V34: 0 | X34: 0 | Z34: 0 | AB34: 0 | AD34: 0 | AF34: 0 | AH34: 0 | AJ34: 0 | AL34: 0 | AN34: 0 | AP34: 0 | AR34: 0 | AT34: 0
C35: Length of rumble strips for travel in decreasing milepost direction, mi: | H35: 0 | J35: 0 | K35: 0.08 | L35: 0.08 | M35: 0.175 | N35: 0.175 | P35: 0 | R35: 0 | T35: 0 | V35: 0 | X35: 0 | Z35: 0 | AB35: 0 | AD35: 0 | AF35: 0 | AH35: 0 | AJ35: 0 | AL35: 0 | AN35: 0 | AP35: 0 | AR35: 0 | AT35: 0
B36: Presence of barrier in median: | G36: None | H36: None | I36: None | J36: None | K36: None | L36: None | M36: None | N36: None | O36: None | P36: None | R36: 0 | T36: 0 | V36: 0 | X36: 0 | Z36: 0 | AB36: 0 | AD36: 0 | AF36: 0 | AH36: 0 | AJ36: 0 | AL36: 0 | AN36: 0 | AP36: 0 | AR36: 0 | AT36: 0 | AV36: None | AW36: None | AX36: None | AY36: None | AZ36: None | BA36: None | BB36: None | BC36: None | BD36: None | BE36: None
B37: 1 | C37: Length of barrier (Lib,1), mi: | H37: 0 | J37: 0 | L37: 0 | N37: 0 | P37: 0 | R37: 0 | T37: 0 | V37: 0 | X37: 0 | Z37: 0 | AB37: 0 | AD37: 0 | AF37: 0 | AH37: 0 | AJ37: 0 | AL37: 0 | AN37: 0 | AP37: 0 | AR37: 0 | AT37: 0 | AV37: 0 | AW37: 0 | AX37: 0 | AY37: 0 | AZ37: 0 | BA37: 0 | BB37: 0 | BC37: 0 | BD37: 0 | BE37: 0
C38: Distance from edge of traveled way to barrier face (Woff,in,1), ft: | H38: 0 | J38: 0 | L38: 0 | N38: 0 | P38: 0 | R38: 0 | T38: 0 | V38: 0 | X38: 0 | Z38: 0 | AB38: 0 | AD38: 0 | AF38: 0 | AH38: 0 | AJ38: 0 | AL38: 0 | AN38: 0 | AP38: 0 | AR38: 0 | AT38: 0 | AV38: 0 | AW38: 0 | AX38: 0 | AY38: 0 | AZ38: 0 | BA38: 0 | BB38: 0 | BC38: 0 | BD38: 0 | BE38: 0
B39: 2 | C39: Length of barrier (Lib,2), mi: | H39: 0 | J39: 0 | L39: 0 | N39: 0 | P39: 0 | R39: 0 | T39: 0 | V39: 0 | X39: 0 | Z39: 0 | AB39: 0 | AD39: 0 | AF39: 0 | AH39: 0 | AJ39: 0 | AL39: 0 | AN39: 0 | AP39: 0 | AR39: 0 | AT39: 0 | AV39: 0 | AW39: 0 | AX39: 0 | AY39: 0 | AZ39: 0 | BA39: 0 | BB39: 0 | BC39: 0 | BD39: 0 | BE39: 0
C40: Distance from edge of traveled way to barrier face (Woff,in,2), ft: | H40: 0 | J40: 0 | L40: 0 | N40: 0 | P40: 0 | R40: 0 | T40: 0 | V40: 0 | X40: 0 | Z40: 0 | AB40: 0 | AD40: 0 | AF40: 0 | AH40: 0 | AJ40: 0 | AL40: 0 | AN40: 0 | AP40: 0 | AR40: 0 | AT40: 0 | AV40: 0 | AW40: 0 | AX40: 0 | AY40: 0 | AZ40: 0 | BA40: 0 | BB40: 0 | BC40: 0 | BD40: 0 | BE40: 0
B41: 3 | C41: Length of barrier (Lib,3), mi: | H41: 0 | J41: 0 | L41: 0 | N41: 0 | P41: 0 | R41: 0 | T41: 0 | V41: 0 | X41: 0 | Z41: 0 | AB41: 0 | AD41: 0 | AF41: 0 | AH41: 0 | AJ41: 0 | AL41: 0 | AN41: 0 | AP41: 0 | AR41: 0 | AT41: 0 | AV41: 0 | AW41: 0 | AX41: 0 | AY41: 0 | AZ41: 0 | BA41: 0 | BB41: 0 | BC41: 0 | BD41: 0 | BE41: 0
C42: Distance from edge of traveled way to barrier face (Woff,in,3), ft: | H42: 0 | J42: 0 | L42: 0 | N42: 0 | P42: 0 | R42: 0 | T42: 0 | V42: 0 | X42: 0 | Z42: 0 | AB42: 0 | AD42: 0 | AF42: 0 | AH42: 0 | AJ42: 0 | AL42: 0 | AN42: 0 | AP42: 0 | AR42: 0 | AT42: 0 | AV42: 0 | AW42: 0 | AX42: 0 | AY42: 0 | AZ42: 0 | BA42: 0 | BB42: 0 | BC42: 0 | BD42: 0 | BE42: 0
B43: 4 | C43: Length of barrier (Lib,4), mi: | H43: 0 | J43: 0 | L43: 0 | N43: 0 | P43: 0 | R43: 0 | T43: 0 | V43: 0 | X43: 0 | Z43: 0 | AB43: 0 | AD43: 0 | AF43: 0 | AH43: 0 | AJ43: 0 | AL43: 0 | AN43: 0 | AP43: 0 | AR43: 0 | AT43: 0 | AV43: 0 | AW43: 0 | AX43: 0 | AY43: 0 | AZ43: 0 | BA43: 0 | BB43: 0 | BC43: 0 | BD43: 0 | BE43: 0
C44: Distance from edge of traveled way to barrier face (Woff,in,4), ft: | H44: 0 | J44: 0 | L44: 0 | N44: 0 | P44: 0 | R44: 0 | T44: 0 | V44: 0 | X44: 0 | Z44: 0 | AB44: 0 | AD44: 0 | AF44: 0 | AH44: 0 | AJ44: 0 | AL44: 0 | AN44: 0 | AP44: 0 | AR44: 0 | AT44: 0 | AV44: 0 | AW44: 0 | AX44: 0 | AY44: 0 | AZ44: 0 | BA44: 0 | BB44: 0 | BC44: 0 | BD44: 0 | BE44: 0
B45: 5 | C45: Length of barrier (Lib,5), mi: | H45: 0 | J45: 0 | L45: 0 | N45: 0 | P45: 0 | R45: 0 | T45: 0 | V45: 0 | X45: 0 | Z45: 0 | AB45: 0 | AD45: 0 | AF45: 0 | AH45: 0 | AJ45: 0 | AL45: 0 | AN45: 0 | AP45: 0 | AR45: 0 | AT45: 0 | AV45: 0 | AW45: 0 | AX45: 0 | AY45: 0 | AZ45: 0 | BA45: 0 | BB45: 0 | BC45: 0 | BD45: 0 | BE45: 0
C46: Distance from edge of traveled way to barrier face (Woff,in,5), ft: | H46: 0 | J46: 0 | L46: 0 | N46: 0 | P46: 0 | R46: 0 | T46: 0 | V46: 0 | X46: 0 | Z46: 0 | AB46: 0 | AD46: 0 | AF46: 0 | AH46: 0 | AJ46: 0 | AL46: 0 | AN46: 0 | AP46: 0 | AR46: 0 | AT46: 0 | AV46: 0 | AW46: 0 | AX46: 0 | AY46: 0 | AZ46: 0 | BA46: 0 | BB46: 0 | BC46: 0 | BD46: 0 | BE46: 0
B47: Median barrier width (Wib), ft: | G47: 1.5 | H47: 1.5 | I47: 1.5 | J47: 1.5 | K47: 2.5 | L47: 2.5 | M47: 3.5 | N47: 3.5 | P47: 0 | R47: 0 | T47: 0 | V47: 0 | X47: 0 | Z47: 0 | AB47: 0 | AD47: 0 | AF47: 0 | AH47: 0 | AJ47: 0 | AL47: 0 | AN47: 0 | AP47: 0 | AR47: 0 | AT47: 0 | AV47: 0 | AW47: 0 | AX47: 0 | AY47: 0 | AZ47: 0 | BA47: 0 | BB47: 0 | BC47: 0 | BD47: 0 | BE47: 0
B48: Nearest distance from edge of traveled way to barrier face (Wnear), ft: | H48: 0 | J48: 0 | L48: 0 | N48: 0 | P48: 0 | R48: 0 | T48: 0 | V48: 0 | X48: 0 | Z48: 0 | AB48: 0 | AD48: 0 | AF48: 0 | AH48: 0 | AJ48: 0 | AL48: 0 | AN48: 0 | AP48: 0 | AR48: 0 | AT48: 0 | AV48: 0 | AW48: 0 | AX48: 0 | AY48: 0 | AZ48: 0 | BA48: 0 | BB48: 0 | BC48: 0 | BD48: 0 | BE48: 0
B49: Roadside Data
B50: Clear zone width (Whc), ft: | G50: 30 | H50: =G50 -> 30 | I50: 30 | J50: =I50 -> 30 | K50: 30 | L50: =K50 -> 30 | M50: 30 | N50: =M50 -> 30 | O50: 30 | P50: =O50 -> 30 | R50: =Q50 -> 0 | T50: =S50 -> 0 | V50: =U50 -> 0 | X50: =W50 -> 0 | Z50: =Y50 -> 0 | AB50: =AA50 -> 0 | AD50: =AC50 -> 0 | AF50: =AE50 -> 0 | AH50: =AG50 -> 0 | AJ50: =AI50 -> 0 | AL50: =AK50 -> 0 | AN50: =AM50 -> 0 | AP50: =AO50 -> 0 | AR50: =AQ50 -> 0 | AT50: =AS50 -> 0 | AV50: 30 | AW50: 30 | AX50: 30 | AY50: 30 | AZ50: 30 | BA50: 30 | BB50: 30 | BC50: 30 | BD50: 30 | BE50: 30
B51: Presence of barrier on roadside: | G51: None | H51: None | I51: None | J51: None | K51: None | L51: None | M51: None | N51: None | O51: None | P51: None | R51: 0 | T51: 0 | V51: 0 | X51: 0 | Z51: 0 | AB51: 0 | AD51: 0 | AF51: 0 | AH51: 0 | AJ51: 0 | AL51: 0 | AN51: 0 | AP51: 0 | AR51: 0 | AT51: 0 | AV51: None | AW51: None | AX51: None | AY51: None | AZ51: None | BA51: None | BB51: None | BC51: None | BD51: None | BE51: None
B52: 1 | C52: Length of barrier (Lob,1), mi: | G52: 0.036 | H52: 0.036 | I52: 0.01 | J52: 0.01 | L52: 0 | N52: 0 | P52: 0 | R52: 0 | T52: 0 | V52: 0 | X52: 0 | Z52: 0 | AB52: 0 | AD52: 0 | AF52: 0 | AH52: 0 | AJ52: 0 | AL52: 0 | AN52: 0 | AP52: 0 | AR52: 0 | AT52: 0 | AV52: 0 | AW52: 0 | AX52: 0 | AY52: 0 | AZ52: 0 | BA52: 0 | BB52: 0 | BC52: 0 | BD52: 0 | BE52: 0
C53: Distance from edge of traveled way to barrier face (Woff,o,1), ft: | G53: 6.5 | H53: 6.5 | I53: 7.5 | J53: 7.5 | L53: 0 | N53: 0 | P53: 0 | R53: 0 | T53: 0 | V53: 0 | X53: 0 | Z53: 0 | AB53: 0 | AD53: 0 | AF53: 0 | AH53: 0 | AJ53: 0 | AL53: 0 | AN53: 0 | AP53: 0 | AR53: 0 | AT53: 0 | AV53: 0 | AW53: 0 | AX53: 0 | AY53: 0 | AZ53: 0 | BA53: 0 | BB53: 0 | BC53: 0 | BD53: 0 | BE53: 0
B54: 2 | C54: Length of barrier (Lob,2), mi: | H54: 0 | J54: 0 | L54: 0 | N54: 0 | P54: 0 | R54: 0 | T54: 0 | V54: 0 | X54: 0 | Z54: 0 | AB54: 0 | AD54: 0 | AF54: 0 | AH54: 0 | AJ54: 0 | AL54: 0 | AN54: 0 | AP54: 0 | AR54: 0 | AT54: 0 | AV54: 0 | AW54: 0 | AX54: 0 | AY54: 0 | AZ54: 0 | BA54: 0 | BB54: 0 | BC54: 0 | BD54: 0 | BE54: 0
C55: Distance from edge of traveled way to barrier face (Woff,o,2), ft: | H55: 0 | J55: 0 | L55: 0 | N55: 0 | P55: 0 | R55: 0 | T55: 0 | V55: 0 | X55: 0 | Z55: 0 | AB55: 0 | AD55: 0 | AF55: 0 | AH55: 0 | AJ55: 0 | AL55: 0 | AN55: 0 | AP55: 0 | AR55: 0 | AT55: 0 | AV55: 0 | AW55: 0 | AX55: 0 | AY55: 0 | AZ55: 0 | BA55: 0 | BB55: 0 | BC55: 0 | BD55: 0 | BE55: 0
B56: 3 | C56: Length of barrier (Lob,3), mi: | H56: 0 | J56: 0 | L56: 0 | N56: 0 | P56: 0 | R56: 0 | T56: 0 | V56: 0 | X56: 0 | Z56: 0 | AB56: 0 | AD56: 0 | AF56: 0 | AH56: 0 | AJ56: 0 | AL56: 0 | AN56: 0 | AP56: 0 | AR56: 0 | AT56: 0 | AV56: 0 | AW56: 0 | AX56: 0 | AY56: 0 | AZ56: 0 | BA56: 0 | BB56: 0 | BC56: 0 | BD56: 0 | BE56: 0
C57: Distance from edge of traveled way to barrier face (Woff,o,3), ft: | H57: 0 | J57: 0 | L57: 0 | N57: 0 | P57: 0 | R57: 0 | T57: 0 | V57: 0 | X57: 0 | Z57: 0 | AB57: 0 | AD57: 0 | AF57: 0 | AH57: 0 | AJ57: 0 | AL57: 0 | AN57: 0 | AP57: 0 | AR57: 0 | AT57: 0 | AV57: 0 | AW57: 0 | AX57: 0 | AY57: 0 | AZ57: 0 | BA57: 0 | BB57: 0 | BC57: 0 | BD57: 0 | BE57: 0
B58: 4 | C58: Length of barrier (Lob,4), mi: | H58: 0 | J58: 0 | L58: 0 | N58: 0 | P58: 0 | R58: 0 | T58: 0 | V58: 0 | X58: 0 | Z58: 0 | AB58: 0 | AD58: 0 | AF58: 0 | AH58: 0 | AJ58: 0 | AL58: 0 | AN58: 0 | AP58: 0 | AR58: 0 | AT58: 0 | AV58: 0 | AW58: 0 | AX58: 0 | AY58: 0 | AZ58: 0 | BA58: 0 | BB58: 0 | BC58: 0 | BD58: 0 | BE58: 0
C59: Distance from edge of traveled way to barrier face (Woff,o,4), ft: | H59: 0 | J59: 0 | L59: 0 | N59: 0 | P59: 0 | R59: 0 | T59: 0 | V59: 0 | X59: 0 | Z59: 0 | AB59: 0 | AD59: 0 | AF59: 0 | AH59: 0 | AJ59: 0 | AL59: 0 | AN59: 0 | AP59: 0 | AR59: 0 | AT59: 0 | AV59: 0 | AW59: 0 | AX59: 0 | AY59: 0 | AZ59: 0 | BA59: 0 | BB59: 0 | BC59: 0 | BD59: 0 | BE59: 0
B60: 5 | C60: Length of barrier (Lob,5), mi: | H60: 0 | J60: 0 | L60: 0 | N60: 0 | P60: 0 | R60: 0 | T60: 0 | V60: 0 | X60: 0 | Z60: 0 | AB60: 0 | AD60: 0 | AF60: 0 | AH60: 0 | AJ60: 0 | AL60: 0 | AN60: 0 | AP60: 0 | AR60: 0 | AT60: 0 | AV60: 0 | AW60: 0 | AX60: 0 | AY60: 0 | AZ60: 0 | BA60: 0 | BB60: 0 | BC60: 0 | BD60: 0 | BE60: 0
C61: Distance from edge of traveled way to barrier face (Woff,o,5), ft: | H61: 0 | J61: 0 | L61: 0 | N61: 0 | P61: 0 | R61: 0 | T61: 0 | V61: 0 | X61: 0 | Z61: 0 | AB61: 0 | AD61: 0 | AF61: 0 | AH61: 0 | AJ61: 0 | AL61: 0 | AN61: 0 | AP61: 0 | AR61: 0 | AT61: 0 | AV61: 0 | AW61: 0 | AX61: 0 | AY61: 0 | AZ61: 0 | BA61: 0 | BB61: 0 | BC61: 0 | BD61: 0 | BE61: 0
B62: Distance from edge of traveled way to barrier face, increasing milepost (Woff,inc), ft: | H62: 0 | J62: 0 | L62: 0 | N62: 0 | P62: 0 | R62: 0 | T62: 0 | V62: 0 | X62: 0 | Z62: 0 | AB62: 0 | AD62: 0 | AF62: 0 | AH62: 0 | AJ62: 0 | AL62: 0 | AN62: 0 | AP62: 0 | AR62: 0 | AT62: 0 | AV62: 0 | AW62: 0 | AX62: 0 | AY62: 0 | AZ62: 0 | BA62: 0 | BB62: 0 | BC62: 0 | BD62: 0 | BE62: 0
B63: Distance from edge of traveled way to barrier face, decreasing milepost (Woff,dec), ft: | H63: 0 | J63: 0 | L63: 0 | N63: 0 | P63: 0 | R63: 0 | T63: 0 | V63: 0 | X63: 0 | Z63: 0 | AB63: 0 | AD63: 0 | AF63: 0 | AH63: 0 | AJ63: 0 | AL63: 0 | AN63: 0 | AP63: 0 | AR63: 0 | AT63: 0 | AV63: 0 | AW63: 0 | AX63: 0 | AY63: 0 | AZ63: 0 | BA63: 0 | BB63: 0 | BC63: 0 | BD63: 0 | BE63: 0
B64: Ramp Access Data
B65: Travel in Increasing Milepost Direction
B66: Entrance | C66: Ramp entrance in segment? (If yes, indicate type.): | G66: No | H66: =G66 -> No | I66: No | J66: =I66 -> No | K66: Lane Add | L66: =K66 -> Lane Add | M66: No | N66: =M66 -> No | O66: S-C Lane | P66: =O66 -> S-C Lane | R66: =Q66 -> 0 | T66: =S66 -> 0 | V66: =U66 -> 0 | X66: =W66 -> 0 | Z66: =Y66 -> 0 | AB66: =AA66 -> 0 | AD66: =AC66 -> 0 | AF66: =AE66 -> 0 | AH66: =AG66 -> 0 | AJ66: =AI66 -> 0 | AL66: =AK66 -> 0 | AN66: =AM66 -> 0 | AP66: =AO66 -> 0 | AR66: =AQ66 -> 0 | AT66: =AS66 -> 0 | AV66: No | AW66: No | AX66: No | AY66: No | AZ66: No | BA66: No | BB66: S-C Lane | BC66: S-C Lane | BD66: No | BE66: No
B67: Ramp | C67: Distance from begin milepost to upstream entrance ramp gore (Xb,ent), mi: | G67: 999 | H67: 999 | I67: 999 | J67: =I67 -> 999 | K67: 999 | L67: 999 | M67: 0.35 | N67: 0.35 | O67: 0.05 | P67: 0.05 | R67: 0 | T67: 0 | V67: 0 | X67: 0 | Z67: 0 | AB67: 0 | AD67: 0 | AF67: 0 | AH67: 0 | AJ67: 0 | AL67: 0 | AN67: 0 | AP67: 0 | AR67: 0 | AT67: 0 | AV67: 999 | AW67: 999 | AX67: 999 | AY67: 999 | AZ67: 999 | BA67: 999 | BB67: 0 | BC67: 0 | BD67: 0.05000000075 | BE67: 0.05000000075
C68: Length of ramp entrance (Len,inc), mi: | H68: 0 | I68: 0.07 | J68: =I68 -> 0.07 | K68: 0.14 | L68: 0.14 | M68: 0.05 | N68: 0.05 | O68: 0.14 | P68: 0.14 | R68: 0 | T68: 0 | U68: 0.05 | V68: 0.05 | X68: 0 | Z68: 0 | AB68: 0 | AD68: 0 | AF68: 0 | AH68: 0 | AJ68: 0 | AL68: 0 | AN68: 0 | AP68: 0 | AR68: 0 | AT68: 0 | AV68: 0 | AW68: 0 | AX68: 0 | AY68: 0 | AZ68: 0 | BA68: 0 | BB68: 0.05000000075 | BC68: 0.05000000075 | BD68: 0 | BE68: 0
C69: Length of ramp entrance in segment (Len,seg,inc), mi: | H69: 0 | I69: 0.034 | J69: 0.034 | K69: 0.14 | L69: 0.14 | M69: 0.05 | N69: 0.05 | O69: 0.14 | P69: 0.14 | R69: 0 | T69: 0 | U69: 0.05 | V69: 0.05 | X69: 0 | Z69: 0 | AB69: 0 | AD69: 0 | AF69: 0 | AH69: 0 | AJ69: 0 | AL69: 0 | AN69: 0 | AP69: 0 | AR69: 0 | AT69: 0 | AV69: 0 | AW69: 0 | AX69: 0 | AY69: 0 | AZ69: 0 | BA69: 0 | BB69: 0.05000000075 | BC69: 0.05000000075 | BD69: 0 | BE69: 0
C70: Entrance side?: | H70: 0 | I70: Right | J70: Right | K70: Right | L70: Right | M70: Right | N70: Right | O70: Right | P70: Right | R70: 0 | T70: 0 | U70: Right | V70: Right | X70: 0 | Z70: 0 | AB70: 0 | AD70: 0 | AF70: 0 | AH70: 0 | AJ70: 0 | AL70: 0 | AN70: 0 | AP70: 0 | AR70: 0 | AT70: 0 | BB70: Right | BC70: Right
B71: Exit | C71: Ramp exit in segment? (If yes, indicate type.): | G71: S-C Lane | H71: S-C Lane | I71: No | J71: No | K71: Lane Drop | L71: Lane Drop | M71: No | N71: No | O71: No | P71: No | R71: 0 | T71: 0 | V71: 0 | X71: 0 | Z71: 0 | AB71: 0 | AD71: 0 | AF71: 0 | AH71: 0 | AJ71: 0 | AL71: 0 | AN71: 0 | AP71: 0 | AR71: 0 | AT71: 0 | AV71: No | AW71: No | AX71: S-C Lane | AY71: S-C Lane | AZ71: No | BA71: No | BB71: No | BC71: No | BD71: No | BE71: No
B72: Ramp | C72: Distance from end milepost to downstream exit ramp gore (Xe,ext), mi: | G72: 0.04 | H72: 0.04 | I72: 0.35 | J72: 0.35 | L72: 0 | M72: 999 | N72: 999 | O72: 999 | P72: 999 | R72: 0 | T72: 0 | V72: 0 | X72: 0 | Z72: 0 | AB72: 0 | AD72: 0 | AF72: 0 | AH72: 0 | AJ72: 0 | AL72: 0 | AN72: 0 | AP72: 0 | AR72: 0 | AT72: 0 | AV72: 0.03999999911 | AW72: 0.03999999911 | AX72: 0 | AY72: 0 | AZ72: 0.3799999952 | BA72: 0.3799999952 | BB72: 0.3300000131 | BC72: 0.3300000131 | BD72: 0.03999999911 | BE72: 0.03999999911
C73: Length of ramp exit (Lex,inc), mi: | G73: 0.04 | H73: 0.04 | J73: 0 | K73: 0.04 | L73: 0.04 | N73: 0 | P73: 0 | R73: 0 | T73: 0 | V73: 0 | X73: 0 | Z73: 0 | AB73: 0 | AD73: 0 | AF73: 0 | AH73: 0 | AJ73: 0 | AL73: 0 | AN73: 0 | AP73: 0 | AR73: 0 | AT73: 0 | AV73: 0 | AW73: 0 | AX73: 0.03999999911 | AY73: 0.03999999911 | AZ73: 0 | BA73: 0 | BB73: 0 | BC73: 0 | BD73: 0 | BE73: 0
C74: Length of ramp exit in segment (Lex,seg,inc), mi: | G74: 0.04 | H74: 0.04 | J74: 0 | K74: 0.04 | L74: 0.04 | N74: 0 | P74: 0 | R74: 0 | T74: 0 | V74: 0 | X74: 0 | Z74: 0 | AB74: 0 | AD74: 0 | AF74: 0 | AH74: 0 | AJ74: 0 | AL74: 0 | AN74: 0 | AP74: 0 | AR74: 0 | AT74: 0 | AV74: 0 | AW74: 0 | AX74: 0.03999999911 | AY74: 0.03999999911 | AZ74: 0 | BA74: 0 | BB74: 0 | BC74: 0 | BD74: 0 | BE74: 0
C75: Exit side?: | G75: Right | H75: Right | J75: 0 | K75: Right | L75: Right | N75: 0 | P75: 0 | R75: 0 | T75: 0 | V75: 0 | X75: 0 | Z75: 0 | AB75: 0 | AD75: 0 | AF75: 0 | AH75: 0 | AJ75: 0 | AL75: 0 | AN75: 0 | AP75: 0 | AR75: 0 | AT75: 0 | AX75: Right | AY75: Right
B76: Weave | C76: Type B weave in segment?: | G76: No | H76: No | I76: No | J76: No | K76: Yes | L76: Yes | M76: No | N76: No | O76: No | P76: No | R76: 0 | T76: 0 | V76: 0 | X76: 0 | Z76: 0 | AB76: 0 | AD76: 0 | AF76: 0 | AH76: 0 | AJ76: 0 | AL76: 0 | AN76: 0 | AP76: 0 | AR76: 0 | AT76: 0 | AV76: No | AW76: No | AX76: No | AY76: No | AZ76: No | BA76: No | BB76: No | BC76: No | BD76: No | BE76: No
C77: Length of weaving section (Lwev,inc), mi: | H77: 0 | J77: 0 | K77: 0.35 | L77: 0.35 | M77: 0.35 | N77: 0.35 | O77: 0.29 | P77: 0.29 | R77: 0 | T77: 0 | V77: 0 | X77: 0 | Z77: 0 | AB77: 0 | AD77: 0 | AF77: 0 | AH77: 0 | AJ77: 0 | AL77: 0 | AN77: 0 | AP77: 0 | AR77: 0 | AT77: 0 | AV77: 0 | AW77: 0 | AX77: 0 | AY77: 0 | AZ77: 0 | BA77: 0 | BB77: 0 | BC77: 0 | BD77: 0 | BE77: 0
C78: Length of weaving section in segment (Lwev,seg,inc), mi: | H78: 0 | J78: 0 | K78: 0.35 | L78: 0.35 | M78: 0.01 | N78: 0.01 | O78: 0.29 | P78: 0.29 | R78: 0 | T78: 0 | V78: 0 | X78: 0 | Z78: 0 | AB78: 0 | AD78: 0 | AF78: 0 | AH78: 0 | AJ78: 0 | AL78: 0 | AN78: 0 | AP78: 0 | AR78: 0 | AT78: 0 | AV78: 0 | AW78: 0 | AX78: 0 | AY78: 0 | AZ78: 0 | BA78: 0 | BB78: 0 | BC78: 0 | BD78: 0 | BE78: 0
B79: Travel in Decreasing Milepost Direction
B80: Entrance | C80: Ramp entrance in segment? (If yes, indicate type.): | G80: S-C Lane | H80: =G80 -> S-C Lane | I80: No | J80: =I80 -> No | K80: Lane Add | L80: =K80 -> Lane Add | M80: No | N80: =M80 -> No | O80: No | P80: =O80 -> No | R80: =Q80 -> 0 | T80: =S80 -> 0 | V80: =U80 -> 0 | X80: =W80 -> 0 | Z80: =Y80 -> 0 | AB80: =AA80 -> 0 | AD80: =AC80 -> 0 | AF80: =AE80 -> 0 | AH80: =AG80 -> 0 | AJ80: =AI80 -> 0 | AL80: =AK80 -> 0 | AN80: =AM80 -> 0 | AP80: =AO80 -> 0 | AR80: =AQ80 -> 0 | AT80: =AS80 -> 0 | AV80: No | AW80: No | AX80: No | AY80: No | AZ80: No | BA80: No | BB80: No | BC80: No | BD80: No | BE80: No
B81: Ramp | C81: Distance from end milepost to upstream entrance ramp gore (Xe,ent), mi: | G81: 999 | I81: 0.35 | K81: 999 | M81: 999 | N81: 999 | O81: 999 | P81: 999 | R81: 0 | T81: 0 | V81: 0 | X81: 0 | Z81: 0 | AB81: 0 | AD81: 0 | AF81: 0 | AH81: 0 | AJ81: 0 | AL81: 0 | AN81: 0 | AP81: 0 | AR81: 0 | AT81: 0 | AV81: 999 | AW81: 0 | AX81: 999 | AY81: 0 | AZ81: 999 | BA81: 0 | BB81: 999 | BC81: 999 | BD81: 999 | BE81: 999
C82: Length of ramp entrance (Len,dec), mi: | G82: 0.14 | H82: 0.14 | J82: 0 | K82: 0.14 | L82: 0.14 | N82: 0 | P82: 0 | R82: 0 | T82: 0 | V82: 0 | X82: 0 | Z82: 0 | AB82: 0 | AD82: 0 | AF82: 0 | AH82: 0 | AJ82: 0 | AL82: 0 | AN82: 0 | AP82: 0 | AR82: 0 | AT82: 0 | AV82: 0 | AW82: 0 | AX82: 0 | AY82: 0 | AZ82: 0 | BA82: 0 | BB82: 0 | BC82: 0 | BD82: 0 | BE82: 0
C83: Length of ramp entrance in segment (Len,seg,dec), mi: | G83: 0.14 | H83: 0.14 | J83: 0 | K83: 0.14 | L83: 0.14 | N83: 0 | P83: 0 | R83: 0 | T83: 0 | V83: 0 | X83: 0 | Z83: 0 | AB83: 0 | AD83: 0 | AF83: 0 | AH83: 0 | AJ83: 0 | AL83: 0 | AN83: 0 | AP83: 0 | AR83: 0 | AT83: 0 | AV83: 0 | AW83: 0 | AX83: 0 | AY83: 0 | AZ83: 0 | BA83: 0 | BB83: 0 | BC83: 0 | BD83: 0 | BE83: 0
C84: Entrance side?: | G84: Right | H84: Right | J84: 0 | K84: Right | L84: Right | N84: 0 | P84: 0 | R84: 0 | T84: 0 | V84: 0 | X84: 0 | Z84: 0 | AB84: 0 | AD84: 0 | AF84: 0 | AH84: 0 | AJ84: 0 | AL84: 0 | AN84: 0 | AP84: 0 | AR84: 0 | AT84: 0
B85: Exit | C85: Ramp exit in segment? (If yes, indicate type.): | G85: No | H85: No | I85: No | J85: =I85 -> No | K85: Lane Drop | L85: Lane Drop | M85: No | N85: No | O85: S-C Lane | P85: S-C Lane | R85: 0 | T85: 0 | V85: 0 | X85: 0 | Z85: 0 | AB85: 0 | AD85: 0 | AF85: 0 | AH85: 0 | AJ85: 0 | AL85: 0 | AN85: 0 | AP85: 0 | AR85: 0 | AT85: 0 | AV85: No | AW85: No | AX85: No | AY85: No | AZ85: No | BA85: No | BB85: No | BC85: No | BD85: No | BE85: No
B86: Ramp | C86: Distance from begin milepost to downstream exit ramp gore (Xb,ext), mi: | G86: 999 | I86: 999 | K86: 999 | M86: 0.35 | N86: =M86 -> 0.35 | O86: 999 | P86: 999 | R86: 0 | T86: 0 | V86: 0 | X86: 0 | Z86: 0 | AB86: 0 | AD86: 0 | AF86: 0 | AH86: 0 | AJ86: 0 | AL86: 0 | AN86: 0 | AP86: 0 | AR86: 0 | AT86: 0 | AV86: 999 | AW86: 0 | AX86: 999 | AY86: 0 | AZ86: 999 | BA86: 0 | BB86: 999 | BC86: 999 | BD86: 999 | BE86: 999
C87: Length of ramp exit (Lex,dec), mi: | H87: 0 | I87: 0.07 | J87: 0.07 | K87: 0.04 | L87: 0.04 | N87: 0 | O87: 0.04 | P87: 0.04 | R87: 0 | T87: 0 | V87: 0 | X87: 0 | Z87: 0 | AB87: 0 | AD87: 0 | AF87: 0 | AH87: 0 | AJ87: 0 | AL87: 0 | AN87: 0 | AP87: 0 | AR87: 0 | AT87: 0 | AV87: 0 | AW87: 0 | AX87: 0 | AY87: 0 | AZ87: 0 | BA87: 0 | BB87: 0 | BC87: 0 | BD87: 0 | BE87: 0
C88: Length of ramp exit in segment (Lex,seg,dec), mi: | H88: 0 | I88: 0.03 | J88: 0.03 | K88: 0.04 | L88: 0.04 | N88: 0 | O88: 0.04 | P88: 0.04 | R88: 0 | T88: 0 | V88: 0 | X88: 0 | Z88: 0 | AB88: 0 | AD88: 0 | AF88: 0 | AH88: 0 | AJ88: 0 | AL88: 0 | AN88: 0 | AP88: 0 | AR88: 0 | AT88: 0 | AV88: 0 | AW88: 0 | AX88: 0 | AY88: 0 | AZ88: 0 | BA88: 0 | BB88: 0 | BC88: 0 | BD88: 0 | BE88: 0
C89: Exit side?: | H89: 0 | I89: Right | J89: Right | K89: Right | L89: Right | N89: 0 | O89: Right | P89: Right | R89: 0 | T89: 0 | V89: 0 | X89: 0 | Z89: 0 | AB89: 0 | AD89: 0 | AF89: 0 | AH89: 0 | AJ89: 0 | AL89: 0 | AN89: 0 | AP89: 0 | AR89: 0 | AT89: 0
B90: Weave | C90: Type B weave in segment?: | G90: No | H90: No | I90: No | J90: No | K90: Yes | L90: Yes | M90: No | N90: No | O90: No | P90: No | R90: 0 | T90: 0 | V90: 0 | X90: 0 | Z90: 0 | AB90: 0 | AD90: 0 | AF90: 0 | AH90: 0 | AJ90: 0 | AL90: 0 | AN90: 0 | AP90: 0 | AR90: 0 | AT90: 0 | AV90: No | AW90: No | AX90: No | AY90: No | AZ90: No | BA90: No | BB90: No | BC90: No | BD90: No | BE90: No
C91: Length of weaving section (Lwev,dec), mi: | H91: 0 | J91: 0 | K91: 0.35 | L91: 0.35 | N91: 0 | P91: 0 | R91: 0 | T91: 0 | V91: 0 | X91: 0 | Z91: 0 | AB91: 0 | AD91: 0 | AF91: 0 | AH91: 0 | AJ91: 0 | AL91: 0 | AN91: 0 | AP91: 0 | AR91: 0 | AT91: 0 | AV91: 0 | AW91: 0 | AX91: 0 | AY91: 0 | AZ91: 0 | BA91: 0 | BB91: 0 | BC91: 0 | BD91: 0 | BE91: 0
C92: Length of weaving section in segment (Lwev,seg,dec), mi: | H92: 0 | J92: 0 | K92: 0.35 | L92: 0.35 | N92: 0 | P92: 0 | R92: 0 | T92: 0 | V92: 0 | X92: 0 | Z92: 0 | AB92: 0 | AD92: 0 | AF92: 0 | AH92: 0 | AJ92: 0 | AL92: 0 | AN92: 0 | AP92: 0 | AR92: 0 | AT92: 0 | AV92: 0 | AW92: 0 | AX92: 0 | AY92: 0 | AZ92: 0 | BA92: 0 | BB92: 0 | BC92: 0 | BD92: 0 | BE92: 0
B93: Traffic Data | F93: Year
B94: Proportion of AADT during high-volume hours (Phv): | G94: 0.3 | I94: 0.3 | K94: 0.3 | M94: 0.3 | O94: 0.3 | AV94: 0.3000000119 | AX94: 0.3000000119 | AZ94: 0.3000000119 | BB94: 0.3000000119 | BD94: 0.3000000119
B95: Freeway Segment Data | F95: =Main!AC5 -> 2025 | G95: 100000 | I95: 85000 | K95: 104000 | M95: 93000 | O95: 104000 | AV95: 100000 | AX95: 100000 | AZ95: 90000 | BB95: 102000 | BD95: 102000
B96: Average daily traffic (AADTfs) by year, veh/d: | F96: =F95+1 -> 2026 | AV96: 0 | AX96: 0 | AZ96: 0 | BB96: 0 | BD96: 0
B97: (enter data only for those years for which | F97: =F96+1 -> 2027 | AV97: 0 | AX97: 0 | AZ97: 0 | BB97: 0 | BD97: 0
B98: it is available, leave other years blank) | F98: 2028 | AV98: 0 | AX98: 0 | AZ98: 0 | BB98: 0 | BD98: 0
F99: 2029 | AV99: 0 | AX99: 0 | AZ99: 0 | BB99: 0 | BD99: 0
F100: 2030 | AV100: 0 | AX100: 0 | AZ100: 0 | BB100: 0 | BD100: 0
F101: 2031 | AV101: 0 | AX101: 0 | AZ101: 0 | BB101: 0 | BD101: 0
F102: 2032 | AV102: 0 | AX102: 0 | AZ102: 0 | BB102: 0 | BD102: 0
F103: 2033 | AV103: 0 | AX103: 0 | AZ103: 0 | BB103: 0 | BD103: 0
F104: 2034 | AV104: 0 | AX104: 0 | AZ104: 0 | BB104: 0 | BD104: 0
F105: 2035 | AV105: 0 | AX105: 0 | AZ105: 0 | BB105: 0 | BD105: 0
F106: 2036 | AV106: 0 | AX106: 0 | AZ106: 0 | BB106: 0 | BD106: 0
F107: 2037 | AV107: 0 | AX107: 0 | AZ107: 0 | BB107: 0 | BD107: 0
F108: 2038 | AV108: 0 | AX108: 0 | AZ108: 0 | BB108: 0 | BD108: 0
F109: 2039 | AV109: 0 | AX109: 0 | AZ109: 0 | BB109: 0 | BD109: 0
F110: 2040 | AV110: 0 | AX110: 0 | AZ110: 0 | BB110: 0 | BD110: 0
F111: 2041 | AV111: 0 | AX111: 0 | AZ111: 0 | BB111: 0 | BD111: 0
F112: 2042 | AV112: 0 | AX112: 0 | AZ112: 0 | BB112: 0 | BD112: 0
F113: 2043 | AV113: 0 | AX113: 0 | AZ113: 0 | BB113: 0 | BD113: 0
F114: 2044 | AV114: 0 | AX114: 0 | AZ114: 0 | BB114: 0 | BD114: 0
F115: 2045 | G115: =G95*1.4 -> 140000 | I115: =I95*1.4 -> 119000 | K115: 145600 | M115: 130200 | O115: 145600 | AV115: 140000 | AX115: 140000 | AZ115: 135000 | BB115: 142800 | BD115: 142800
F116: 2046 | AV116: 0 | AX116: 0 | AZ116: 0 | BB116: 0 | BD116: 0
F117: 2047 | AV117: 0 | AX117: 0 | AZ117: 0 | BB117: 0 | BD117: 0
F118: 2048 | AV118: 0 | AX118: 0 | AZ118: 0 | BB118: 0 | BD118: 0
B119: Entrance Ramp Data for Travel in Increasing Milepost Dir. | F119: Year
B120: Average daily traffic (AADTb,ent) by year, veh/d: | F120: =F95 -> 2025 | K120: 10000 | M120: 10000 | O120: 6000 | AV120: 0 | AX120: 0 | AZ120: 0 | BB120: 10000 | BD120: 10000
B121: (enter data only for those years for which | F121: 2026 | AV121: 0 | AX121: 0 | AZ121: 0 | BB121: 0 | BD121: 0
B122: it is available, leave other years blank) | F122: 2027 | AV122: 0 | AX122: 0 | AZ122: 0 | BB122: 0 | BD122: 0
F123: 2028 | AV123: 0 | AX123: 0 | AZ123: 0 | BB123: 0 | BD123: 0
F124: 2029 | AV124: 0 | AX124: 0 | AZ124: 0 | BB124: 0 | BD124: 0
F125: 2030 | AV125: 0 | AX125: 0 | AZ125: 0 | BB125: 0 | BD125: 0
F126: 2031 | AV126: 0 | AX126: 0 | AZ126: 0 | BB126: 0 | BD126: 0
F127: 2032 | AV127: 0 | AX127: 0 | AZ127: 0 | BB127: 0 | BD127: 0
F128: 2033 | AV128: 0 | AX128: 0 | AZ128: 0 | BB128: 0 | BD128: 0
F129: 2034 | AV129: 0 | AX129: 0 | AZ129: 0 | BB129: 0 | BD129: 0
F130: 2035 | AV130: 0 | AX130: 0 | AZ130: 0 | BB130: 0 | BD130: 0
F131: 2036 | AV131: 0 | AX131: 0 | AZ131: 0 | BB131: 0 | BD131: 0
F132: 2037 | AV132: 0 | AX132: 0 | AZ132: 0 | BB132: 0 | BD132: 0
F133: 2038 | AV133: 0 | AX133: 0 | AZ133: 0 | BB133: 0 | BD133: 0
F134: 2039 | AV134: 0 | AX134: 0 | AZ134: 0 | BB134: 0 | BD134: 0
F135: 2040 | AV135: 0 | AX135: 0 | AZ135: 0 | BB135: 0 | BD135: 0
F136: 2041 | AV136: 0 | AX136: 0 | AZ136: 0 | BB136: 0 | BD136: 0
F137: 2042 | AV137: 0 | AX137: 0 | AZ137: 0 | BB137: 0 | BD137: 0
F138: 2043 | AV138: 0 | AX138: 0 | AZ138: 0 | BB138: 0 | BD138: 0
F139: 2044 | AV139: 0 | AX139: 0 | AZ139: 0 | BB139: 0 | BD139: 0
F140: 2045 | K140: 14000 | M140: 14000 | O140: 8400 | AV140: 0 | AX140: 0 | AZ140: 0 | BB140: 14000 | BD140: 14000
F141: 2046 | AV141: 0 | AX141: 0 | AZ141: 0 | BB141: 0 | BD141: 0
F142: 2047 | AV142: 0 | AX142: 0 | AZ142: 0 | BB142: 0 | BD142: 0
F143: 2048 | AV143: 0 | AX143: 0 | AZ143: 0 | BB143: 0 | BD143: 0
B144: Exit Ramp Data for Travel in Increasing Milepost Direction | F144: =F119 -> Year
B145: Average daily traffic (AADTe,ext) by year, veh/d: | F145: 2025 | G145: 8000 | I145: 5000 | K145: 5000 | M145: 5000 | O145: 5000 | AV145: 8000 | AX145: 8000 | AZ145: 5000 | BB145: 5000 | BD145: 5000
B146: (enter data only for those years for which | F146: 2026 | AV146: 0 | AX146: 0 | AZ146: 0 | BB146: 0 | BD146: 0
B147: it is available, leave other years blank) | F147: 2027 | AV147: 0 | AX147: 0 | AZ147: 0 | BB147: 0 | BD147: 0
F148: 2028 | AV148: 0 | AX148: 0 | AZ148: 0 | BB148: 0 | BD148: 0
F149: 2029 | AV149: 0 | AX149: 0 | AZ149: 0 | BB149: 0 | BD149: 0
F150: 2030 | AV150: 0 | AX150: 0 | AZ150: 0 | BB150: 0 | BD150: 0
F151: 2031 | AV151: 0 | AX151: 0 | AZ151: 0 | BB151: 0 | BD151: 0
F152: 2032 | AV152: 0 | AX152: 0 | AZ152: 0 | BB152: 0 | BD152: 0
F153: 2033 | AV153: 0 | AX153: 0 | AZ153: 0 | BB153: 0 | BD153: 0
F154: 2034 | AV154: 0 | AX154: 0 | AZ154: 0 | BB154: 0 | BD154: 0
F155: 2035 | AV155: 0 | AX155: 0 | AZ155: 0 | BB155: 0 | BD155: 0
F156: 2036 | AV156: 0 | AX156: 0 | AZ156: 0 | BB156: 0 | BD156: 0
F157: 2037 | AV157: 0 | AX157: 0 | AZ157: 0 | BB157: 0 | BD157: 0
F158: 2038 | AV158: 0 | AX158: 0 | AZ158: 0 | BB158: 0 | BD158: 0
F159: 2039 | AV159: 0 | AX159: 0 | AZ159: 0 | BB159: 0 | BD159: 0
F160: 2040 | AV160: 0 | AX160: 0 | AZ160: 0 | BB160: 0 | BD160: 0
F161: 2041 | AV161: 0 | AX161: 0 | AZ161: 0 | BB161: 0 | BD161: 0
F162: 2042 | AV162: 0 | AX162: 0 | AZ162: 0 | BB162: 0 | BD162: 0
F163: 2043 | AV163: 0 | AX163: 0 | AZ163: 0 | BB163: 0 | BD163: 0
F164: 2044 | AV164: 0 | AX164: 0 | AZ164: 0 | BB164: 0 | BD164: 0
F165: 2045 | G165: 11200 | I165: 7000 | K165: 7000 | M165: 7000 | O165: 7000 | AV165: 11200 | AX165: 11200 | AZ165: 7000 | BB165: 7000 | BD165: 7000
F166: 2046 | AV166: 0 | AX166: 0 | AZ166: 0 | BB166: 0 | BD166: 0
F167: 2047 | AV167: 0 | AX167: 0 | AZ167: 0 | BB167: 0 | BD167: 0
F168: 2048 | AV168: 0 | AX168: 0 | AZ168: 0 | BB168: 0 | BD168: 0
B169: Entrance Ramp Data for Travel in Decreasing Milepost Dir. | F169: Year
B170: Average daily traffic (AADTe,ent) by year, veh/d: | F170: 2025 | G170: 7000 | I170: 6000 | K170: 6000 | M170: 12000 | O170: 0 | AV170: 0 | AX170: 0 | AZ170: 0 | BB170: 0 | BD170: 0
B171: (enter data only for those years for which | F171: 2026 | AV171: 0 | AX171: 0 | AZ171: 0 | BB171: 0 | BD171: 0
B172: it is available, leave other years blank) | F172: 2027 | AV172: 0 | AX172: 0 | AZ172: 0 | BB172: 0 | BD172: 0
F173: 2028 | AV173: 0 | AX173: 0 | AZ173: 0 | BB173: 0 | BD173: 0
F174: 2029 | AV174: 0 | AX174: 0 | AZ174: 0 | BB174: 0 | BD174: 0
F175: 2030 | AV175: 0 | AX175: 0 | AZ175: 0 | BB175: 0 | BD175: 0
F176: 2031 | AV176: 0 | AX176: 0 | AZ176: 0 | BB176: 0 | BD176: 0
F177: 2032 | AV177: 0 | AX177: 0 | AZ177: 0 | BB177: 0 | BD177: 0
F178: 2033 | AV178: 0 | AX178: 0 | AZ178: 0 | BB178: 0 | BD178: 0
F179: 2034 | AV179: 0 | AX179: 0 | AZ179: 0 | BB179: 0 | BD179: 0
F180: 2035 | AV180: 0 | AX180: 0 | AZ180: 0 | BB180: 0 | BD180: 0
F181: 2036 | AV181: 0 | AX181: 0 | AZ181: 0 | BB181: 0 | BD181: 0
F182: 2037 | AV182: 0 | AX182: 0 | AZ182: 0 | BB182: 0 | BD182: 0
F183: 2038 | AV183: 0 | AX183: 0 | AZ183: 0 | BB183: 0 | BD183: 0
F184: 2039 | AV184: 0 | AX184: 0 | AZ184: 0 | BB184: 0 | BD184: 0
F185: =F160 -> 2040 | AV185: 0 | AX185: 0 | AZ185: 0 | BB185: 0 | BD185: 0
F186: 2041 | AV186: 0 | AX186: 0 | AZ186: 0 | BB186: 0 | BD186: 0
F187: 2042 | AV187: 0 | AX187: 0 | AZ187: 0 | BB187: 0 | BD187: 0
F188: 2043 | AV188: 0 | AX188: 0 | AZ188: 0 | BB188: 0 | BD188: 0
F189: 2044 | AV189: 0 | AX189: 0 | AZ189: 0 | BB189: 0 | BD189: 0
F190: 2045 | G190: 9800 | I190: 8400 | K190: 8400 | M190: 16800 | AV190: 0 | AX190: 0 | AZ190: 0 | BB190: 0 | BD190: 0
F191: 2046 | AV191: 0 | AX191: 0 | AZ191: 0 | BB191: 0 | BD191: 0
F192: 2047 | AV192: 0 | AX192: 0 | AZ192: 0 | BB192: 0 | BD192: 0
F193: 2048 | AV193: 0 | AX193: 0 | AZ193: 0 | BB193: 0 | BD193: 0
B194: Exit Ramp Data for Travel in Decreasing Milepost Direction | F194: Year
B195: Average daily traffic (AADTb,ext) by year, veh/d: | F195: 2025 | G195: 0 | I195: 10000 | K195: 9000 | M195: 9000 | O195: 5000 | AV195: 0 | AX195: 0 | AZ195: 0 | BB195: 0 | BD195: 0
B196: (enter data only for those years for which | F196: 2026 | AV196: 0 | AX196: 0 | AZ196: 0 | BB196: 0 | BD196: 0
B197: it is available, leave other years blank) | F197: 2027 | AV197: 0 | AX197: 0 | AZ197: 0 | BB197: 0 | BD197: 0
F198: 2028 | AV198: 0 | AX198: 0 | AZ198: 0 | BB198: 0 | BD198: 0
F199: 2029 | AV199: 0 | AX199: 0 | AZ199: 0 | BB199: 0 | BD199: 0
F200: 2030 | AV200: 0 | AX200: 0 | AZ200: 0 | BB200: 0 | BD200: 0
F201: 2031 | AV201: 0 | AX201: 0 | AZ201: 0 | BB201: 0 | BD201: 0
F202: 2032 | AV202: 0 | AX202: 0 | AZ202: 0 | BB202: 0 | BD202: 0
... 71 more rows

Sheet Input Ramp Segments
E3: Input Worksheet for Ramp Segments
G4: ="Segment "& TEXT(INT((COLUMN()-5)/2),"0") -> Segment 1 | I4: ="Segment "& TEXT(INT((COLUMN()-5)/2),"0") -> Segment 2 | K4: ="Segment "& TEXT(INT((COLUMN()-5)/2),"0") -> Segment 3 | M4: ="Segment "& TEXT(INT((COLUMN()-5)/2),"0") -> Segment 4 | O4: ="Segment "& TEXT(INT((COLUMN()-5)/2),"0") -> Segment 5 | Q4: ="Segment "& TEXT(INT((COLUMN()-5)/2),"0") -> Segment 6 | S4: ="Segment "& TEXT(INT((COLUMN()-5)/2),"0") -> Segment 7 | U4: ="Segment "& TEXT(INT((COLUMN()-5)/2),"0") -> Segment 8 | W4: ="Segment "& TEXT(INT((COLUMN()-5)/2),"0") -> Segment 9 | Y4: ="Segment "& TEXT(INT((COLUMN()-5)/2),"0") -> Segment 10 | AA4: ="Segment "& TEXT(INT((COLUMN()-5)/2),"0") -> Segment 11 | AC4: ="Segment "& TEXT(INT((COLUMN()-5)/2),"0") -> Segment 12 | AE4: ="Segment "& TEXT(INT((COLUMN()-5)/2),"0") -> Segment 13 | AG4: ="Segment "& TEXT(INT((COLUMN()-5)/2),"0") -> Segment 14 | AI4: ="Segment "& TEXT(INT((COLUMN()-5)/2),"0") -> Segment 15 | AK4: ="Segment "& TEXT(INT((COLUMN()-5)/2),"0") -> Segment 16 | AM4: ="Segment "& TEXT(INT((COLUMN()-5)/2),"0") -> Segment 17 | AO4: ="Segment "& TEXT(INT((COLUMN()-5)/2),"0") -> Segment 18 | AQ4: ="Segment "& TEXT(INT((COLUMN()-5)/2),"0") -> Segment 19 | AS4: ="Segment "& TEXT(INT((COLUMN()-5)/2),"0") -> Segment 20 | AU4: ="Segment "& TEXT(INT((COLUMN()-5)/2),"0") -> Segment 21 | AW4: ="Segment "& TEXT(INT((COLUMN()-5)/2),"0") -> Segment 22 | AY4: ="Segment "& TEXT(INT((COLUMN()-5)/2),"0") -> Segment 23 | BA4: ="Segment "& TEXT(INT((COLUMN()-5)/2),"0") -> Segment 24 | BC4: ="Segment "& TEXT(INT((COLUMN()-5)/2),"0") -> Segment 25 | BE4: ="Segment "& TEXT(INT((COLUMN()-5)/2),"0") -> Segment 26 | BG4: ="Segment "& TEXT(INT((COLUMN()-5)/2),"0") -> Segment 27 | BI4: ="Segment "& TEXT(INT((COLUMN()-5)/2),"0") -> Segment 28 | BK4: ="Segment "& TEXT(INT((COLUMN()-5)/2),"0") -> Segment 29 | BM4: ="Segment "& TEXT(INT((COLUMN()-5)/2),"0") -> Segment 30 | BO4: ="Segment "& TEXT(INT((COLUMN()-5)/2),"0") -> Segment 31 | BQ4: ="Segment "& TEXT(INT((COLUMN()-5)/2),"0") -> Segment 32 | BS4: ="Segment "& TEXT(INT((COLUMN()-5)/2),"0") -> Segment 33 | BU4: ="Segment "& TEXT(INT((COLUMN()-5)/2),"0") -> Segment 34 | BW4: ="Segment "& TEXT(INT((COLUMN()-5)/2),"0") -> Segment 35 | BY4: ="Segment "& TEXT(INT((COLUMN()-5)/2),"0") -> Segment 36 | CA4: ="Segment "& TEXT(INT((COLUMN()-5)/2),"0") -> Segment 37 | CC4: ="Segment "& TEXT(INT((COLUMN()-5)/2),"0") -> Segment 38 | CE4: ="Segment "& TEXT(INT((COLUMN()-5)/2),"0") -> Segment 39 | CG4: ="Segment "& TEXT(INT((COLUMN()-5)/2),"0") -> Segment 40 | CJ4: =G4 -> Segment 1 | CL4: =I4 -> Segment 2 | CN4: =K4 -> Segment 3 | CP4: =M4 -> Segment 4 | CR4: =O4 -> Segment 5 | CT4: =Q4 -> Segment 6 | CV4: =S4 -> Segment 7 | CX4: =U4 -> Segment 8 | CZ4: =W4 -> Segment 9 | DB4: =Y4 -> Segment 10 | DD4: =AA4 -> Segment 11 | DF4: =AC4 -> Segment 12 | DH4: =AE4 -> Segment 13 | DJ4: =AG4 -> Segment 14 | DL4: =AI4 -> Segment 15 | DN4: =AK4 -> Segment 16 | DP4: =AM4 -> Segment 17 | DR4: =AO4 -> Segment 18 | DT4: =AQ4 -> Segment 19 | DV4: =AS4 -> Segment 20 | DX4: =AU4 -> Segment 21 | DZ4: =AW4 -> Segment 22 | EB4: =AY4 -> Segment 23 | ED4: =BA4 -> Segment 24 | EF4: =BC4 -> Segment 25 | EH4: =BE4 -> Segment 26 | EJ4: =BG4 -> Segment 27 | EL4: =BI4 -> Segment 28 | EN4: =BK4 -> Segment 29 | EP4: =BM4 -> Segment 30 | ER4: =BO4 -> Segment 31 | ET4: =BQ4 -> Segment 32 | EV4: =BS4 -> Segment 33 | EX4: =BU4 -> Segment 34 | EZ4: =BW4 -> Segment 35 | FB4: =BY4 -> Segment 36 | FD4: =CA4 -> Segment 37 | FF4: =CC4 -> Segment 38 | FH4: =CE4 -> Segment 39 | FJ4: =CG4 -> Segment 40
G5: =IF(Main!$AG$14=TRUE, "Crash Period", "Study Period") -> Study Period | H5: =IF(Main!$AG$14=TRUE, "Study Period", "") ->  | I5: =G5 -> Study Period | K5: Study Period | M5: Study Period | O5: Study Period | Q5: Study Period | S5: Study Period | U5: Study Period | W5: Study Period | Y5: Study Period | AA5: Study Period | AC5: Study Period | AE5: Study Period | AG5: Study Period | AI5: Study Period | AK5: Study Period | AM5: Study Period | AO5: =AM5 -> Study Period | AQ5: Study Period | AS5: Study Period | AU5: Study Period | AW5: Study Period | AY5: Study Period | BA5: Study Period | BC5: Study Period | BE5: Study Period | BG5: Study Period | BI5: Study Period | BK5: Study Period | BM5: Study Period | BO5: Study Period | BQ5: Study Period | BS5: Study Period | BU5: =BS5 -> Study Period | BW5: Study Period | BY5: Study Period | CA5: Study Period | CC5: Study Period | CE5: Study Period | CG5: Study Period | CJ5: =G5 -> Study Period | CK5: =H5 ->  | CL5: =I5 -> Study Period | CM5: =J5 ->  | CN5: =K5 -> Study Period | CO5: =L5 ->  | CP5: =M5 -> Study Period | CQ5: =N5 ->  | CR5: =O5 -> Study Period | CS5: =P5 ->  | CT5: =Q5 -> Study Period | CU5: =R5 ->  | CV5: =S5 -> Study Period | CW5: =T5 ->  | CX5: =U5 -> Study Period | CY5: =V5 ->  | CZ5: =W5 -> Study Period | DA5: =X5 ->  | DB5: =Y5 -> Study Period | DC5: =Z5 ->  | DD5: =AA5 -> Study Period | DE5: =AB5 ->  | DF5: =AC5 -> Study Period | DG5: =AD5 ->  | DH5: =AE5 -> Study Period | DI5: =AF5 ->  | DJ5: =AG5 -> Study Period | DK5: =AH5 ->  | DL5: =AI5 -> Study Period | DM5: =AJ5 ->  | DN5: =AK5 -> Study Period | DO5: =AL5 ->  | DP5: =AM5 -> Study Period | DQ5: =AN5 ->  | DR5: =AO5 -> Study Period | DS5: =AP5 ->  | DT5: =AQ5 -> Study Period | DU5: =AR5 ->  | DV5: =AS5 -> Study Period | DW5: =AT5 ->  | DX5: =AU5 -> Study Period | DY5: =AV5 ->  | DZ5: =AW5 -> Study Period | EA5: =AX5 ->  | EB5: =AY5 -> Study Period | EC5: =AZ5 ->  | ED5: =BA5 -> Study Period | EE5: =BB5 ->  | EF5: =BC5 -> Study Period | EG5: =BD5 ->  | EH5: =BE5 -> Study Period | EI5: =BF5 ->  | EJ5: =BG5 -> Study Period | EK5: =BH5 ->  | EL5: =BI5 -> Study Period | EM5: =BJ5 ->  | EN5: =BK5 -> Study Period | EO5: =BL5 ->  | EP5: =BM5 -> Study Period | EQ5: =BN5 ->  | ER5: =BO5 -> Study Period | ES5: =BP5 ->  | ET5: =BQ5 -> Study Period | EU5: =BR5 ->  | EV5: =BS5 -> Study Period | EW5: =BT5 ->  | EX5: =BU5 -> Study Period | EY5: =BV5 ->  | EZ5: =BW5 -> Study Period | FA5: =BX5 ->  | FB5: =BY5 -> Study Period | FC5: =BZ5 ->  | FD5: =CA5 -> Study Period | FE5: =CB5 ->  | FF5: =CC5 -> Study Period | FG5: =CD5 ->  | FH5: =CE5 -> Study Period | FI5: =CF5 ->  | FJ5: =CG5 -> Study Period | FK5: =CH5 -> 
C6: (View results in Column CJ) | D6: (View results in Advisory Messages)
B7: Basic Roadway Data
B8: Number of through lanes (n): | G8: 1 | H8: =G8 -> 1 | I8: 2 | J8: =I8 -> 2 | K8: 1 | L8: =K8 -> 1 | M8: 1 | N8: =M8 -> 1 | O8: 1 | P8: =O8 -> 1 | Q8: 1 | R8: =Q8 -> 1 | S8: 2 | T8: =S8 -> 2 | U8: 1 | V8: =U8 -> 1 | X8: =W8 -> 0 | Z8: =Y8 -> 0 | AB8: =AA8 -> 0 | AD8: =AC8 -> 0 | AF8: =AE8 -> 0 | AH8: =AG8 -> 0 | AJ8: =AI8 -> 0 | AL8: =AK8 -> 0 | AN8: =AM8 -> 0 | AP8: =AO8 -> 0 | AR8: =AQ8 -> 0 | AT8: =AS8 -> 0 | AV8: =AU8 -> 0 | AX8: =AW8 -> 0 | AZ8: =AY8 -> 0 | BB8: =BA8 -> 0 | BD8: =BC8 -> 0 | BF8: =BE8 -> 0 | BH8: =BG8 -> 0 | BJ8: =BI8 -> 0 | BL8: =BK8 -> 0 | BN8: =BM8 -> 0 | BP8: =BO8 -> 0 | BR8: =BQ8 -> 0 | BT8: =BS8 -> 0 | BV8: =BU8 -> 0 | BX8: =BW8 -> 0 | BZ8: =BY8 -> 0 | CB8: =CA8 -> 0 | CD8: =CC8 -> 0 | CF8: =CE8 -> 0 | CH8: =CG8 -> 0
B9: Ramp segment description: | G9: R1 | I9: R2 | K9: R3 | M9: R4 | O9: R5 | Q9: R6 | S9: R7 | U9: R8
B10: Segment length (L), mi: | G10: 0.22 | H10: =G10 -> 0.22 | I10: 0.28 | J10: =I10 -> 0.28 | K10: 0.35 | L10: =K10 -> 0.35 | M10: 0.25 | N10: =M10 -> 0.25 | O10: 0.32 | P10: =O10 -> 0.32 | Q10: 0.2 | R10: =Q10 -> 0.2 | S10: 0.22 | T10: =S10 -> 0.22 | U10: 0.39 | V10: =U10 -> 0.39 | X10: =W10 -> 0 | Z10: =Y10 -> 0 | AB10: =AA10 -> 0 | AD10: =AC10 -> 0 | AF10: =AE10 -> 0 | AH10: =AG10 -> 0 | AJ10: =AI10 -> 0 | AL10: =AK10 -> 0 | AN10: =AM10 -> 0 | AP10: =AO10 -> 0 | AR10: =AQ10 -> 0 | AT10: =AS10 -> 0 | AV10: =AU10 -> 0 | AX10: =AW10 -> 0 | AZ10: =AY10 -> 0 | BB10: =BA10 -> 0 | BD10: =BC10 -> 0 | BF10: =BE10 -> 0 | BH10: =BG10 -> 0 | BJ10: =BI10 -> 0 | BL10: =BK10 -> 0 | BN10: =BM10 -> 0 | BP10: =BO10 -> 0 | BR10: =BQ10 -> 0 | BT10: =BS10 -> 0 | BV10: =BU10 -> 0 | BX10: =BW10 -> 0 | BZ10: =BY10 -> 0 | CB10: =CA10 -> 0 | CD10: =CC10 -> 0 | CF10: =CE10 -> 0 | CH10: =CG10 -> 0
B11: Average traffic speed on the freeway (Vfrwy), mi/h: | G11: 75 | H11: =G11 -> 75 | I11: 75 | J11: =I11 -> 75 | K11: 75 | L11: =K11 -> 75 | M11: 75 | N11: =M11 -> 75 | O11: 75 | P11: =O11 -> 75 | Q11: 75 | R11: =Q11 -> 75 | S11: 75 | T11: =S11 -> 75 | U11: 75 | V11: =U11 -> 75 | X11: =W11 -> 0 | Z11: =Y11 -> 0 | AB11: =AA11 -> 0 | AD11: =AC11 -> 0 | AF11: =AE11 -> 0 | AH11: =AG11 -> 0 | AJ11: =AI11 -> 0 | AL11: =AK11 -> 0 | AN11: =AM11 -> 0 | AP11: =AO11 -> 0 | AR11: =AQ11 -> 0 | AT11: =AS11 -> 0 | AV11: =AU11 -> 0 | AX11: =AW11 -> 0 | AZ11: =AY11 -> 0 | BB11: =BA11 -> 0 | BD11: =BC11 -> 0 | BF11: =BE11 -> 0 | BH11: =BG11 -> 0 | BJ11: =BI11 -> 0 | BL11: =BK11 -> 0 | BN11: =BM11 -> 0 | BP11: =BO11 -> 0 | BR11: =BQ11 -> 0 | BT11: =BS11 -> 0 | BV11: =BU11 -> 0 | BX11: =BW11 -> 0 | BZ11: =BY11 -> 0 | CB11: =CA11 -> 0 | CD11: =CC11 -> 0 | CF11: =CE11 -> 0 | CH11: =CG11 -> 0
B12: Segment type (ramp or collector-distributor road): | G12: Exit | H12: =G12 -> Exit | I12: Entrance | J12: =I12 -> Entrance | K12: Exit | L12: =K12 -> Exit | M12: Entrance | N12: =M12 -> Entrance | O12: Entrance | P12: =O12 -> Entrance | Q12: Exit | R12: =Q12 -> Exit | S12: Entrance | T12: =S12 -> Entrance | U12: Exit | V12: =U12 -> Exit | X12: =W12 -> 0 | Z12: =Y12 -> 0 | AB12: =AA12 -> 0 | AD12: =AC12 -> 0 | AF12: =AE12 -> 0 | AH12: =AG12 -> 0 | AJ12: =AI12 -> 0 | AL12: =AK12 -> 0 | AN12: =AM12 -> 0 | AP12: =AO12 -> 0 | AR12: =AQ12 -> 0 | AT12: =AS12 -> 0 | AV12: =AU12 -> 0 | AX12: =AW12 -> 0 | AZ12: =AY12 -> 0 | BB12: =BA12 -> 0 | BD12: =BC12 -> 0 | BF12: =BE12 -> 0 | BH12: =BG12 -> 0 | BJ12: =BI12 -> 0 | BL12: =BK12 -> 0 | BN12: =BM12 -> 0 | BP12: =BO12 -> 0 | BR12: =BQ12 -> 0 | BT12: =BS12 -> 0 | BV12: =BU12 -> 0 | BX12: =BW12 -> 0 | BZ12: =BY12 -> 0 | CB12: =CA12 -> 0 | CD12: =CC12 -> 0 | CF12: =CE12 -> 0 | CH12: =CG12 -> 0
B13: Type of control at crossroad ramp terminal: | G13: Signal | H13: =G13 -> Signal | I13: None | J13: =I13 -> None | K13: Signal | L13: =K13 -> Signal | M13: None | N13: =M13 -> None | O13: None | P13: =O13 -> None | Q13: Signal | R13: =Q13 -> Signal | S13: None | T13: =S13 -> None | U13: Signal | V13: =U13 -> Signal | X13: =W13 -> 0 | Z13: =Y13 -> 0 | AB13: =AA13 -> 0 | AD13: =AC13 -> 0 | AF13: =AE13 -> 0 | AH13: =AG13 -> 0 | AJ13: =AI13 -> 0 | AL13: =AK13 -> 0 | AN13: =AM13 -> 0 | AP13: =AO13 -> 0 | AR13: =AQ13 -> 0 | AT13: =AS13 -> 0 | AV13: =AU13 -> 0 | AX13: =AW13 -> 0 | AZ13: =AY13 -> 0 | BB13: =BA13 -> 0 | BD13: =BC13 -> 0 | BF13: =BE13 -> 0 | BH13: =BG13 -> 0 | BJ13: =BI13 -> 0 | BL13: =BK13 -> 0 | BN13: =BM13 -> 0 | BP13: =BO13 -> 0 | BR13: =BQ13 -> 0 | BT13: =BS13 -> 0 | BV13: =BU13 -> 0 | BX13: =BW13 -> 0 | BZ13: =BY13 -> 0 | CB13: =CA13 -> 0 | CD13: =CC13 -> 0 | CF13: =CE13 -> 0 | CH13: =CG13 -> 0
B14: Alignment Data
B15: Horizontal Curve Data | E15: See notes
B16: 1 | C16: Horizontal curve?: | G16: No | H16: =G16 -> No | I16: No | J16: =I16 -> No | K16: No | L16: =K16 -> No | M16: No | N16: =M16 -> No | O16: No | P16: =O16 -> No | Q16: No | R16: =Q16 -> No | S16: No | T16: =S16 -> No | U16: No | V16: =U16 -> No | X16: =W16 -> 0 | Z16: =Y16 -> 0 | AB16: =AA16 -> 0 | AD16: =AC16 -> 0 | AF16: =AE16 -> 0 | AH16: =AG16 -> 0 | AJ16: =AI16 -> 0 | AL16: =AK16 -> 0 | AN16: =AM16 -> 0 | AP16: =AO16 -> 0 | AR16: =AQ16 -> 0 | AT16: =AS16 -> 0 | AV16: =AU16 -> 0 | AX16: =AW16 -> 0 | AZ16: =AY16 -> 0 | BB16: =BA16 -> 0 | BD16: =BC16 -> 0 | BF16: =BE16 -> 0 | BH16: =BG16 -> 0 | BJ16: =BI16 -> 0 | BL16: =BK16 -> 0 | BN16: =BM16 -> 0 | BP16: =BO16 -> 0 | BR16: =BQ16 -> 0 | BT16: =BS16 -> 0 | BV16: =BU16 -> 0 | BX16: =BW16 -> 0 | BZ16: =BY16 -> 0 | CB16: =CA16 -> 0 | CD16: =CC16 -> 0 | CF16: =CE16 -> 0 | CH16: =CG16 -> 0
C17: Curve radius (R1), ft: | H17: 0 | J17: 0 | L17: 0 | N17: 0 | P17: 0 | R17: 0 | T17: 0 | V17: 0 | X17: 0 | Z17: 0 | AB17: 0 | AD17: 0 | AF17: 0 | AH17: 0 | AJ17: 0 | AL17: 0 | AN17: 0 | AP17: 0 | AR17: 0 | AT17: 0 | AV17: 0 | AX17: 0 | AZ17: 0 | BB17: 0 | BD17: 0 | BF17: 0 | BH17: 0 | BJ17: 0 | BL17: 0 | BN17: 0 | BP17: 0 | BR17: 0 | BT17: 0 | BV17: 0 | BX17: 0 | BZ17: 0 | CB17: 0 | CD17: 0 | CF17: 0 | CH17: 0
C18: Length of curve (Lc1), mi: | H18: 0 | J18: 0 | L18: 0 | N18: 0 | P18: 0 | R18: 0 | T18: 0 | V18: 0 | X18: 0 | Z18: 0 | AB18: 0 | AD18: 0 | AF18: 0 | AH18: 0 | AJ18: 0 | AL18: 0 | AN18: 0 | AP18: 0 | AR18: 0 | AT18: 0 | AV18: 0 | AX18: 0 | AZ18: 0 | BB18: 0 | BD18: 0 | BF18: 0 | BH18: 0 | BJ18: 0 | BL18: 0 | BN18: 0 | BP18: 0 | BR18: 0 | BT18: 0 | BV18: 0 | BX18: 0 | BZ18: 0 | CB18: 0 | CD18: 0 | CF18: 0 | CH18: 0
C19: Length of curve in segment (Lc1,seg), mi: | H19: 0 | J19: 0 | L19: 0 | N19: 0 | P19: 0 | R19: 0 | T19: 0 | V19: 0 | X19: 0 | Z19: 0 | AB19: 0 | AD19: 0 | AF19: 0 | AH19: 0 | AJ19: 0 | AL19: 0 | AN19: 0 | AP19: 0 | AR19: 0 | AT19: 0 | AV19: 0 | AX19: 0 | AZ19: 0 | BB19: 0 | BD19: 0 | BF19: 0 | BH19: 0 | BJ19: 0 | BL19: 0 | BN19: 0 | BP19: 0 | BR19: 0 | BT19: 0 | BV19: 0 | BX19: 0 | BZ19: 0 | CB19: 0 | CD19: 0 | CF19: 0 | CH19: 0
C20: Ramp-mile of beginning of curve in direction of travel (X1), mi: | H20: 0 | J20: 0 | L20: 0 | N20: 0 | P20: 0 | R20: 0 | T20: 0 | V20: 0 | X20: 0 | Z20: 0 | AB20: 0 | AD20: 0 | AF20: 0 | AH20: 0 | AJ20: 0 | AL20: 0 | AN20: 0 | AP20: 0 | AR20: 0 | AT20: 0 | AV20: 0 | AX20: 0 | AZ20: 0 | BB20: 0 | BD20: 0 | BF20: 0 | BH20: 0 | BJ20: 0 | BL20: 0 | BN20: 0 | BP20: 0 | BR20: 0 | BT20: 0 | BV20: 0 | BX20: 0 | BZ20: 0 | CB20: 0 | CD20: 0 | CF20: 0 | CH20: 0
B21: 2 | C21: Horizontal curve?: | H21: 0 | J21: 0 | L21: 0 | N21: 0 | P21: 0 | R21: 0 | T21: 0 | V21: 0 | X21: 0 | Z21: 0 | AB21: 0 | AD21: 0 | AF21: 0 | AH21: 0 | AJ21: 0 | AL21: 0 | AN21: 0 | AP21: 0 | AR21: 0 | AT21: 0 | AV21: 0 | AX21: 0 | AZ21: 0 | BB21: 0 | BD21: 0 | BF21: 0 | BH21: 0 | BJ21: 0 | BL21: 0 | BN21: 0 | BP21: 0 | BR21: 0 | BT21: 0 | BV21: 0 | BX21: 0 | BZ21: 0 | CB21: 0 | CD21: 0 | CF21: 0 | CH21: 0
C22: Curve radius (R2), ft: | H22: 0 | J22: 0 | L22: 0 | N22: 0 | P22: 0 | R22: 0 | T22: 0 | V22: 0 | X22: 0 | Z22: 0 | AB22: 0 | AD22: 0 | AF22: 0 | AH22: 0 | AJ22: 0 | AL22: 0 | AN22: 0 | AP22: 0 | AR22: 0 | AT22: 0 | AV22: 0 | AX22: 0 | AZ22: 0 | BB22: 0 | BD22: 0 | BF22: 0 | BH22: 0 | BJ22: 0 | BL22: 0 | BN22: 0 | BP22: 0 | BR22: 0 | BT22: 0 | BV22: 0 | BX22: 0 | BZ22: 0 | CB22: 0 | CD22: 0 | CF22: 0 | CH22: 0
C23: Length of curve (Lc2), mi: | H23: 0 | J23: 0 | L23: 0 | N23: 0 | P23: 0 | R23: 0 | T23: 0 | V23: 0 | X23: 0 | Z23: 0 | AB23: 0 | AD23: 0 | AF23: 0 | AH23: 0 | AJ23: 0 | AL23: 0 | AN23: 0 | AP23: 0 | AR23: 0 | AT23: 0 | AV23: 0 | AX23: 0 | AZ23: 0 | BB23: 0 | BD23: 0 | BF23: 0 | BH23: 0 | BJ23: 0 | BL23: 0 | BN23: 0 | BP23: 0 | BR23: 0 | BT23: 0 | BV23: 0 | BX23: 0 | BZ23: 0 | CB23: 0 | CD23: 0 | CF23: 0 | CH23: 0
C24: Length of curve in segment (Lc2,seg), mi: | H24: 0 | J24: 0 | L24: 0 | N24: 0 | P24: 0 | R24: 0 | T24: 0 | V24: 0 | X24: 0 | Z24: 0 | AB24: 0 | AD24: 0 | AF24: 0 | AH24: 0 | AJ24: 0 | AL24: 0 | AN24: 0 | AP24: 0 | AR24: 0 | AT24: 0 | AV24: 0 | AX24: 0 | AZ24: 0 | BB24: 0 | BD24: 0 | BF24: 0 | BH24: 0 | BJ24: 0 | BL24: 0 | BN24: 0 | BP24: 0 | BR24: 0 | BT24: 0 | BV24: 0 | BX24: 0 | BZ24: 0 | CB24: 0 | CD24: 0 | CF24: 0 | CH24: 0
C25: Ramp-mile of beginning of curve in direction of travel (X2), mi: | H25: 0 | J25: 0 | L25: 0 | N25: 0 | P25: 0 | R25: 0 | T25: 0 | V25: 0 | X25: 0 | Z25: 0 | AB25: 0 | AD25: 0 | AF25: 0 | AH25: 0 | AJ25: 0 | AL25: 0 | AN25: 0 | AP25: 0 | AR25: 0 | AT25: 0 | AV25: 0 | AX25: 0 | AZ25: 0 | BB25: 0 | BD25: 0 | BF25: 0 | BH25: 0 | BJ25: 0 | BL25: 0 | BN25: 0 | BP25: 0 | BR25: 0 | BT25: 0 | BV25: 0 | BX25: 0 | BZ25: 0 | CB25: 0 | CD25: 0 | CF25: 0 | CH25: 0
B26: 3 | C26: Horizontal curve?: | H26: 0 | J26: 0 | L26: 0 | N26: 0 | P26: 0 | R26: 0 | T26: 0 | V26: 0 | X26: 0 | Z26: 0 | AB26: 0 | AD26: 0 | AF26: 0 | AH26: 0 | AJ26: 0 | AL26: 0 | AN26: 0 | AP26: 0 | AR26: 0 | AT26: 0 | AV26: 0 | AX26: 0 | AZ26: 0 | BB26: 0 | BD26: 0 | BF26: 0 | BH26: 0 | BJ26: 0 | BL26: 0 | BN26: 0 | BP26: 0 | BR26: 0 | BT26: 0 | BV26: 0 | BX26: 0 | BZ26: 0 | CB26: 0 | CD26: 0 | CF26: 0 | CH26: 0
C27: Curve radius (R3), ft: | H27: 0 | J27: 0 | L27: 0 | N27: 0 | P27: 0 | R27: 0 | T27: 0 | V27: 0 | X27: 0 | Z27: 0 | AB27: 0 | AD27: 0 | AF27: 0 | AH27: 0 | AJ27: 0 | AL27: 0 | AN27: 0 | AP27: 0 | AR27: 0 | AT27: 0 | AV27: 0 | AX27: 0 | AZ27: 0 | BB27: 0 | BD27: 0 | BF27: 0 | BH27: 0 | BJ27: 0 | BL27: 0 | BN27: 0 | BP27: 0 | BR27: 0 | BT27: 0 | BV27: 0 | BX27: 0 | BZ27: 0 | CB27: 0 | CD27: 0 | CF27: 0 | CH27: 0
C28: Length of curve (Lc3), mi: | H28: 0 | J28: 0 | L28: 0 | N28: 0 | P28: 0 | R28: 0 | T28: 0 | V28: 0 | X28: 0 | Z28: 0 | AB28: 0 | AD28: 0 | AF28: 0 | AH28: 0 | AJ28: 0 | AL28: 0 | AN28: 0 | AP28: 0 | AR28: 0 | AT28: 0 | AV28: 0 | AX28: 0 | AZ28: 0 | BB28: 0 | BD28: 0 | BF28: 0 | BH28: 0 | BJ28: 0 | BL28: 0 | BN28: 0 | BP28: 0 | BR28: 0 | BT28: 0 | BV28: 0 | BX28: 0 | BZ28: 0 | CB28: 0 | CD28: 0 | CF28: 0 | CH28: 0
C29: Length of curve in segment (Lc3,seg), mi: | H29: 0 | J29: 0 | L29: 0 | N29: 0 | P29: 0 | R29: 0 | T29: 0 | V29: 0 | X29: 0 | Z29: 0 | AB29: 0 | AD29: 0 | AF29: 0 | AH29: 0 | AJ29: 0 | AL29: 0 | AN29: 0 | AP29: 0 | AR29: 0 | AT29: 0 | AV29: 0 | AX29: 0 | AZ29: 0 | BB29: 0 | BD29: 0 | BF29: 0 | BH29: 0 | BJ29: 0 | BL29: 0 | BN29: 0 | BP29: 0 | BR29: 0 | BT29: 0 | BV29: 0 | BX29: 0 | BZ29: 0 | CB29: 0 | CD29: 0 | CF29: 0 | CH29: 0
C30: Ramp-mile of beginning of curve in direction of travel (X3), mi: | H30: 0 | J30: 0 | L30: 0 | N30: 0 | P30: 0 | R30: 0 | T30: 0 | V30: 0 | X30: 0 | Z30: 0 | AB30: 0 | AD30: 0 | AF30: 0 | AH30: 0 | AJ30: 0 | AL30: 0 | AN30: 0 | AP30: 0 | AR30: 0 | AT30: 0 | AV30: 0 | AX30: 0 | AZ30: 0 | BB30: 0 | BD30: 0 | BF30: 0 | BH30: 0 | BJ30: 0 | BL30: 0 | BN30: 0 | BP30: 0 | BR30: 0 | BT30: 0 | BV30: 0 | BX30: 0 | BZ30: 0 | CB30: 0 | CD30: 0 | CF30: 0 | CH30: 0
B31: 4 | C31: Horizontal curve?: | H31: 0 | J31: 0 | L31: 0 | N31: 0 | P31: 0 | R31: 0 | T31: 0 | V31: 0 | X31: 0 | Z31: 0 | AB31: 0 | AD31: 0 | AF31: 0 | AH31: 0 | AJ31: 0 | AL31: 0 | AN31: 0 | AP31: 0 | AR31: 0 | AT31: 0 | AV31: 0 | AX31: 0 | AZ31: 0 | BB31: 0 | BD31: 0 | BF31: 0 | BH31: 0 | BJ31: 0 | BL31: 0 | BN31: 0 | BP31: 0 | BR31: 0 | BT31: 0 | BV31: 0 | BX31: 0 | BZ31: 0 | CB31: 0 | CD31: 0 | CF31: 0 | CH31: 0
C32: Curve radius (R4), ft: | H32: 0 | J32: 0 | L32: 0 | N32: 0 | P32: 0 | R32: 0 | T32: 0 | V32: 0 | X32: 0 | Z32: 0 | AB32: 0 | AD32: 0 | AF32: 0 | AH32: 0 | AJ32: 0 | AL32: 0 | AN32: 0 | AP32: 0 | AR32: 0 | AT32: 0 | AV32: 0 | AX32: 0 | AZ32: 0 | BB32: 0 | BD32: 0 | BF32: 0 | BH32: 0 | BJ32: 0 | BL32: 0 | BN32: 0 | BP32: 0 | BR32: 0 | BT32: 0 | BV32: 0 | BX32: 0 | BZ32: 0 | CB32: 0 | CD32: 0 | CF32: 0 | CH32: 0
C33: Length of curve (Lc4), mi: | H33: 0 | J33: 0 | L33: 0 | N33: 0 | P33: 0 | R33: 0 | T33: 0 | V33: 0 | X33: 0 | Z33: 0 | AB33: 0 | AD33: 0 | AF33: 0 | AH33: 0 | AJ33: 0 | AL33: 0 | AN33: 0 | AP33: 0 | AR33: 0 | AT33: 0 | AV33: 0 | AX33: 0 | AZ33: 0 | BB33: 0 | BD33: 0 | BF33: 0 | BH33: 0 | BJ33: 0 | BL33: 0 | BN33: 0 | BP33: 0 | BR33: 0 | BT33: 0 | BV33: 0 | BX33: 0 | BZ33: 0 | CB33: 0 | CD33: 0 | CF33: 0 | CH33: 0
C34: Length of curve in segment (Lc4,seg), mi: | H34: 0 | J34: 0 | L34: 0 | N34: 0 | P34: 0 | R34: 0 | T34: 0 | V34: 0 | X34: 0 | Z34: 0 | AB34: 0 | AD34: 0 | AF34: 0 | AH34: 0 | AJ34: 0 | AL34: 0 | AN34: 0 | AP34: 0 | AR34: 0 | AT34: 0 | AV34: 0 | AX34: 0 | AZ34: 0 | BB34: 0 | BD34: 0 | BF34: 0 | BH34: 0 | BJ34: 0 | BL34: 0 | BN34: 0 | BP34: 0 | BR34: 0 | BT34: 0 | BV34: 0 | BX34: 0 | BZ34: 0 | CB34: 0 | CD34: 0 | CF34: 0 | CH34: 0
C35: Ramp-mile of beginning of curve in direction of travel (X4), mi: | H35: 0 | J35: 0 | L35: 0 | N35: 0 | P35: 0 | R35: 0 | T35: 0 | V35: 0 | X35: 0 | Z35: 0 | AB35: 0 | AD35: 0 | AF35: 0 | AH35: 0 | AJ35: 0 | AL35: 0 | AN35: 0 | AP35: 0 | AR35: 0 | AT35: 0 | AV35: 0 | AX35: 0 | AZ35: 0 | BB35: 0 | BD35: 0 | BF35: 0 | BH35: 0 | BJ35: 0 | BL35: 0 | BN35: 0 | BP35: 0 | BR35: 0 | BT35: 0 | BV35: 0 | BX35: 0 | BZ35: 0 | CB35: 0 | CD35: 0 | CF35: 0 | CH35: 0
B36: 5 | C36: Horizontal curve?: | H36: 0 | J36: 0 | L36: 0 | N36: 0 | P36: 0 | R36: 0 | T36: 0 | V36: 0 | X36: 0 | Z36: 0 | AB36: 0 | AD36: 0 | AF36: 0 | AH36: 0 | AJ36: 0 | AL36: 0 | AN36: 0 | AP36: 0 | AR36: 0 | AT36: 0 | AV36: 0 | AX36: 0 | AZ36: 0 | BB36: 0 | BD36: 0 | BF36: 0 | BH36: 0 | BJ36: 0 | BL36: 0 | BN36: 0 | BP36: 0 | BR36: 0 | BT36: 0 | BV36: 0 | BX36: 0 | BZ36: 0 | CB36: 0 | CD36: 0 | CF36: 0 | CH36: 0
C37: Curve radius (R5), ft: | H37: 0 | J37: 0 | L37: 0 | N37: 0 | P37: 0 | R37: 0 | T37: 0 | V37: 0 | X37: 0 | Z37: 0 | AB37: 0 | AD37: 0 | AF37: 0 | AH37: 0 | AJ37: 0 | AL37: 0 | AN37: 0 | AP37: 0 | AR37: 0 | AT37: 0 | AV37: 0 | AX37: 0 | AZ37: 0 | BB37: 0 | BD37: 0 | BF37: 0 | BH37: 0 | BJ37: 0 | BL37: 0 | BN37: 0 | BP37: 0 | BR37: 0 | BT37: 0 | BV37: 0 | BX37: 0 | BZ37: 0 | CB37: 0 | CD37: 0 | CF37: 0 | CH37: 0
C38: Length of curve (Lc5), mi: | H38: 0 | J38: 0 | L38: 0 | N38: 0 | P38: 0 | R38: 0 | T38: 0 | V38: 0 | X38: 0 | Z38: 0 | AB38: 0 | AD38: 0 | AF38: 0 | AH38: 0 | AJ38: 0 | AL38: 0 | AN38: 0 | AP38: 0 | AR38: 0 | AT38: 0 | AV38: 0 | AX38: 0 | AZ38: 0 | BB38: 0 | BD38: 0 | BF38: 0 | BH38: 0 | BJ38: 0 | BL38: 0 | BN38: 0 | BP38: 0 | BR38: 0 | BT38: 0 | BV38: 0 | BX38: 0 | BZ38: 0 | CB38: 0 | CD38: 0 | CF38: 0 | CH38: 0
C39: Length of curve in segment (Lc5,seg), mi: | H39: 0 | J39: 0 | L39: 0 | N39: 0 | P39: 0 | R39: 0 | T39: 0 | V39: 0 | X39: 0 | Z39: 0 | AB39: 0 | AD39: 0 | AF39: 0 | AH39: 0 | AJ39: 0 | AL39: 0 | AN39: 0 | AP39: 0 | AR39: 0 | AT39: 0 | AV39: 0 | AX39: 0 | AZ39: 0 | BB39: 0 | BD39: 0 | BF39: 0 | BH39: 0 | BJ39: 0 | BL39: 0 | BN39: 0 | BP39: 0 | BR39: 0 | BT39: 0 | BV39: 0 | BX39: 0 | BZ39: 0 | CB39: 0 | CD39: 0 | CF39: 0 | CH39: 0
C40: Ramp-mile of beginning of curve in direction of travel (X5), mi: | H40: 0 | J40: 0 | L40: 0 | N40: 0 | P40: 0 | R40: 0 | T40: 0 | V40: 0 | X40: 0 | Z40: 0 | AB40: 0 | AD40: 0 | AF40: 0 | AH40: 0 | AJ40: 0 | AL40: 0 | AN40: 0 | AP40: 0 | AR40: 0 | AT40: 0 | AV40: 0 | AX40: 0 | AZ40: 0 | BB40: 0 | BD40: 0 | BF40: 0 | BH40: 0 | BJ40: 0 | BL40: 0 | BN40: 0 | BP40: 0 | BR40: 0 | BT40: 0 | BV40: 0 | BX40: 0 | BZ40: 0 | CB40: 0 | CD40: 0 | CF40: 0 | CH40: 0
B41: Cross Section Data
B42: Lane width (Wl), ft: | G42: 14 | H42: =G42 -> 14 | I42: 14 | J42: =I42 -> 14 | K42: 14 | L42: =K42 -> 14 | M42: 14 | N42: =M42 -> 14 | O42: 14 | P42: =O42 -> 14 | Q42: 14 | R42: =Q42 -> 14 | S42: 14 | T42: =S42 -> 14 | U42: 14 | V42: =U42 -> 14 | X42: =W42 -> 0 | Z42: =Y42 -> 0 | AB42: =AA42 -> 0 | AD42: =AC42 -> 0 | AF42: =AE42 -> 0 | AH42: =AG42 -> 0 | AJ42: =AI42 -> 0 | AL42: =AK42 -> 0 | AN42: =AM42 -> 0 | AP42: =AO42 -> 0 | AR42: =AQ42 -> 0 | AT42: =AS42 -> 0 | AV42: =AU42 -> 0 | AX42: =AW42 -> 0 | AZ42: =AY42 -> 0 | BB42: =BA42 -> 0 | BD42: =BC42 -> 0 | BF42: =BE42 -> 0 | BH42: =BG42 -> 0 | BJ42: =BI42 -> 0 | BL42: =BK42 -> 0 | BN42: =BM42 -> 0 | BP42: =BO42 -> 0 | BR42: =BQ42 -> 0 | BT42: =BS42 -> 0 | BV42: =BU42 -> 0 | BX42: =BW42 -> 0 | BZ42: =BY42 -> 0 | CB42: =CA42 -> 0 | CD42: =CC42 -> 0 | CF42: =CE42 -> 0 | CH42: =CG42 -> 0
B43: Right shoulder width (Wrs), ft: | G43: 8 | H43: =G43 -> 8 | I43: 8 | J43: =I43 -> 8 | K43: 8 | L43: =K43 -> 8 | M43: 8 | N43: =M43 -> 8 | O43: 8 | P43: =O43 -> 8 | Q43: 8 | R43: =Q43 -> 8 | S43: 8 | T43: =S43 -> 8 | U43: 8 | V43: =U43 -> 8 | X43: =W43 -> 0 | Z43: =Y43 -> 0 | AB43: =AA43 -> 0 | AD43: =AC43 -> 0 | AF43: =AE43 -> 0 | AH43: =AG43 -> 0 | AJ43: =AI43 -> 0 | AL43: =AK43 -> 0 | AN43: =AM43 -> 0 | AP43: =AO43 -> 0 | AR43: =AQ43 -> 0 | AT43: =AS43 -> 0 | AV43: =AU43 -> 0 | AX43: =AW43 -> 0 | AZ43: =AY43 -> 0 | BB43: =BA43 -> 0 | BD43: =BC43 -> 0 | BF43: =BE43 -> 0 | BH43: =BG43 -> 0 | BJ43: =BI43 -> 0 | BL43: =BK43 -> 0 | BN43: =BM43 -> 0 | BP43: =BO43 -> 0 | BR43: =BQ43 -> 0 | BT43: =BS43 -> 0 | BV43: =BU43 -> 0 | BX43: =BW43 -> 0 | BZ43: =BY43 -> 0 | CB43: =CA43 -> 0 | CD43: =CC43 -> 0 | CF43: =CE43 -> 0 | CH43: =CG43 -> 0
B44: Left shoulder width (Wls), ft: | G44: 4 | H44: =G44 -> 4 | I44: 4 | J44: =I44 -> 4 | K44: 4 | L44: =K44 -> 4 | M44: 4 | N44: =M44 -> 4 | O44: 4 | P44: =O44 -> 4 | Q44: 4 | R44: =Q44 -> 4 | S44: 4 | T44: =S44 -> 4 | U44: 4 | V44: =U44 -> 4 | X44: =W44 -> 0 | Z44: =Y44 -> 0 | AB44: =AA44 -> 0 | AD44: =AC44 -> 0 | AF44: =AE44 -> 0 | AH44: =AG44 -> 0 | AJ44: =AI44 -> 0 | AL44: =AK44 -> 0 | AN44: =AM44 -> 0 | AP44: =AO44 -> 0 | AR44: =AQ44 -> 0 | AT44: =AS44 -> 0 | AV44: =AU44 -> 0 | AX44: =AW44 -> 0 | AZ44: =AY44 -> 0 | BB44: =BA44 -> 0 | BD44: =BC44 -> 0 | BF44: =BE44 -> 0 | BH44: =BG44 -> 0 | BJ44: =BI44 -> 0 | BL44: =BK44 -> 0 | BN44: =BM44 -> 0 | BP44: =BO44 -> 0 | BR44: =BQ44 -> 0 | BT44: =BS44 -> 0 | BV44: =BU44 -> 0 | BX44: =BW44 -> 0 | BZ44: =BY44 -> 0 | CB44: =CA44 -> 0 | CD44: =CC44 -> 0 | CF44: =CE44 -> 0 | CH44: =CG44 -> 0
B45: Presence of lane add or lane drop by taper: | G45: No | H45: =G45 -> No | I45: No | J45: =I45 -> No | K45: No | L45: =K45 -> No | M45: No | N45: =M45 -> No | O45: No | P45: =O45 -> No | Q45: No | R45: =Q45 -> No | S45: No | T45: =S45 -> No | U45: No | V45: =U45 -> No | X45: =W45 -> 0 | Z45: =Y45 -> 0 | AB45: =AA45 -> 0 | AD45: =AC45 -> 0 | AF45: =AE45 -> 0 | AH45: =AG45 -> 0 | AJ45: =AI45 -> 0 | AL45: =AK45 -> 0 | AN45: =AM45 -> 0 | AP45: =AO45 -> 0 | AR45: =AQ45 -> 0 | AT45: =AS45 -> 0 | AV45: =AU45 -> 0 | AX45: =AW45 -> 0 | AZ45: =AY45 -> 0 | BB45: =BA45 -> 0 | BD45: =BC45 -> 0 | BF45: =BE45 -> 0 | BH45: =BG45 -> 0 | BJ45: =BI45 -> 0 | BL45: =BK45 -> 0 | BN45: =BM45 -> 0 | BP45: =BO45 -> 0 | BR45: =BQ45 -> 0 | BT45: =BS45 -> 0 | BV45: =BU45 -> 0 | BX45: =BW45 -> 0 | BZ45: =BY45 -> 0 | CB45: =CA45 -> 0 | CD45: =CC45 -> 0 | CF45: =CE45 -> 0 | CH45: =CG45 -> 0
C46: Length of taper in segment (Ladd,seg or Ldrop,seg), mi: | H46: =G46 -> 0 | J46: =I46 -> 0 | L46: =K46 -> 0 | N46: =M46 -> 0 | P46: =O46 -> 0 | R46: =Q46 -> 0 | T46: =S46 -> 0 | V46: =U46 -> 0 | X46: =W46 -> 0 | Z46: =Y46 -> 0 | AB46: =AA46 -> 0 | AD46: =AC46 -> 0 | AF46: =AE46 -> 0 | AH46: =AG46 -> 0 | AJ46: =AI46 -> 0 | AL46: =AK46 -> 0 | AN46: =AM46 -> 0 | AP46: =AO46 -> 0 | AR46: =AQ46 -> 0 | AT46: =AS46 -> 0 | AV46: =AU46 -> 0 | AX46: =AW46 -> 0 | AZ46: =AY46 -> 0 | BB46: =BA46 -> 0 | BD46: =BC46 -> 0 | BF46: =BE46 -> 0 | BH46: =BG46 -> 0 | BJ46: =BI46 -> 0 | BL46: =BK46 -> 0 | BN46: =BM46 -> 0 | BP46: =BO46 -> 0 | BR46: =BQ46 -> 0 | BT46: =BS46 -> 0 | BV46: =BU46 -> 0 | BX46: =BW46 -> 0 | BZ46: =BY46 -> 0 | CB46: =CA46 -> 0 | CD46: =CC46 -> 0 | CF46: =CE46 -> 0 | CH46: =CG46 -> 0
B47: Roadside Data
B48: Presence of barrier on right side of roadway: | G48: No | H48: =G48 -> No | I48: No | J48: =I48 -> No | K48: No | L48: =K48 -> No | M48: No | N48: =M48 -> No | O48: No | P48: =O48 -> No | Q48: No | R48: =Q48 -> No | S48: No | T48: =S48 -> No | U48: No | V48: =U48 -> No | X48: =W48 -> 0 | Z48: =Y48 -> 0 | AB48: =AA48 -> 0 | AD48: =AC48 -> 0 | AF48: =AE48 -> 0 | AH48: =AG48 -> 0 | AJ48: =AI48 -> 0 | AL48: =AK48 -> 0 | AN48: =AM48 -> 0 | AP48: =AO48 -> 0 | AR48: =AQ48 -> 0 | AT48: =AS48 -> 0 | AV48: =AU48 -> 0 | AX48: =AW48 -> 0 | AZ48: =AY48 -> 0 | BB48: =BA48 -> 0 | BD48: =BC48 -> 0 | BF48: =BE48 -> 0 | BH48: =BG48 -> 0 | BJ48: =BI48 -> 0 | BL48: =BK48 -> 0 | BN48: =BM48 -> 0 | BP48: =BO48 -> 0 | BR48: =BQ48 -> 0 | BT48: =BS48 -> 0 | BV48: =BU48 -> 0 | BX48: =BW48 -> 0 | BZ48: =BY48 -> 0 | CB48: =CA48 -> 0 | CD48: =CC48 -> 0 | CF48: =CE48 -> 0 | CH48: =CG48 -> 0
B49: 1 | C49: Length of barrier (Lrb,1), mi: | H49: 0 | J49: 0 | L49: 0 | N49: 0 | P49: 0 | R49: 0 | T49: 0 | V49: 0 | X49: 0 | Z49: 0 | AB49: 0 | AD49: 0 | AF49: 0 | AH49: 0 | AJ49: 0 | AL49: 0 | AN49: 0 | AP49: 0 | AR49: 0 | AT49: 0 | AV49: 0 | AX49: 0 | AZ49: 0 | BB49: 0 | BD49: 0 | BF49: 0 | BH49: 0 | BJ49: 0 | BL49: 0 | BN49: 0 | BP49: 0 | BR49: 0 | BT49: 0 | BV49: 0 | BX49: 0 | BZ49: 0 | CB49: 0 | CD49: 0 | CF49: 0 | CH49: 0
C50: Distance from edge of traveled way to barrier face (Woff,r,1), ft: | H50: 0 | J50: 0 | L50: 0 | N50: 0 | P50: 0 | R50: 0 | T50: 0 | V50: 0 | X50: 0 | Z50: 0 | AB50: 0 | AD50: 0 | AF50: 0 | AH50: 0 | AJ50: 0 | AL50: 0 | AN50: 0 | AP50: 0 | AR50: 0 | AT50: 0 | AV50: 0 | AX50: 0 | AZ50: 0 | BB50: 0 | BD50: 0 | BF50: 0 | BH50: 0 | BJ50: 0 | BL50: 0 | BN50: 0 | BP50: 0 | BR50: 0 | BT50: 0 | BV50: 0 | BX50: 0 | BZ50: 0 | CB50: 0 | CD50: 0 | CF50: 0 | CH50: 0
B51: 2 | C51: Length of barrier (Lrb,2), mi: | H51: 0 | J51: 0 | L51: 0 | N51: 0 | P51: 0 | R51: 0 | T51: 0 | V51: 0 | X51: 0 | Z51: 0 | AB51: 0 | AD51: 0 | AF51: 0 | AH51: 0 | AJ51: 0 | AL51: 0 | AN51: 0 | AP51: 0 | AR51: 0 | AT51: 0 | AV51: 0 | AX51: 0 | AZ51: 0 | BB51: 0 | BD51: 0 | BF51: 0 | BH51: 0 | BJ51: 0 | BL51: 0 | BN51: 0 | BP51: 0 | BR51: 0 | BT51: 0 | BV51: 0 | BX51: 0 | BZ51: 0 | CB51: 0 | CD51: 0 | CF51: 0 | CH51: 0
C52: Distance from edge of traveled way to barrier face (Woff,r,2), ft: | H52: 0 | J52: 0 | L52: 0 | N52: 0 | P52: 0 | R52: 0 | T52: 0 | V52: 0 | X52: 0 | Z52: 0 | AB52: 0 | AD52: 0 | AF52: 0 | AH52: 0 | AJ52: 0 | AL52: 0 | AN52: 0 | AP52: 0 | AR52: 0 | AT52: 0 | AV52: 0 | AX52: 0 | AZ52: 0 | BB52: 0 | BD52: 0 | BF52: 0 | BH52: 0 | BJ52: 0 | BL52: 0 | BN52: 0 | BP52: 0 | BR52: 0 | BT52: 0 | BV52: 0 | BX52: 0 | BZ52: 0 | CB52: 0 | CD52: 0 | CF52: 0 | CH52: 0
B53: 3 | C53: Length of barrier (Lrb,3), mi: | H53: 0 | J53: 0 | L53: 0 | N53: 0 | P53: 0 | R53: 0 | T53: 0 | V53: 0 | X53: 0 | Z53: 0 | AB53: 0 | AD53: 0 | AF53: 0 | AH53: 0 | AJ53: 0 | AL53: 0 | AN53: 0 | AP53: 0 | AR53: 0 | AT53: 0 | AV53: 0 | AX53: 0 | AZ53: 0 | BB53: 0 | BD53: 0 | BF53: 0 | BH53: 0 | BJ53: 0 | BL53: 0 | BN53: 0 | BP53: 0 | BR53: 0 | BT53: 0 | BV53: 0 | BX53: 0 | BZ53: 0 | CB53: 0 | CD53: 0 | CF53: 0 | CH53: 0
C54: Distance from edge of traveled way to barrier face (Woff,r,3), ft: | H54: 0 | J54: 0 | L54: 0 | N54: 0 | P54: 0 | R54: 0 | T54: 0 | V54: 0 | X54: 0 | Z54: 0 | AB54: 0 | AD54: 0 | AF54: 0 | AH54: 0 | AJ54: 0 | AL54: 0 | AN54: 0 | AP54: 0 | AR54: 0 | AT54: 0 | AV54: 0 | AX54: 0 | AZ54: 0 | BB54: 0 | BD54: 0 | BF54: 0 | BH54: 0 | BJ54: 0 | BL54: 0 | BN54: 0 | BP54: 0 | BR54: 0 | BT54: 0 | BV54: 0 | BX54: 0 | BZ54: 0 | CB54: 0 | CD54: 0 | CF54: 0 | CH54: 0
B55: 4 | C55: Length of barrier (Lrb,4), mi: | H55: 0 | J55: 0 | L55: 0 | N55: 0 | P55: 0 | R55: 0 | T55: 0 | V55: 0 | X55: 0 | Z55: 0 | AB55: 0 | AD55: 0 | AF55: 0 | AH55: 0 | AJ55: 0 | AL55: 0 | AN55: 0 | AP55: 0 | AR55: 0 | AT55: 0 | AV55: 0 | AX55: 0 | AZ55: 0 | BB55: 0 | BD55: 0 | BF55: 0 | BH55: 0 | BJ55: 0 | BL55: 0 | BN55: 0 | BP55: 0 | BR55: 0 | BT55: 0 | BV55: 0 | BX55: 0 | BZ55: 0 | CB55: 0 | CD55: 0 | CF55: 0 | CH55: 0
C56: Distance from edge of traveled way to barrier face (Woff,r,4), ft: | H56: 0 | J56: 0 | L56: 0 | N56: 0 | P56: 0 | R56: 0 | T56: 0 | V56: 0 | X56: 0 | Z56: 0 | AB56: 0 | AD56: 0 | AF56: 0 | AH56: 0 | AJ56: 0 | AL56: 0 | AN56: 0 | AP56: 0 | AR56: 0 | AT56: 0 | AV56: 0 | AX56: 0 | AZ56: 0 | BB56: 0 | BD56: 0 | BF56: 0 | BH56: 0 | BJ56: 0 | BL56: 0 | BN56: 0 | BP56: 0 | BR56: 0 | BT56: 0 | BV56: 0 | BX56: 0 | BZ56: 0 | CB56: 0 | CD56: 0 | CF56: 0 | CH56: 0
B57: 5 | C57: Length of barrier (Lrb,5), mi: | H57: 0 | J57: 0 | L57: 0 | N57: 0 | P57: 0 | R57: 0 | T57: 0 | V57: 0 | X57: 0 | Z57: 0 | AB57: 0 | AD57: 0 | AF57: 0 | AH57: 0 | AJ57: 0 | AL57: 0 | AN57: 0 | AP57: 0 | AR57: 0 | AT57: 0 | AV57: 0 | AX57: 0 | AZ57: 0 | BB57: 0 | BD57: 0 | BF57: 0 | BH57: 0 | BJ57: 0 | BL57: 0 | BN57: 0 | BP57: 0 | BR57: 0 | BT57: 0 | BV57: 0 | BX57: 0 | BZ57: 0 | CB57: 0 | CD57: 0 | CF57: 0 | CH57: 0
C58: Distance from edge of traveled way to barrier face (Woff,r,5), ft: | H58: 0 | J58: 0 | L58: 0 | N58: 0 | P58: 0 | R58: 0 | T58: 0 | V58: 0 | X58: 0 | Z58: 0 | AB58: 0 | AD58: 0 | AF58: 0 | AH58: 0 | AJ58: 0 | AL58: 0 | AN58: 0 | AP58: 0 | AR58: 0 | AT58: 0 | AV58: 0 | AX58: 0 | AZ58: 0 | BB58: 0 | BD58: 0 | BF58: 0 | BH58: 0 | BJ58: 0 | BL58: 0 | BN58: 0 | BP58: 0 | BR58: 0 | BT58: 0 | BV58: 0 | BX58: 0 | BZ58: 0 | CB58: 0 | CD58: 0 | CF58: 0 | CH58: 0
B59: Presence of barrier on left side of roadway: | G59: No | H59: No | I59: No | J59: No | K59: No | L59: No | M59: No | N59: No | O59: No | P59: No | Q59: No | R59: No | S59: No | T59: No | U59: No | V59: No | X59: 0 | Z59: 0 | AB59: 0 | AD59: 0 | AF59: 0 | AH59: 0 | AJ59: 0 | AL59: 0 | AN59: 0 | AP59: 0 | AR59: 0 | AT59: 0 | AV59: 0 | AX59: 0 | AZ59: 0 | BB59: 0 | BD59: 0 | BF59: 0 | BH59: 0 | BJ59: 0 | BL59: 0 | BN59: 0 | BP59: 0 | BR59: 0 | BT59: 0 | BV59: 0 | BX59: 0 | BZ59: 0 | CB59: 0 | CD59: 0 | CF59: 0 | CH59: 0
B60: 1 | C60: Length of barrier (Llb,1), mi: | H60: 0 | J60: 0 | L60: 0 | N60: 0 | P60: 0 | R60: 0 | T60: 0 | V60: 0 | X60: 0 | Z60: 0 | AB60: 0 | AD60: 0 | AF60: 0 | AH60: 0 | AJ60: 0 | AL60: 0 | AN60: 0 | AP60: 0 | AR60: 0 | AT60: 0 | AV60: 0 | AX60: 0 | AZ60: 0 | BB60: 0 | BD60: 0 | BF60: 0 | BH60: 0 | BJ60: 0 | BL60: 0 | BN60: 0 | BP60: 0 | BR60: 0 | BT60: 0 | BV60: 0 | BX60: 0 | BZ60: 0 | CB60: 0 | CD60: 0 | CF60: 0 | CH60: 0
C61: Distance from edge of traveled way to barrier face (Woff,l,1), ft: | H61: 0 | J61: 0 | L61: 0 | N61: 0 | P61: 0 | R61: 0 | T61: 0 | V61: 0 | X61: 0 | Z61: 0 | AB61: 0 | AD61: 0 | AF61: 0 | AH61: 0 | AJ61: 0 | AL61: 0 | AN61: 0 | AP61: 0 | AR61: 0 | AT61: 0 | AV61: 0 | AX61: 0 | AZ61: 0 | BB61: 0 | BD61: 0 | BF61: 0 | BH61: 0 | BJ61: 0 | BL61: 0 | BN61: 0 | BP61: 0 | BR61: 0 | BT61: 0 | BV61: 0 | BX61: 0 | BZ61: 0 | CB61: 0 | CD61: 0 | CF61: 0 | CH61: 0
B62: 2 | C62: Length of barrier (Llb,2), mi: | H62: 0 | J62: 0 | L62: 0 | N62: 0 | P62: 0 | R62: 0 | T62: 0 | V62: 0 | X62: 0 | Z62: 0 | AB62: 0 | AD62: 0 | AF62: 0 | AH62: 0 | AJ62: 0 | AL62: 0 | AN62: 0 | AP62: 0 | AR62: 0 | AT62: 0 | AV62: 0 | AX62: 0 | AZ62: 0 | BB62: 0 | BD62: 0 | BF62: 0 | BH62: 0 | BJ62: 0 | BL62: 0 | BN62: 0 | BP62: 0 | BR62: 0 | BT62: 0 | BV62: 0 | BX62: 0 | BZ62: 0 | CB62: 0 | CD62: 0 | CF62: 0 | CH62: 0
C63: Distance from edge of traveled way to barrier face (Woff,l,2), ft: | H63: 0 | J63: 0 | L63: 0 | N63: 0 | P63: 0 | R63: 0 | T63: 0 | V63: 0 | X63: 0 | Z63: 0 | AB63: 0 | AD63: 0 | AF63: 0 | AH63: 0 | AJ63: 0 | AL63: 0 | AN63: 0 | AP63: 0 | AR63: 0 | AT63: 0 | AV63: 0 | AX63: 0 | AZ63: 0 | BB63: 0 | BD63: 0 | BF63: 0 | BH63: 0 | BJ63: 0 | BL63: 0 | BN63: 0 | BP63: 0 | BR63: 0 | BT63: 0 | BV63: 0 | BX63: 0 | BZ63: 0 | CB63: 0 | CD63: 0 | CF63: 0 | CH63: 0
B64: 3 | C64: Length of barrier (Llb,3), mi: | H64: 0 | J64: 0 | L64: 0 | N64: 0 | P64: 0 | R64: 0 | T64: 0 | V64: 0 | X64: 0 | Z64: 0 | AB64: 0 | AD64: 0 | AF64: 0 | AH64: 0 | AJ64: 0 | AL64: 0 | AN64: 0 | AP64: 0 | AR64: 0 | AT64: 0 | AV64: 0 | AX64: 0 | AZ64: 0 | BB64: 0 | BD64: 0 | BF64: 0 | BH64: 0 | BJ64: 0 | BL64: 0 | BN64: 0 | BP64: 0 | BR64: 0 | BT64: 0 | BV64: 0 | BX64: 0 | BZ64: 0 | CB64: 0 | CD64: 0 | CF64: 0 | CH64: 0
C65: Distance from edge of traveled way to barrier face (Woff,l,3), ft: | H65: 0 | J65: 0 | L65: 0 | N65: 0 | P65: 0 | R65: 0 | T65: 0 | V65: 0 | X65: 0 | Z65: 0 | AB65: 0 | AD65: 0 | AF65: 0 | AH65: 0 | AJ65: 0 | AL65: 0 | AN65: 0 | AP65: 0 | AR65: 0 | AT65: 0 | AV65: 0 | AX65: 0 | AZ65: 0 | BB65: 0 | BD65: 0 | BF65: 0 | BH65: 0 | BJ65: 0 | BL65: 0 | BN65: 0 | BP65: 0 | BR65: 0 | BT65: 0 | BV65: 0 | BX65: 0 | BZ65: 0 | CB65: 0 | CD65: 0 | CF65: 0 | CH65: 0
B66: 4 | C66: Length of barrier (Llb,4), mi: | H66: 0 | J66: 0 | L66: 0 | N66: 0 | P66: 0 | R66: 0 | T66: 0 | V66: 0 | X66: 0 | Z66: 0 | AB66: 0 | AD66: 0 | AF66: 0 | AH66: 0 | AJ66: 0 | AL66: 0 | AN66: 0 | AP66: 0 | AR66: 0 | AT66: 0 | AV66: 0 | AX66: 0 | AZ66: 0 | BB66: 0 | BD66: 0 | BF66: 0 | BH66: 0 | BJ66: 0 | BL66: 0 | BN66: 0 | BP66: 0 | BR66: 0 | BT66: 0 | BV66: 0 | BX66: 0 | BZ66: 0 | CB66: 0 | CD66: 0 | CF66: 0 | CH66: 0
C67: Distance from edge of traveled way to barrier face (Woff,l,4), ft: | H67: 0 | J67: 0 | L67: 0 | N67: 0 | P67: 0 | R67: 0 | T67: 0 | V67: 0 | X67: 0 | Z67: 0 | AB67: 0 | AD67: 0 | AF67: 0 | AH67: 0 | AJ67: 0 | AL67: 0 | AN67: 0 | AP67: 0 | AR67: 0 | AT67: 0 | AV67: 0 | AX67: 0 | AZ67: 0 | BB67: 0 | BD67: 0 | BF67: 0 | BH67: 0 | BJ67: 0 | BL67: 0 | BN67: 0 | BP67: 0 | BR67: 0 | BT67: 0 | BV67: 0 | BX67: 0 | BZ67: 0 | CB67: 0 | CD67: 0 | CF67: 0 | CH67: 0
B68: 5 | C68: Length of barrier (Llb,5), mi: | H68: 0 | J68: 0 | L68: 0 | N68: 0 | P68: 0 | R68: 0 | T68: 0 | V68: 0 | X68: 0 | Z68: 0 | AB68: 0 | AD68: 0 | AF68: 0 | AH68: 0 | AJ68: 0 | AL68: 0 | AN68: 0 | AP68: 0 | AR68: 0 | AT68: 0 | AV68: 0 | AX68: 0 | AZ68: 0 | BB68: 0 | BD68: 0 | BF68: 0 | BH68: 0 | BJ68: 0 | BL68: 0 | BN68: 0 | BP68: 0 | BR68: 0 | BT68: 0 | BV68: 0 | BX68: 0 | BZ68: 0 | CB68: 0 | CD68: 0 | CF68: 0 | CH68: 0
C69: Distance from edge of traveled way to barrier face (Woff,l,5), ft: | H69: 0 | J69: 0 | L69: 0 | N69: 0 | P69: 0 | R69: 0 | T69: 0 | V69: 0 | X69: 0 | Z69: 0 | AB69: 0 | AD69: 0 | AF69: 0 | AH69: 0 | AJ69: 0 | AL69: 0 | AN69: 0 | AP69: 0 | AR69: 0 | AT69: 0 | AV69: 0 | AX69: 0 | AZ69: 0 | BB69: 0 | BD69: 0 | BF69: 0 | BH69: 0 | BJ69: 0 | BL69: 0 | BN69: 0 | BP69: 0 | BR69: 0 | BT69: 0 | BV69: 0 | BX69: 0 | BZ69: 0 | CB69: 0 | CD69: 0 | CF69: 0 | CH69: 0
B70: Ramp Access Data | E70: See note
B71: Ramp | C71: Ramp entrance in segment? (If yes, indicate type.): | G71: No | H71: =G71 -> No | I71: No | J71: =I71 -> No | K71: No | L71: =K71 -> No | M71: No | N71: =M71 -> No | O71: No | P71: =O71 -> No | Q71: No | R71: =Q71 -> No | S71: No | T71: =S71 -> No | U71: No | V71: =U71 -> No | X71: =W71 -> 0 | Z71: =Y71 -> 0 | AB71: =AA71 -> 0 | AD71: =AC71 -> 0 | AF71: =AE71 -> 0 | AH71: =AG71 -> 0 | AJ71: =AI71 -> 0 | AL71: =AK71 -> 0 | AN71: =AM71 -> 0 | AP71: =AO71 -> 0 | AR71: =AQ71 -> 0 | AT71: =AS71 -> 0 | AV71: =AU71 -> 0 | AX71: =AW71 -> 0 | AZ71: =AY71 -> 0 | BB71: =BA71 -> 0 | BD71: =BC71 -> 0 | BF71: =BE71 -> 0 | BH71: =BG71 -> 0 | BJ71: =BI71 -> 0 | BL71: =BK71 -> 0 | BN71: =BM71 -> 0 | BP71: =BO71 -> 0 | BR71: =BQ71 -> 0 | BT71: =BS71 -> 0 | BV71: =BU71 -> 0 | BX71: =BW71 -> 0 | BZ71: =BY71 -> 0 | CB71: =CA71 -> 0 | CD71: =CC71 -> 0 | CF71: =CE71 -> 0 | CH71: =CG71 -> 0
B72: Entrance | C72: Length of entrance s-c lane in segment (Len,seg), mi: | H72: 0 | J72: 0 | L72: 0 | N72: 0 | P72: 0 | R72: 0 | T72: 0 | V72: 0 | X72: 0 | Z72: 0 | AB72: 0 | AD72: 0 | AF72: 0 | AH72: 0 | AJ72: 0 | AL72: 0 | AN72: 0 | AP72: 0 | AR72: 0 | AT72: 0 | AV72: 0 | AX72: 0 | AZ72: 0 | BB72: 0 | BD72: 0 | BF72: 0 | BH72: 0 | BJ72: 0 | BL72: 0 | BN72: 0 | BP72: 0 | BR72: 0 | BT72: 0 | BV72: 0 | BX72: 0 | BZ72: 0 | CB72: 0 | CD72: 0 | CF72: 0 | CH72: 0
B73: Ramp | C73: Ramp exit in segment? (If yes, indicate type.): | G73: No | H73: No | I73: No | J73: No | K73: No | L73: No | M73: No | N73: No | O73: No | P73: No | Q73: No | R73: No | S73: No | T73: No | U73: No | V73: No | X73: 0 | Z73: 0 | AB73: 0 | AD73: 0 | AF73: 0 | AH73: 0 | AJ73: 0 | AL73: 0 | AN73: 0 | AP73: 0 | AR73: 0 | AT73: 0 | AV73: 0 | AX73: 0 | AZ73: 0 | BB73: 0 | BD73: 0 | BF73: 0 | BH73: 0 | BJ73: 0 | BL73: 0 | BN73: 0 | BP73: 0 | BR73: 0 | BT73: 0 | BV73: 0 | BX73: 0 | BZ73: 0 | CB73: 0 | CD73: 0 | CF73: 0 | CH73: 0
B74: Exit | C74: Length of exit s-c lane in segment (Lex,seg), mi: | H74: 0 | J74: 0 | L74: 0 | N74: 0 | P74: 0 | R74: 0 | T74: 0 | V74: 0 | X74: 0 | Z74: 0 | AB74: 0 | AD74: 0 | AF74: 0 | AH74: 0 | AJ74: 0 | AL74: 0 | AN74: 0 | AP74: 0 | AR74: 0 | AT74: 0 | AV74: 0 | AX74: 0 | AZ74: 0 | BB74: 0 | BD74: 0 | BF74: 0 | BH74: 0 | BJ74: 0 | BL74: 0 | BN74: 0 | BP74: 0 | BR74: 0 | BT74: 0 | BV74: 0 | BX74: 0 | BZ74: 0 | CB74: 0 | CD74: 0 | CF74: 0 | CH74: 0
B75: Weaving | C75: Weave section in collector-distributor road segment?: | H75: 0 | J75: 0 | L75: 0 | N75: 0 | P75: 0 | R75: 0 | T75: 0 | V75: 0 | X75: 0 | Z75: 0 | AB75: 0 | AD75: 0 | AF75: 0 | AH75: 0 | AJ75: 0 | AL75: 0 | AN75: 0 | AP75: 0 | AR75: 0 | AT75: 0 | AV75: 0 | AX75: 0 | AZ75: 0 | BB75: 0 | BD75: 0 | BF75: 0 | BH75: 0 | BJ75: 0 | BL75: 0 | BN75: 0 | BP75: 0 | BR75: 0 | BT75: 0 | BV75: 0 | BX75: 0 | BZ75: 0 | CB75: 0 | CD75: 0 | CF75: 0 | CH75: 0
B76: Section | C76: Length of weaving section (Lwev), mi: | H76: 0 | J76: 0 | L76: 0 | N76: 0 | P76: 0 | R76: 0 | T76: 0 | V76: 0 | X76: 0 | Z76: 0 | AB76: 0 | AD76: 0 | AF76: 0 | AH76: 0 | AJ76: 0 | AL76: 0 | AN76: 0 | AP76: 0 | AR76: 0 | AT76: 0 | AV76: 0 | AX76: 0 | AZ76: 0 | BB76: 0 | BD76: 0 | BF76: 0 | BH76: 0 | BJ76: 0 | BL76: 0 | BN76: 0 | BP76: 0 | BR76: 0 | BT76: 0 | BV76: 0 | BX76: 0 | BZ76: 0 | CB76: 0 | CD76: 0 | CF76: 0 | CH76: 0
C77: Length of weaving section in segment (Lwev,seg), mi: | H77: 0 | J77: 0 | L77: 0 | N77: 0 | P77: 0 | R77: 0 | T77: 0 | V77: 0 | X77: 0 | Z77: 0 | AB77: 0 | AD77: 0 | AF77: 0 | AH77: 0 | AJ77: 0 | AL77: 0 | AN77: 0 | AP77: 0 | AR77: 0 | AT77: 0 | AV77: 0 | AX77: 0 | AZ77: 0 | BB77: 0 | BD77: 0 | BF77: 0 | BH77: 0 | BJ77: 0 | BL77: 0 | BN77: 0 | BP77: 0 | BR77: 0 | BT77: 0 | BV77: 0 | BX77: 0 | BZ77: 0 | CB77: 0 | CD77: 0 | CF77: 0 | CH77: 0
B78: Traffic Data | F78: Year
B79: Average daily traffic (AADTr or AADTc) by year, veh/d: | F79: =Main!AG5 -> 2025 | G79: 8000 | I79: 10000 | K79: 5000 | M79: 6000 | O79: 7000 | Q79: 9000 | S79: 6000 | U79: 5000
B80: (enter data only for those years for which | F80: =F79+1 -> 2026
B81: it is available, leave other years blank) | F81: =F80+1 -> 2027
F82: 2028
F83: 2029
F84: 2030
F85: 2031
F86: 2032
F87: 2033
F88: 2034
F89: 2035
F90: 2036
F91: 2037
F92: 2038
F93: 2039
F94: 2040
F95: 2041
F96: 2042
F97: 2043
F98: 2044
F99: 2045 | G99: 11200 | I99: 14000 | K99: 7000 | M99: 8400 | O99: 9800 | Q99: 12600 | S99: 8400 | U99: 7000
F100: 2046
F101: 2047
F102: 2048
B103: Crash Data | E103: Year | F103: =IF(Main!$AG$15=TRUE, "Project Crashes", "") ->  | G103: Segment Crashes -->
B104: Count of Fatal-and-Injury (FI) Crashes by Year
C105: Multiple-vehicle crashes | E105: =Main!AG7 -> 2025
C106: (No,w,n,mv,fi) | E106: =E105+1 -> 2026
E107: =E106+1 -> 2027
E108: =E107+1 -> 2028
E109: =E108+1 -> 2029
C110: Single-vehicle crashes | E110: =E105 -> 2025
C111: (No,w,n,sv,fi) | E111: =E106 -> 2026
E112: =E107 -> 2027
E113: =E108 -> 2028
E114: =E109 -> 2029
B115: Count of Property-Damage-Only (PDO) Crashes by Year
C116: Multiple-vehicle crashes | E116: =E110 -> 2025
C117: (No,w,n,mv,pdo) | E117: =E111 -> 2026
E118: =E112 -> 2027
E119: =E113 -> 2028
E120: =E114 -> 2029
C121: Single-vehicle crashes | E121: =E116 -> 2025
C122: (No,w,n,sv,pdo) | E122: =E117 -> 2026
E123: =E118 -> 2027
E124: =E119 -> 2028
E125: =E120 -> 2029
B127: Advisory Messages
B172: Variable Limits
B173: =B8 -> Number of through lanes (n): | G173: =IF(Main!$K$6="Urban", 2,1) -> 2 | H173: =IF(Main!$K$6="Urban", 2,1) -> 2 | I173: =IF(Main!$K$6="Urban", 2,1) -> 2 | J173: =IF(Main!$K$6="Urban", 2,1) -> 2 | K173: =IF(Main!$K$6="Urban", 2,1) -> 2 | L173: =IF(Main!$K$6="Urban", 2,1) -> 2 | M173: =IF(Main!$K$6="Urban", 2,1) -> 2 | N173: =IF(Main!$K$6="Urban", 2,1) -> 2 | O173: =IF(Main!$K$6="Urban", 2,1) -> 2 | P173: =IF(Main!$K$6="Urban", 2,1) -> 2 | Q173: =IF(Main!$K$6="Urban", 2,1) -> 2 | R173: =IF(Main!$K$6="Urban", 2,1) -> 2 | S173: =IF(Main!$K$6="Urban", 2,1) -> 2 | T173: =IF(Main!$K$6="Urban", 2,1) -> 2 | U173: =IF(Main!$K$6="Urban", 2,1) -> 2 | V173: =IF(Main!$K$6="Urban", 2,1) -> 2 | W173: =IF(Main!$K$6="Urban", 2,1) -> 2 | X173: =IF(Main!$K$6="Urban", 2,1) -> 2 | Y173: =IF(Main!$K$6="Urban", 2,1) -> 2 | Z173: =IF(Main!$K$6="Urban", 2,1) -> 2 | AA173: =IF(Main!$K$6="Urban", 2,1) -> 2 | AB173: =IF(Main!$K$6="Urban", 2,1) -> 2 | AC173: =IF(Main!$K$6="Urban", 2,1) -> 2 | AD173: =IF(Main!$K$6="Urban", 2,1) -> 2 | AE173: =IF(Main!$K$6="Urban", 2,1) -> 2 | AF173: =IF(Main!$K$6="Urban", 2,1) -> 2 | AG173: =IF(Main!$K$6="Urban", 2,1) -> 2 | AH173: =IF(Main!$K$6="Urban", 2,1) -> 2 | AI173: =IF(Main!$K$6="Urban", 2,1) -> 2 | AJ173: =IF(Main!$K$6="Urban", 2,1) -> 2 | AK173: =IF(Main!$K$6="Urban", 2,1) -> 2 | AL173: =IF(Main!$K$6="Urban", 2,1) -> 2 | AM173: =IF(Main!$K$6="Urban", 2,1) -> 2 | AN173: =IF(Main!$K$6="Urban", 2,1) -> 2 | AO173: =IF(Main!$K$6="Urban", 2,1) -> 2 | AP173: =IF(Main!$K$6="Urban", 2,1) -> 2 | AQ173: =IF(Main!$K$6="Urban", 2,1) -> 2 | AR173: =IF(Main!$K$6="Urban", 2,1) -> 2 | AS173: =IF(Main!$K$6="Urban", 2,1) -> 2 | AT173: =IF(Main!$K$6="Urban", 2,1) -> 2 | AU173: =IF(Main!$K$6="Urban", 2,1) -> 2 | AV173: =IF(Main!$K$6="Urban", 2,1) -> 2 | AW173: =IF(Main!$K$6="Urban", 2,1) -> 2 | AX173: =IF(Main!$K$6="Urban", 2,1) -> 2 | AY173: =IF(Main!$K$6="Urban", 2,1) -> 2 | AZ173: =IF(Main!$K$6="Urban", 2,1) -> 2 | BA173: =IF(Main!$K$6="Urban", 2,1) -> 2 | BB173: =IF(Main!$K$6="Urban", 2,1) -> 2 | BC173: =IF(Main!$K$6="Urban", 2,1) -> 2 | BD173: =IF(Main!$K$6="Urban", 2,1) -> 2 | BE173: =IF(Main!$K$6="Urban", 2,1) -> 2 | BF173: =IF(Main!$K$6="Urban", 2,1) -> 2 | BG173: =IF(Main!$K$6="Urban", 2,1) -> 2 | BH173: =IF(Main!$K$6="Urban", 2,1) -> 2 | BI173: =IF(Main!$K$6="Urban", 2,1) -> 2 | BJ173: =IF(Main!$K$6="Urban", 2,1) -> 2 | BK173: =IF(Main!$K$6="Urban", 2,1) -> 2 | BL173: =IF(Main!$K$6="Urban", 2,1) -> 2 | BM173: =IF(Main!$K$6="Urban", 2,1) -> 2 | BN173: =IF(Main!$K$6="Urban", 2,1) -> 2 | BO173: =IF(Main!$K$6="Urban", 2,1) -> 2 | BP173: =IF(Main!$K$6="Urban", 2,1) -> 2 | BQ173: =IF(Main!$K$6="Urban", 2,1) -> 2 | BR173: =IF(Main!$K$6="Urban", 2,1) -> 2 | BS173: =IF(Main!$K$6="Urban", 2,1) -> 2 | BT173: =IF(Main!$K$6="Urban", 2,1) -> 2 | BU173: =IF(Main!$K$6="Urban", 2,1) -> 2 | BV173: =IF(Main!$K$6="Urban", 2,1) -> 2 | BW173: =IF(Main!$K$6="Urban", 2,1) -> 2 | BX173: =IF(Main!$K$6="Urban", 2,1) -> 2 | BY173: =IF(Main!$K$6="Urban", 2,1) -> 2 | BZ173: =IF(Main!$K$6="Urban", 2,1) -> 2 | CA173: =IF(Main!$K$6="Urban", 2,1) -> 2 | CB173: =IF(Main!$K$6="Urban", 2,1) -> 2 | CC173: =IF(Main!$K$6="Urban", 2,1) -> 2 | CD173: =IF(Main!$K$6="Urban", 2,1) -> 2 | CE173: =IF(Main!$K$6="Urban", 2,1) -> 2 | CF173: =IF(Main!$K$6="Urban", 2,1) -> 2 | CG173: =IF(Main!$K$6="Urban", 2,1) -> 2 | CH173: =IF(Main!$K$6="Urban", 2,1) -> 2
B174: =C19 -> Length of curve in segment (Lc1,seg), mi: | G174: =MIN(G$10,G18) -> 0.22 | H174: =MIN(H$10,H18) -> 0 | I174: 0.28 | J174: 0 | K174: 0.35 | L174: 0 | M174: 0.25 | N174: 0 | O174: 0.32 | P174: 0 | Q174: 0.2 | R174: 0 | S174: 0.22 | T174: 0 | U174: 0.39 | V174: 0 | W174: 0 | X174: 0 | Y174: 0 | Z174: 0 | AA174: 0 | AB174: 0 | AC174: 0 | AD174: 0 | AE174: 0 | AF174: 0 | AG174: 0 | AH174: 0 | AI174: 0 | AJ174: 0 | AK174: 0 | AL174: 0 | AM174: 0 | AN174: 0 | AO174: 0 | AP174: 0 | AQ174: 0 | AR174: 0 | AS174: 0 | AT174: 0 | AU174: 0 | AV174: 0 | AW174: 0 | AX174: 0 | AY174: 0 | AZ174: 0 | BA174: 0 | BB174: 0 | BC174: 0 | BD174: 0 | BE174: 0 | BF174: 0 | BG174: 0 | BH174: 0 | BI174: 0 | BJ174: 0 | BK174: 0 | BL174: 0 | BM174: 0 | BN174: 0 | BO174: 0 | BP174: 0 | BQ174: 0 | BR174: 0 | BS174: 0 | BT174: =MIN(BT$10,BT18) -> 0 | BU174: 0 | BV174: 0 | BW174: 0 | BX174: 0 | BY174: 0 | BZ174: 0 | CA174: 0 | CB174: 0 | CC174: 0 | CD174: 0 | CE174: 0 | CF174: 0 | CG174: 0 | CH174: 0
B175: =C24 -> Length of curve in segment (Lc2,seg), mi: | G175: =MIN(G$10,G23) -> 0.22 | H175: =MIN(H$10,H23) -> 0 | I175: 0.28 | J175: 0 | K175: 0.35 | L175: 0 | M175: 0.25 | N175: 0 | O175: 0.32 | P175: 0 | Q175: 0.2 | R175: 0 | S175: 0.22 | T175: 0 | U175: 0.39 | V175: 0 | W175: 0 | X175: 0 | Y175: 0 | Z175: 0 | AA175: 0 | AB175: 0 | AC175: 0 | AD175: 0 | AE175: 0 | AF175: 0 | AG175: 0 | AH175: 0 | AI175: 0 | AJ175: 0 | AK175: 0 | AL175: 0 | AM175: 0 | AN175: 0 | AO175: 0 | AP175: 0 | AQ175: 0 | AR175: 0 | AS175: 0 | AT175: 0 | AU175: 0 | AV175: 0 | AW175: 0 | AX175: 0 | AY175: 0 | AZ175: 0 | BA175: 0 | BB175: 0 | BC175: 0 | BD175: 0 | BE175: 0 | BF175: 0 | BG175: 0 | BH175: 0 | BI175: 0 | BJ175: 0 | BK175: 0 | BL175: 0 | BM175: 0 | BN175: 0 | BO175: 0 | BP175: 0 | BQ175: 0 | BR175: 0 | BS175: 0 | BT175: =MIN(BT$10,BT23) -> 0 | BU175: 0 | BV175: 0 | BW175: 0 | BX175: 0 | BY175: 0 | BZ175: 0 | CA175: 0 | CB175: 0 | CC175: 0 | CD175: 0 | CE175: 0 | CF175: 0 | CG175: 0 | CH175: 0
B176: =C29 -> Length of curve in segment (Lc3,seg), mi: | G176: =MIN(G$10,G28) -> 0.22 | H176: =MIN(H$10,H28) -> 0 | I176: 0.28 | J176: 0 | K176: 0.35 | L176: 0 | M176: 0.25 | N176: 0 | O176: 0.32 | P176: 0 | Q176: 0.2 | R176: 0 | S176: 0.22 | T176: 0 | U176: 0.39 | V176: 0 | W176: 0 | X176: 0 | Y176: 0 | Z176: 0 | AA176: 0 | AB176: 0 | AC176: 0 | AD176: 0 | AE176: 0 | AF176: 0 | AG176: 0 | AH176: 0 | AI176: 0 | AJ176: 0 | AK176: 0 | AL176: 0 | AM176: 0 | AN176: 0 | AO176: 0 | AP176: 0 | AQ176: 0 | AR176: 0 | AS176: 0 | AT176: 0 | AU176: 0 | AV176: 0 | AW176: 0 | AX176: 0 | AY176: 0 | AZ176: 0 | BA176: 0 | BB176: 0 | BC176: 0 | BD176: 0 | BE176: 0 | BF176: 0 | BG176: 0 | BH176: 0 | BI176: 0 | BJ176: 0 | BK176: 0 | BL176: 0 | BM176: 0 | BN176: 0 | BO176: 0 | BP176: 0 | BQ176: 0 | BR176: 0 | BS176: 0 | BT176: =MIN(BT$10,BT28) -> 0 | BU176: 0 | BV176: 0 | BW176: 0 | BX176: 0 | BY176: 0 | BZ176: 0 | CA176: 0 | CB176: 0 | CC176: 0 | CD176: 0 | CE176: 0 | CF176: 0 | CG176: 0 | CH176: 0
B177: =C34 -> Length of curve in segment (Lc4,seg), mi: | G177: =MIN(G$10,G33) -> 0.22 | H177: =MIN(H$10,H33) -> 0 | I177: 0.28 | J177: 0 | K177: 0.35 | L177: 0 | M177: 0.25 | N177: 0 | O177: 0.32 | P177: 0 | Q177: 0.2 | R177: 0 | S177: 0.22 | T177: 0 | U177: 0.39 | V177: 0 | W177: 0 | X177: 0 | Y177: 0 | Z177: 0 | AA177: 0 | AB177: 0 | AC177: 0 | AD177: 0 | AE177: 0 | AF177: 0 | AG177: 0 | AH177: 0 | AI177: 0 | AJ177: 0 | AK177: 0 | AL177: 0 | AM177: 0 | AN177: 0 | AO177: 0 | AP177: 0 | AQ177: 0 | AR177: 0 | AS177: 0 | AT177: 0 | AU177: 0 | AV177: 0 | AW177: 0 | AX177: 0 | AY177: 0 | AZ177: 0 | BA177: 0 | BB177: 0 | BC177: 0 | BD177: 0 | BE177: 0 | BF177: 0 | BG177: 0 | BH177: 0 | BI177: 0 | BJ177: 0 | BK177: 0 | BL177: 0 | BM177: 0 | BN177: 0 | BO177: 0 | BP177: 0 | BQ177: 0 | BR177: 0 | BS177: 0 | BT177: =MIN(BT$10,BT33) -> 0 | BU177: 0 | BV177: 0 | BW177: 0 | BX177: 0 | BY177: 0 | BZ177: 0 | CA177: 0 | CB177: 0 | CC177: 0 | CD177: 0 | CE177: 0 | CF177: 0 | CG177: 0 | CH177: 0
B178: =C39 -> Length of curve in segment (Lc5,seg), mi: | G178: =MIN(G$10,G38) -> 0.22 | H178: =MIN(H$10,H38) -> 0 | I178: 0.28 | J178: 0 | K178: 0.35 | L178: 0 | M178: 0.25 | N178: 0 | O178: 0.32 | P178: 0 | Q178: 0.2 | R178: 0 | S178: 0.22 | T178: 0 | U178: 0.39 | V178: 0 | W178: 0 | X178: 0 | Y178: 0 | Z178: 0 | AA178: 0 | AB178: 0 | AC178: 0 | AD178: 0 | AE178: 0 | AF178: 0 | AG178: 0 | AH178: 0 | AI178: 0 | AJ178: 0 | AK178: 0 | AL178: 0 | AM178: 0 | AN178: 0 | AO178: 0 | AP178: 0 | AQ178: 0 | AR178: 0 | AS178: 0 | AT178: 0 | AU178: 0 | AV178: 0 | AW178: 0 | AX178: 0 | AY178: 0 | AZ178: 0 | BA178: 0 | BB178: 0 | BC178: 0 | BD178: 0 | BE178: 0 | BF178: 0 | BG178: 0 | BH178: 0 | BI178: 0 | BJ178: 0 | BK178: 0 | BL178: 0 | BM178: 0 | BN178: 0 | BO178: 0 | BP178: 0 | BQ178: 0 | BR178: 0 | BS178: 0 | BT178: =MIN(BT$10,BT38) -> 0 | BU178: 0 | BV178: 0 | BW178: 0 | BX178: 0 | BY178: 0 | BZ178: 0 | CA178: 0 | CB178: 0 | CC178: 0 | CD178: 0 | CE178: 0 | CF178: 0 | CG178: 0 | CH178: 0
B179: =C46 -> Length of taper in segment (Ladd,seg or Ldrop,seg), mi: | G179: =MIN(G$10,0.3) -> 0.22 | H179: 0.22 | I179: 0.28 | J179: 0.28 | K179: 0.3 | L179: 0.3 | M179: 0.25 | N179: 0.25 | O179: 0.3 | P179: 0.3 | Q179: 0.2 | R179: 0.2 | S179: 0.22 | T179: 0.22 | U179: 0.3 | V179: 0.3 | W179: 0.3 | X179: 0 | Y179: 0.3 | Z179: 0 | AA179: 0.3 | AB179: 0 | AC179: 0.3 | AD179: 0 | AE179: 0.3 | AF179: 0 | AG179: 0.3 | AH179: 0 | AI179: 0.3 | AJ179: 0 | AK179: 0.3 | AL179: 0 | AM179: =MIN(AM$10,0.3) -> 0.3 | AN179: 0 | AO179: 0.3 | AP179: 0 | AQ179: 0.3 | AR179: 0 | AS179: 0.3 | AT179: 0 | AU179: 0.3 | AV179: 0 | AW179: 0.3 | AX179: 0 | AY179: 0.3 | AZ179: 0 | BA179: 0.3 | BB179: 0 | BC179: 0.3 | BD179: 0 | BE179: 0.3 | BF179: 0 | BG179: 0.3 | BH179: 0 | BI179: 0.3 | BJ179: 0 | BK179: 0.3 | BL179: 0 | BM179: 0.3 | BN179: 0 | BO179: 0.3 | BP179: 0 | BQ179: 0.3 | BR179: 0 | BS179: =MIN(BS$10,0.3) -> 0.3 | BT179: 0 | BU179: 0.3 | BV179: 0 | BW179: 0.3 | BX179: 0 | BY179: 0.3 | BZ179: 0 | CA179: 0.3 | CB179: 0 | CC179: 0.3 | CD179: 0 | CE179: 0.3 | CF179: 0 | CG179: 0.3 | CH179: 0
B180: =C72 -> Length of entrance s-c lane in segment (Len,seg), mi: | G180: =MIN(G$10,0.19) -> 0.19 | H180: =MIN(H$10,0.19) -> 0.19 | I180: 0.19 | J180: 0.19 | K180: 0.19 | L180: 0.19 | M180: 0.19 | N180: 0.19 | O180: 0.19 | P180: 0.19 | Q180: 0.19 | R180: 0.19 | S180: 0.19 | T180: 0.19 | U180: 0.19 | V180: 0.19 | W180: 0.19 | X180: 0 | Y180: 0.19 | Z180: 0 | AA180: 0.19 | AB180: 0 | AC180: 0.19 | AD180: 0 | AE180: 0.19 | AF180: 0 | AG180: 0.19 | AH180: 0 | AI180: 0.19 | AJ180: 0 | AK180: 0.19 | AL180: 0 | AM180: 0.19 | AN180: 0 | AO180: 0.19 | AP180: 0 | AQ180: 0.19 | AR180: 0 | AS180: 0.19 | AT180: 0 | AU180: 0.19 | AV180: 0 | AW180: 0.19 | AX180: 0 | AY180: 0.19 | AZ180: 0 | BA180: 0.19 | BB180: 0 | BC180: 0.19 | BD180: 0 | BE180: 0.19 | BF180: 0 | BG180: 0.19 | BH180: 0 | BI180: 0.19 | BJ180: 0 | BK180: 0.19 | BL180: 0 | BM180: 0.19 | BN180: 0 | BO180: 0.19 | BP180: 0 | BQ180: 0.19 | BR180: 0 | BS180: 0.19 | BT180: =MIN(BT$10,0.19) -> 0 | BU180: 0.19 | BV180: 0 | BW180: 0.19 | BX180: 0 | BY180: 0.19 | BZ180: 0 | CA180: 0.19 | CB180: 0 | CC180: 0.19 | CD180: 0 | CE180: 0.19 | CF180: 0 | CG180: 0.19 | CH180: 0
B181: =C74 -> Length of exit s-c lane in segment (Lex,seg), mi: | G181: =MIN(G$10,0.19) -> 0.19 | H181: =MIN(H$10,0.19) -> 0.19 | I181: 0.19 | J181: 0.19 | K181: 0.19 | L181: 0.19 | M181: 0.19 | N181: 0.19 | O181: 0.19 | P181: 0.19 | Q181: 0.19 | R181: 0.19 | S181: 0.19 | T181: 0.19 | U181: 0.19 | V181: 0.19 | W181: 0.19 | X181: 0 | Y181: 0.19 | Z181: 0 | AA181: 0.19 | AB181: 0 | AC181: 0.19 | AD181: 0 | AE181: 0.19 | AF181: 0 | AG181: 0.19 | AH181: 0 | AI181: 0.19 | AJ181: 0 | AK181: 0.19 | AL181: 0 | AM181: 0.19 | AN181: 0 | AO181: 0.19 | AP181: 0 | AQ181: 0.19 | AR181: 0 | AS181: 0.19 | AT181: 0 | AU181: 0.19 | AV181: 0 | AW181: 0.19 | AX181: 0 | AY181: 0.19 | AZ181: 0 | BA181: 0.19 | BB181: 0 | BC181: 0.19 | BD181: 0 | BE181: 0.19 | BF181: 0 | BG181: 0.19 | BH181: 0 | BI181: 0.19 | BJ181: 0 | BK181: 0.19 | BL181: 0 | BM181: 0.19 | BN181: 0 | BO181: 0.19 | BP181: 0 | BQ181: 0.19 | BR181: 0 | BS181: 0.19 | BT181: =MIN(BT$10,0.19) -> 0 | BU181: 0.19 | BV181: 0 | BW181: 0.19 | BX181: 0 | BY181: 0.19 | BZ181: 0 | CA181: 0.19 | CB181: 0 | CC181: 0.19 | CD181: 0 | CE181: 0.19 | CF181: 0 | CG181: 0.19 | CH181: 0
B182: =C77 -> Length of weaving section in segment (Lwev,seg), mi: | G182: =MIN(G$10,G76,0.3) -> 0.22 | H182: =MIN(H$10,H76,0.3) -> 0 | I182: 0.28 | J182: 0 | K182: 0.3 | L182: 0 | M182: 0.25 | N182: 0 | O182: 0.3 | P182: 0 | Q182: 0.2 | R182: 0 | S182: 0.22 | T182: 0 | U182: 0.3 | V182: 0 | W182: 0.3 | X182: 0 | Y182: 0.3 | Z182: 0 | AA182: 0.3 | AB182: 0 | AC182: 0.3 | AD182: 0 | AE182: 0.3 | AF182: 0 | AG182: 0.3 | AH182: 0 | AI182: 0.3 | AJ182: 0 | AK182: 0.3 | AL182: 0 | AM182: 0.3 | AN182: 0 | AO182: 0.3 | AP182: 0 | AQ182: 0.3 | AR182: 0 | AS182: 0.3 | AT182: 0 | AU182: 0.3 | AV182: 0 | AW182: 0.3 | AX182: 0 | AY182: 0.3 | AZ182: 0 | BA182: 0.3 | BB182: 0 | BC182: 0.3 | BD182: 0 | BE182: 0.3 | BF182: 0 | BG182: 0.3 | BH182: 0 | BI182: 0.3 | BJ182: 0 | BK182: 0.3 | BL182: 0 | BM182: 0.3 | BN182: 0 | BO182: 0.3 | BP182: 0 | BQ182: 0.3 | BR182: 0 | BS182: 0.3 | BT182: =MIN(BT$10,BT76,0.3) -> 0 | BU182: 0.3 | BV182: 0 | BW182: 0.3 | BX182: 0 | BY182: 0.3 | BZ182: 0 | CA182: 0.3 | CB182: 0 | CC182: 0.3 | CD182: 0 | CE182: 0.3 | CF182: 0 | CG182: 0.3 | CH182: 0

Sheet Input Ramp Terminals
E3: Input Worksheet for Crossroad Ramp Terminals
G4: ="Terminal "& TEXT(INT((COLUMN()-5)/2),"0") -> Terminal 1 | I4: ="Terminal "& TEXT(INT((COLUMN()-5)/2),"0") -> Terminal 2 | K4: ="Terminal "& TEXT(INT((COLUMN()-5)/2),"0") -> Terminal 3 | M4: ="Terminal "& TEXT(INT((COLUMN()-5)/2),"0") -> Terminal 4 | O4: ="Terminal "& TEXT(INT((COLUMN()-5)/2),"0") -> Terminal 5 | Q4: ="Terminal "& TEXT(INT((COLUMN()-5)/2),"0") -> Terminal 6 | T4: =G4 -> Terminal 1 | V4: =I4 -> Terminal 2 | X4: =K4 -> Terminal 3 | Z4: =M4 -> Terminal 4 | AB4: =O4 -> Terminal 5 | AD4: =Q4 -> Terminal 6
G5: =IF(Main!$AK$14=TRUE, "Crash Period", "Study Period") -> Study Period | H5: =IF(Main!$AK$14=TRUE, "Study Period", "") ->  | I5: =G5 -> Study Period | K5: Study Period | M5: Study Period | O5: Study Period | Q5: Study Period | T5: =G5 -> Study Period | U5: =H5 ->  | V5: =I5 -> Study Period | W5: =J5 ->  | X5: =K5 -> Study Period | Y5: =L5 ->  | Z5: =M5 -> Study Period | AA5: =N5 ->  | AB5: =O5 -> Study Period | AC5: =P5 ->  | AD5: =Q5 -> Study Period | AE5: =R5 -> 
C6: (View results in Column T) | D6: (View results in Advisory Messages)
B7: Basic Intersection Data
B8: Ramp terminal configuration: | H8: =G8 -> 0 | J8: =I8 -> 0 | L8: =K8 -> 0 | N8: =M8 -> 0 | P8: =O8 -> 0 | R8: =Q8 -> 0
B9: Ramp terminal description:
B10: Ramp terminal traffic control type: | H10: =G10 -> 0 | J10: =I10 -> 0 | L10: =K10 -> 0 | N10: =M10 -> 0 | P10: =O10 -> 0 | R10: =Q10 -> 0
B11: Is a non-ramp public street leg present at the terminal (Ips)?: | H11: =G11 -> 0 | J11: =I11 -> 0 | L11: =K11 -> 0 | N11: =M11 -> 0 | P11: =O11 -> 0 | R11: =Q11 -> 0
B12: Alignment Data
B13: Exit ramp skew angle (Isk), degrees: | H13: =G13 -> 0 | J13: =I13 -> 0 | L13: =K13 -> 0 | N13: =M13 -> 0 | P13: =O13 -> 0 | R13: =Q13 -> 0
B14: Distance to the next public street intersection on the outside crossroad leg (Lstr), mi: | H14: =G14 -> 0 | J14: =I14 -> 0 | L14: =K14 -> 0 | N14: =M14 -> 0 | P14: =O14 -> 0 | R14: =Q14 -> 0
B15: Distance to the adjacent ramp terminal (Lrmp), mi: | H15: =G15 -> 0 | J15: =I15 -> 0 | L15: =K15 -> 0 | N15: =M15 -> 0 | P15: =O15 -> 0 | R15: =Q15 -> 0
B16: Traffic Control
B17: Left-Turn Operational Mode
B18: Crossroad | C18: Inside approach | D18: Protected-only mode (Ip,lt,in)?: | H18: =G18 -> 0 | J18: =I18 -> 0 | L18: =K18 -> 0 | N18: =M18 -> 0 | P18: =O18 -> 0 | R18: =Q18 -> 0
C19: Outside approach | D19: Protected-only mode (Ip,lt,out)?: | H19: =G19 -> 0 | J19: =I19 -> 0 | L19: =K19 -> 0 | N19: =M19 -> 0 | P19: =O19 -> 0 | R19: =Q19 -> 0
B20: Right-Turn Control Type
B21: Ramp | C21: Exit ramp approach | D21: Right-turn control type: | H21: =G21 -> 0 | J21: =I21 -> 0 | L21: =K21 -> 0 | N21: =M21 -> 0 | P21: =O21 -> 0 | R21: =Q21 -> 0
B22: Cross Section Data
B23: Crossroad median width (Wm), ft: | H23: =G23 -> 0 | J23: =I23 -> 0 | L23: =K23 -> 0 | N23: =M23 -> 0 | P23: =O23 -> 0 | R23: =Q23 -> 0
B24: Number of Lanes
B25: Crossroad | C25: Both approaches | D25: Lanes serving through vehicles (nth): | H25: =G25 -> 0 | J25: =I25 -> 0 | L25: =K25 -> 0 | N25: =M25 -> 0 | P25: =O25 -> 0 | R25: =Q25 -> 0
C26: Inside approach | D26: Lanes serving through vehicles (nth,in): | H26: =G26 -> 0 | J26: =I26 -> 0 | L26: =K26 -> 0 | N26: =M26 -> 0 | P26: =O26 -> 0 | R26: =Q26 -> 0
C27: Outside approach | D27: Lanes serving through vehicles (nth,out): | G27: =G25-G26 -> 0 | H27: =H25-H26 -> 0 | I27: =I25-I26 -> 0 | J27: 0 | K27: 0 | L27: 0 | M27: 0 | N27: 0 | O27: 0 | P27: 0 | Q27: 0 | R27: 0
B28: Ramp | C28: Exit ramp approach | D28: All lanes (nex): | H28: =G28 -> 0 | J28: =I28 -> 0 | L28: =K28 -> 0 | N28: =M28 -> 0 | P28: =O28 -> 0 | R28: =Q28 -> 0
B29: Right-Turn Channelization | E29: see note:
B30: Crossroad | C30: Inside approach | D30: Channelization present (Ich,in)?: | H30: =G30 -> 0 | J30: =I30 -> 0 | L30: =K30 -> 0 | N30: =M30 -> 0 | P30: =O30 -> 0 | R30: =Q30 -> 0
C31: Outside approach | D31: Channelization present (Ich,out)?: | H31: =G31 -> 0 | J31: =I31 -> 0 | L31: =K31 -> 0 | N31: =M31 -> 0 | P31: =O31 -> 0 | R31: =Q31 -> 0
B32: Ramp | C32: Exit ramp approach | D32: Channelization present (Ich,ex)?: | H32: =G32 -> 0 | J32: =I32 -> 0 | L32: =K32 -> 0 | N32: =M32 -> 0 | P32: =O32 -> 0 | R32: =Q32 -> 0
B33: Left-Turn Lane or Bay
B34: Crossroad | C34: Inside approach | D34: Lane or bay present (Ibay,lt,in)?: | H34: =G34 -> 0 | J34: =I34 -> 0 | L34: =K34 -> 0 | N34: =M34 -> 0 | P34: =O34 -> 0 | R34: =Q34 -> 0
D35: Width of lane or bay (Wb,in), ft: | H35: =G35 -> 0 | J35: =I35 -> 0 | L35: =K35 -> 0 | N35: =M35 -> 0 | P35: =O35 -> 0 | R35: =Q35 -> 0
C36: Outside approach | D36: Lane or bay present (Ibay,lt,out)?: | H36: =G36 -> 0 | J36: =I36 -> 0 | L36: =K36 -> 0 | N36: =M36 -> 0 | P36: =O36 -> 0 | R36: =Q36 -> 0
D37: Width of lane or bay (Wb,out), ft: | H37: =G37 -> 0 | J37: =I37 -> 0 | L37: =K37 -> 0 | N37: =M37 -> 0 | P37: =O37 -> 0 | R37: =Q37 -> 0
B38: Right-Turn Lane or Bay
B39: Crossroad | C39: Inside approach | D39: Lane or bay present (Ibay,rt,in)?: | H39: =G39 -> 0 | J39: =I39 -> 0 | L39: =K39 -> 0 | N39: =M39 -> 0 | P39: =O39 -> 0 | R39: =Q39 -> 0
C40: Outside approach | D40: Lane or bay present (Ibay,rt,out)?: | H40: =G40 -> 0 | J40: =I40 -> 0 | L40: =K40 -> 0 | N40: =M40 -> 0 | P40: =O40 -> 0 | R40: =Q40 -> 0
B41: Access Data
B42: Number of driveways on the outside crossroad leg (ndw): | H42: =G42 -> 0 | J42: =I42 -> 0 | L42: =K42 -> 0 | N42: =M42 -> 0 | P42: =O42 -> 0 | R42: =Q42 -> 0
B43: Number of public street approaches on the outside crossroad leg (nps): | H43: =G43 -> 0 | J43: =I43 -> 0 | L43: =K43 -> 0 | N43: =M43 -> 0 | P43: =O43 -> 0 | R43: =Q43 -> 0
B44: Traffic Data | F44: Year
B45: Inside Crossroad Leg Data | F45: =Main!AK5 -> 2025
B46: Average daily traffic (AADTin) by year, veh/d: | F46: =F45+1 -> 2026
B47: (enter data only for those years for which | F47: =F46+1 -> 2027
B48: it is available, leave other years blank) | F48: 2028
F49: 2029
F50: 2030
F51: 2031
F52: 2032
F53: 2033
F54: 2034
F55: 2035
F56: 2036
F57: 2037
F58: 2038
F59: 2039
F60: 2040
F61: 2041
F62: 2042
F63: 2043
F64: 2044
F65: 2045
F66: 2046
F67: 2047
F68: 2048
B69: Outside Crossroad Leg Data | F69: =F45 -> 2025
B70: Average daily traffic (AADTout) by year, veh/d: | F70: =F69+1 -> 2026
B71: (enter data only for those years for which | F71: =F70+1 -> 2027
B72: it is available, leave other years blank) | F72: 2028
F73: 2029
F74: 2030
F75: 2031
F76: 2032
F77: 2033
F78: 2034
F79: 2035
F80: 2036
F81: 2037
F82: 2038
F83: 2039
F84: 2040
F85: 2041
F86: 2042
F87: 2043
F88: 2044
F89: 2045
F90: 2046
F91: 2047
F92: 2048
B93: Exit Ramp Data | F93: =F69 -> 2025
B94: Average daily traffic (AADTex) by year, veh/d: | F94: =F93+1 -> 2026
B95: (enter data only for those years for which | F95: =F94+1 -> 2027
B96: it is available, leave other years blank) | F96: 2028
F97: 2029
B98: For a B4 terminal configuration, enter the AADT for the | F98: 2030
B99: diagonal exit ramp (not the loop exit ramp). | F99: 2031
F100: 2032
F101: 2033
F102: 2034
F103: 2035
F104: 2036
F105: 2037
F106: 2038
F107: 2039
F108: 2040
F109: 2041
F110: 2042
F111: 2043
F112: 2044
F113: 2045
F114: 2046
F115: 2047
F116: 2048
B117: Entrance Ramp Data | F117: =F93 -> 2025
B118: Average daily traffic (AADTen) by year, veh/d: | F118: =F117+1 -> 2026
B119: (enter data only for those years for which | F119: =F118+1 -> 2027
B120: it is available, leave other years blank) | F120: 2028
F121: 2029
B122: For an A4 terminal configuration, enter the AADT for the | F122: 2030
B123: diagonal entrance ramp (not the loop entrance ramp). | F123: 2031
F124: 2032
F125: 2033
F126: 2034
F127: 2035
F128: 2036
F129: 2037
F130: 2038
F131: 2039
F132: 2040
F133: 2041
F134: 2042
F135: 2043
F136: 2044
F137: 2045
F138: 2046
F139: 2047
F140: 2048
B141: Crash Data | E141: Year | F141: =IF(Main!$AK$15=TRUE, "Project Crashes", "") ->  | G141: Ramp Terminal Crashes -->
B142: Count of Fatal-and-Injury (FI) Crashes by Year
C143: (No,w,ac,at,fi) | E143: =Main!AK7 -> 2025
E144: =E143+1 -> 2026
E145: =E144+1 -> 2027
E146: =E145+1 -> 2028
E147: =E146+1 -> 2029
B148: Count of Property-Damage-Only (PDO) Crashes by Year
C149: (No,w,ac,at,pdo) | E149: =E143 -> 2025
E150: =E144 -> 2026
E151: =E145 -> 2027
E152: =E146 -> 2028
E153: =E147 -> 2029
B155: Advisory Messages
B180: Variable Limits
B181: =B24 -> Number of Lanes
C182: =C25 -> Both approaches | G182: =IF(AND(Main!$K$6= "Urban", G$10="Signal"),6, 4) -> 4 | H182: =IF(AND(Main!$K$6= "Urban", H$10="Signal"),6, 4) -> 4 | I182: =IF(AND(Main!$K$6= "Urban", I$10="Signal"),6, 4) -> 4 | J182: =IF(AND(Main!$K$6= "Urban", J$10="Signal"),6, 4) -> 4 | K182: =IF(AND(Main!$K$6= "Urban", K$10="Signal"),6, 4) -> 4 | L182: =IF(AND(Main!$K$6= "Urban", L$10="Signal"),6, 4) -> 4 | M182: =IF(AND(Main!$K$6= "Urban", M$10="Signal"),6, 4) -> 4 | N182: =IF(AND(Main!$K$6= "Urban", N$10="Signal"),6, 4) -> 4 | O182: =IF(AND(Main!$K$6= "Urban", O$10="Signal"),6, 4) -> 4 | P182: =IF(AND(Main!$K$6= "Urban", P$10="Signal"),6, 4) -> 4 | Q182: =IF(AND(Main!$K$6= "Urban", Q$10="Signal"),6, 4) -> 4 | R182: =IF(AND(Main!$K$6= "Urban", R$10="Signal"),6, 4) -> 4
C183: =B28 -> Ramp | G183: =IF(G$10="Signal",4, 2) -> 2 | H183: 2 | I183: 2 | J183: 2 | K183: 2 | L183: 2 | M183: 2 | N183: 2 | O183: 2 | P183: 2 | Q183: 2 | R183: 2

Sheet Output Summary
B3: Output Summary | N3: Evaluation Site Summary
B4: General Information | N4: General Information
B5: Project description: | D5: =Main!D5 -> Example Freeway | N5: Project description: | P5: =D5 -> Example Freeway
B6: Analyst: | D6: =Main!D6 -> FDOT | F6: Date: | G6: =Main!G6 -> 2021-04-05T16:57:11.410 | I6: Area type: | K6: =Main!K6 -> Urban | N6: Analyst: | P6: =D6 -> FDOT | R6: Date: | S6: =G6 -> 2021-04-05T16:57:11.410 | U6: Area type: | W6: =K6 -> Urban
B7: First year of analysis: | D7: =Main!D7 -> 2025 | N7: First year of analysis: | P7: =D7 -> 2025 | Q7: Total length of freeway segments for Study Period (mi): | V7: =SUM(P13:P32) -> 2.1
B8: Last year of analysis: | D8: =Main!D8 -> 2045 | N8: Last year of analysis: | P8: =D8 -> 2045
B9: Crash Data Description | N9: Site Description
B10: Freeway segments | D10: Segment crash data available? | H10: No | I10: First year of crash data: | N10: Freeway Segments
D11: Project-level crash data available? | H11: No | I11: Last year of crash data: | N11: Number | O11: Lanes | P11: Study Period | Q11: =IF(Main!$AC$14=TRUE, "Crash Period Description", "Study Period Description") -> Study Period Description | U11: =IF(Main!$AC$14=TRUE, "Study Period Description", "") -> 
B12: Ramp segments | D12: Segment crash data available? | H12: No | I12: First year of crash data: | P12: Length (mi)
D13: Project-level crash data available? | H13: No | I13: Last year of crash data: | N13: 1 | O13: ='Input Freeway Segments'!$G$8 -> 6 | P13: =IF(Main!$AC$14=FALSE, 'Input Freeway Segments'!$G$10, 'Input Freeway Segments'!$H$10) -> 0.3 | Q13: ='Input Freeway Segments'!$G$9 -> FR1 | U13: =IF(Main!$AC$14=TRUE, 'Input Freeway Segments'!$H$9,"") -> 
B14: Ramp terminals | D14: Segment crash data available? | H14: No | I14: First year of crash data: | N14: =N13+1 -> 2 | O14: ='Input Freeway Segments'!$I$8 -> 6 | P14: =IF(Main!$AC$14=FALSE, 'Input Freeway Segments'!$I$10, 'Input Freeway Segments'!$J$10) -> 0.54 | Q14: ='Input Freeway Segments'!$I$9 -> FR2 | U14: =IF(Main!$AC$14=TRUE, 'Input Freeway Segments'!$J$9, "") -> 
D15: Project-level crash data available? | H15: No | I15: Last year of crash data: | N15: =N14+1 -> 3 | O15: ='Input Freeway Segments'!$K$8 -> 6 | P15: =IF(Main!$AC$14=FALSE, 'Input Freeway Segments'!$K$10, 'Input Freeway Segments'!$L$10) -> 0.35 | Q15: ='Input Freeway Segments'!$K$9 -> FR3 | U15: =IF(Main!$AC$14=TRUE, 'Input Freeway Segments'!$L$9, "") -> 
B16: Estimated Crash Statistics | N16: 4 | O16: ='Input Freeway Segments'!$M$8 -> 6 | P16: =IF(Main!$AC$14=FALSE, 'Input Freeway Segments'!$M$10, 'Input Freeway Segments'!$N$10) -> 0.61 | Q16: ='Input Freeway Segments'!$M$9 -> FR4 | U16: =IF(Main!$AC$14=TRUE, 'Input Freeway Segments'!$N$9, "") -> 
B17: Crashes for Entire Facility | G17: Total | H17: K | I17: A | J17: B | K17: C | L17: PDO | N17: 5 | O17: ='Input Freeway Segments'!$O$8 -> 6 | P17: =IF(Main!$AC$14=FALSE, 'Input Freeway Segments'!$O$10, 'Input Freeway Segments'!$P$10) -> 0.3 | Q17: ='Input Freeway Segments'!$O$9 -> FR5 | U17: =IF(Main!$AC$14=TRUE, 'Input Freeway Segments'!$P$9, "") -> 
B18: Estimated number of crashes during Study Period, crashes: | G18: 1349.428589 | H18: 7.980726242 | I18: 20.72979927 | J18: 132.8651886 | K18: 268.5979004 | L18: 919.2549438 | N18: 6 | O18: ='Input Freeway Segments'!$Q$8 -> 0 | P18: =IF(Main!$AC$14=FALSE, 'Input Freeway Segments'!$Q$10, 'Input Freeway Segments'!$R$10) -> 0 | Q18: ='Input Freeway Segments'!$Q$9 -> 0 | U18: =IF(Main!$AC$14=TRUE, 'Input Freeway Segments'!$R$9, "") -> 
B19: Estimated average crash freq. during Study Period, crashes/yr: | G19: 64.25850677 | H19: 0.3800345957 | I19: 0.9871333241 | J19: 6.326913834 | K19: 12.79037571 | L19: 43.77404404 | N19: 7 | O19: ='Input Freeway Segments'!$S$8 -> 0 | P19: =IF(Main!$AC$14=FALSE, 'Input Freeway Segments'!$S$10, 'Input Freeway Segments'!$T$10) -> 0 | Q19: ='Input Freeway Segments'!$S$9 -> 0 | U19: =IF(Main!$AC$14=TRUE, 'Input Freeway Segments'!$T$9, "") -> 
B20: Crashes by Facility Component | F20: Nbr. Sites | G20: Total | H20: K | I20: A | J20: B | K20: C | L20: PDO | N20: 8 | O20: ='Input Freeway Segments'!$U$8 -> 0 | P20: =IF(Main!$AC$14=FALSE, 'Input Freeway Segments'!$U$10, 'Input Freeway Segments'!$V$10) -> 0 | Q20: ='Input Freeway Segments'!$U$9 -> 0 | U20: =IF(Main!$AC$14=TRUE, 'Input Freeway Segments'!$V$9, "") -> 
B21: Freeway segments, crashes: | F21: 5 | G21: 1250.397217 | H21: 6.919278145 | I21: 17.51121521 | J21: 117.4933243 | K21: 247.5423126 | L21: 860.9310913 | N21: 9 | O21: ='Input Freeway Segments'!$W$8 -> 0 | P21: =IF(Main!$AC$14=FALSE, 'Input Freeway Segments'!$W$10, 'Input Freeway Segments'!$X$10) -> 0 | Q21: ='Input Freeway Segments'!$W$9 -> 0 | U21: =IF(Main!$AC$14=TRUE, 'Input Freeway Segments'!$X$9, "") -> 
B22: Ramp segments, crashes: | F22: 8 | G22: 99.03129578 | H22: 1.061448336 | I22: 3.218584538 | J22: 15.37186241 | K22: 21.05558395 | L22: 58.32382584 | N22: 10 | O22: ='Input Freeway Segments'!$Y$8 -> 0 | P22: =IF(Main!$AC$14=FALSE, 'Input Freeway Segments'!$Y$10, 'Input Freeway Segments'!$Z$10) -> 0 | Q22: ='Input Freeway Segments'!$Y$9 -> 0 | U22: =IF(Main!$AC$14=TRUE, 'Input Freeway Segments'!$Z$9, "") -> 
B23: Crossroad ramp terminals, crashes: | F23: 0 | G23: 0 | H23: 0 | I23: 0 | J23: 0 | K23: 0 | L23: 0 | N23: 11 | O23: ='Input Freeway Segments'!$AA$8 -> 0 | P23: =IF(Main!$AC$14=FALSE, 'Input Freeway Segments'!$AA$10, 'Input Freeway Segments'!$AB$10) -> 0 | Q23: ='Input Freeway Segments'!$AA$9 -> 0 | U23: =IF(Main!$AC$14=TRUE, 'Input Freeway Segments'!$AB$9, "") -> 
B24: Crashes for Entire Facility by Year | F24: Year | G24: Total | H24: K | I24: A | J24: B | K24: C | L24: PDO | N24: 12 | O24: ='Input Freeway Segments'!$AC$8 -> 0 | P24: =IF(Main!$AC$14=FALSE, 'Input Freeway Segments'!$AC$10, 'Input Freeway Segments'!$AD$10) -> 0 | Q24: ='Input Freeway Segments'!$AC$9 -> 0 | U24: =IF(Main!$AC$14=TRUE, 'Input Freeway Segments'!$AD$9, "") -> 
B25: Estimated number of crashes during | F25: =Main!D7 -> 2025 | G25: 49.55912781 | H25: 0.3071754277 | I25: 0.7993955016 | J25: 5.106398582 | K25: 10.29016018 | L25: 33.05599594 | N25: 13 | O25: ='Input Freeway Segments'!$AE$8 -> 0 | P25: =IF(Main!$AC$14=FALSE, 'Input Freeway Segments'!$AE$10, 'Input Freeway Segments'!$AF$10) -> 0 | Q25: ='Input Freeway Segments'!$AE$9 -> 0 | U25: =IF(Main!$AC$14=TRUE, 'Input Freeway Segments'!$AF$9, "") -> 
B26: the Study Period, crashes: | F26: =F25+1 -> 2026 | G26: 50.93370056 | H26: 0.3142179549 | I26: 0.8175563216 | J26: 5.224302769 | K26: 10.53138256 | L26: 34.04623795 | N26: 14 | O26: ='Input Freeway Segments'!$AG$8 -> 0 | P26: =IF(Main!$AC$14=FALSE, 'Input Freeway Segments'!$AG$10, 'Input Freeway Segments'!$AH$10) -> 0 | Q26: ='Input Freeway Segments'!$AG$9 -> 0 | U26: =IF(Main!$AC$14=TRUE, 'Input Freeway Segments'!$AH$9, "") -> 
F27: =F26+1 -> 2027 | G27: 52.32344055 | H27: 0.3212998211 | I27: 0.8358159065 | J27: 5.342877865 | K27: 10.77403259 | L27: 35.04941559 | N27: 15 | O27: ='Input Freeway Segments'!$AI$8 -> 0 | P27: =IF(Main!$AC$14=FALSE, 'Input Freeway Segments'!$AI$10, 'Input Freeway Segments'!$AJ$10) -> 0 | Q27: ='Input Freeway Segments'!$AI$9 -> 0 | U27: =IF(Main!$AC$14=TRUE, 'Input Freeway Segments'!$AJ$9, "") -> 
F28: 2028 | G28: 53.72833252 | H28: 0.3284207284 | I28: 0.8541735411 | J28: 5.462119579 | K28: 11.01809883 | L28: 36.06551743 | N28: 16 | O28: ='Input Freeway Segments'!$AK$8 -> 0 | P28: =IF(Main!$AC$14=FALSE, 'Input Freeway Segments'!$AK$10, 'Input Freeway Segments'!$AL$10) -> 0 | Q28: ='Input Freeway Segments'!$AK$9 -> 0 | U28: =IF(Main!$AC$14=TRUE, 'Input Freeway Segments'!$AL$9, "") -> 
F29: 2029 | G29: 55.1483345 | H29: 0.3355805278 | I29: 0.8726293445 | J29: 5.582024574 | K29: 11.26357651 | L29: 37.09452438 | N29: 17 | O29: ='Input Freeway Segments'!$AM$8 -> 0 | P29: =IF(Main!$AC$14=FALSE, 'Input Freeway Segments'!$AM$10, 'Input Freeway Segments'!$AN$10) -> 0 | Q29: ='Input Freeway Segments'!$AM$9 -> 0 | U29: =IF(Main!$AC$14=TRUE, 'Input Freeway Segments'!$AN$9, "") -> 
F30: 2030 | G30: 56.58342743 | H30: 0.3427789509 | I30: 0.8911821246 | J30: 5.702587605 | K30: 11.51045227 | L30: 38.13642883 | N30: 18 | O30: ='Input Freeway Segments'!$AO$8 -> 0 | P30: =IF(Main!$AC$14=FALSE, 'Input Freeway Segments'!$AO$10, 'Input Freeway Segments'!$AP$10) -> 0 | Q30: ='Input Freeway Segments'!$AO$9 -> 0 | U30: =IF(Main!$AC$14=TRUE, 'Input Freeway Segments'!$AP$9, "") -> 
F31: 2031 | G31: 58.03359222 | H31: 0.3500159085 | I31: 0.9098320007 | J31: 5.82380724 | K31: 11.7587204 | L31: 39.19121552 | N31: 19 | O31: ='Input Freeway Segments'!$AQ$8 -> 0 | P31: =IF(Main!$AC$14=FALSE, 'Input Freeway Segments'!$AQ$10, 'Input Freeway Segments'!$AR$10) -> 0 | Q31: ='Input Freeway Segments'!$AQ$9 -> 0 | U31: =IF(Main!$AC$14=TRUE, 'Input Freeway Segments'!$AR$9, "") -> 
F32: 2032 | G32: 59.49879837 | H32: 0.3572912216 | I32: 0.9285785556 | J32: 5.945680618 | K32: 12.00837421 | L32: 40.25887299 | N32: 20 | O32: ='Input Freeway Segments'!$AS$8 -> 0 | P32: =IF(Main!$AC$14=FALSE, 'Input Freeway Segments'!$AS$10, 'Input Freeway Segments'!$AT$10) -> 0 | Q32: ='Input Freeway Segments'!$AS$9 -> 0 | U32: =IF(Main!$AC$14=TRUE, 'Input Freeway Segments'!$AT$9, "") -> 
F33: 2033 | G33: 60.97902679 | H33: 0.3646046221 | I33: 0.9474211931 | J33: 6.068202972 | K33: 12.25940514 | L33: 41.33939362 | N33: Ramp Segments
F34: 2034 | G34: 62.47424316 | H34: 0.3719559312 | I34: 0.9663593769 | J34: 6.191370964 | K34: 12.51180172 | L34: 42.43275452 | N34: Number | O34: =IF(Main!$AG$14=TRUE, "Crash Period", "Study Period") -> Study Period | Q34: =IF(Main!$AG$14=TRUE, "Study Period", "") ->  | S34: Number | T34: =IF(Main!$AG$14=TRUE, "Crash Period", "Study Period") -> Study Period | V34: =IF(Main!$AG$14=TRUE, "Study Period", "") -> 
F35: 2035 | G35: 63.98442841 | H35: 0.3793450594 | I35: 0.9853928089 | J35: 6.315181732 | K35: 12.7655592 | L35: 43.53895187 | O35: Description | Q35: =IF(Main!$AG$14=TRUE, "Description", "") ->  | T35: Description | V35: =IF(Main!$AG$14=TRUE, "Description", "") -> 
F36: 2036 | G36: 65.50956726 | H36: 0.3867717087 | I36: 1.004521132 | J36: 6.439631462 | K36: 13.02066803 | L36: 44.65797424 | N36: 1 | O36: ='Input Ramp Segments'!$G$9 -> R1 | Q36: =IF(Main!$AG$14=TRUE,'Input Ramp Segments'!$H$9,"") ->  | S36: 21 | T36: ='Input Ramp Segments'!$AU$9 -> 0 | V36: =IF(Main!$AG$14=TRUE, 'Input Ramp Segments'!$AV$9, "") -> 
F37: 2037 | G37: 67.04962921 | H37: 0.3942358494 | I37: 1.023744226 | J37: 6.564718723 | K37: 13.2771244 | L37: 45.78980255 | N37: =N36+1 -> 2 | O37: ='Input Ramp Segments'!$I$9 -> R2 | Q37: =IF(Main!$AG$14=TRUE, 'Input Ramp Segments'!$J$9,"") ->  | S37: =S36+1 -> 22 | T37: ='Input Ramp Segments'!$AW$9 -> 0 | V37: =IF(Main!$AG$14=TRUE, 'Input Ramp Segments'!$AX$9, "") -> 
F38: 2038 | G38: 68.604599 | H38: 0.4017372131 | I38: 1.043061137 | J38: 6.690438271 | K38: 13.53491879 | L38: 46.93444061 | N38: =N37+1 -> 3 | O38: ='Input Ramp Segments'!$K$9 -> R3 | Q38: =IF(Main!$AG$14=TRUE, 'Input Ramp Segments'!$L$9,"") ->  | S38: =S37+1 -> 23 | T38: ='Input Ramp Segments'!$AY$9 -> 0 | V38: =IF(Main!$AG$14=TRUE, 'Input Ramp Segments'!$AZ$9, "") -> 
F39: 2039 | G39: 70.17443848 | H39: 0.4092756808 | I39: 1.062471867 | J39: 6.81678915 | K39: 13.79404259 | L39: 48.09185791 | N39: 4 | O39: ='Input Ramp Segments'!$M$9 -> R4 | Q39: =IF(Main!$AG$14=TRUE, 'Input Ramp Segments'!$N$9,"") ->  | S39: 24 | T39: ='Input Ramp Segments'!$BA$9 -> 0 | V39: =IF(Main!$AG$14=TRUE, 'Input Ramp Segments'!$BB$9, "") -> 
F40: 2040 | G40: 71.75913239 | H40: 0.4168511331 | I40: 1.081976175 | J40: 6.943768501 | K40: 14.0544939 | L40: 49.262043 | N40: 5 | O40: ='Input Ramp Segments'!$O$9 -> R5 | Q40: =IF(Main!$AG$14=TRUE, 'Input Ramp Segments'!$P$9,"") ->  | S40: 25 | T40: ='Input Ramp Segments'!$BC$9 -> 0 | V40: =IF(Main!$AG$14=TRUE, 'Input Ramp Segments'!$BD$9, "") -> 
F41: 2041 | G41: 73.3586731 | H41: 0.4244632125 | I41: 1.101573229 | J41: 7.071370125 | K41: 14.31625748 | L41: 50.44500732 | N41: 6 | O41: ='Input Ramp Segments'!$Q$9 -> R6 | Q41: =IF(Main!$AG$14=TRUE, 'Input Ramp Segments'!$R$9, "") ->  | S41: 26 | T41: ='Input Ramp Segments'!$BE$9 -> 0 | V41: =IF(Main!$AG$14=TRUE, 'Input Ramp Segments'!$BF$9, "") -> 
F42: 2042 | G42: 74.97302246 | H42: 0.4321120679 | I42: 1.121263266 | J42: 7.199595451 | K42: 14.57933521 | L42: 51.64071655 | N42: 7 | O42: ='Input Ramp Segments'!$S$9 -> R7 | Q42: =IF(Main!$AG$14=TRUE, 'Input Ramp Segments'!$T$9, "") ->  | S42: 27 | T42: ='Input Ramp Segments'!$BG$9 -> 0 | V42: =IF(Main!$AG$14=TRUE, 'Input Ramp Segments'!$BH$9, "") -> 
F43: 2043 | G43: 76.60217285 | H43: 0.4397972822 | I43: 1.141045213 | J43: 7.328438282 | K43: 14.84371281 | L43: 52.8491745 | N43: 8 | O43: ='Input Ramp Segments'!$U$9 -> R8 | Q43: =IF(Main!$AG$14=TRUE, 'Input Ramp Segments'!$V$9, "") ->  | S43: 28 | T43: ='Input Ramp Segments'!$BI$9 -> 0 | V43: =IF(Main!$AG$14=TRUE, 'Input Ramp Segments'!$BJ$9, "") -> 
F44: 2044 | G44: 78.24607849 | H44: 0.4475188255 | I44: 1.160919309 | J44: 7.45789814 | K44: 15.10938931 | L44: 54.07035446 | N44: 9 | O44: ='Input Ramp Segments'!$W$9 -> 0 | Q44: =IF(Main!$AG$14=TRUE, 'Input Ramp Segments'!$X$9, "") ->  | S44: 29 | T44: ='Input Ramp Segments'!$BK$9 -> 0 | V44: =IF(Main!$AG$14=TRUE, 'Input Ramp Segments'!$BL$9, "") -> 
F45: 2045 | G45: 79.90474701 | H45: 0.4552764893 | I45: 1.180884957 | J45: 7.587970734 | K45: 15.37635517 | L45: 55.30426025 | N45: 10 | O45: ='Input Ramp Segments'!$Y$9 -> 0 | Q45: =IF(Main!$AG$14=TRUE, 'Input Ramp Segments'!$Z$9, "") ->  | S45: 30 | T45: ='Input Ramp Segments'!$BM$9 -> 0 | V45: =IF(Main!$AG$14=TRUE, 'Input Ramp Segments'!$BN$9, "") -> 
F46: 2046 | N46: 11 | O46: ='Input Ramp Segments'!$AA$9 -> 0 | Q46: =IF(Main!$AG$14=TRUE, 'Input Ramp Segments'!$AB$9, "") ->  | S46: 31 | T46: ='Input Ramp Segments'!$BO$9 -> 0 | V46: =IF(Main!$AG$14=TRUE, 'Input Ramp Segments'!$BP$9, "") -> 
F47: 2047 | N47: 12 | O47: ='Input Ramp Segments'!$AC$9 -> 0 | Q47: =IF(Main!$AG$14=TRUE, 'Input Ramp Segments'!$AD$9, "") ->  | S47: 32 | T47: ='Input Ramp Segments'!$BQ$9 -> 0 | V47: =IF(Main!$AG$14=TRUE, 'Input Ramp Segments'!$BR$9, "") -> 
F48: 2048 | N48: 13 | O48: ='Input Ramp Segments'!$AE$9 -> 0 | Q48: =IF(Main!$AG$14=TRUE, 'Input Ramp Segments'!$AF$9, "") ->  | S48: 33 | T48: ='Input Ramp Segments'!$BS$9 -> 0 | V48: =IF(Main!$AG$14=TRUE, 'Input Ramp Segments'!$BT$9, "") -> 
B49: Distribution of Crashes for Entire Facility | N49: 14 | O49: ='Input Ramp Segments'!$AG$9 -> 0 | Q49: =IF(Main!$AG$14=TRUE, 'Input Ramp Segments'!$AH$9, "") ->  | S49: 34 | T49: ='Input Ramp Segments'!$BU$9 -> 0 | V49: =IF(Main!$AG$14=TRUE, 'Input Ramp Segments'!$BV$9, "") -> 
B50: Crash Type | D50: Crash Type Category | G50: Estimated Number of Crashes During the Study Period | N50: 15 | O50: ='Input Ramp Segments'!$AI$9 -> 0 | Q50: =IF(Main!$AG$14=TRUE, 'Input Ramp Segments'!$AJ$9, "") ->  | S50: 35 | T50: ='Input Ramp Segments'!$BW$9 -> 0 | V50: =IF(Main!$AG$14=TRUE, 'Input Ramp Segments'!$BX$9, "") -> 
G51: Total | H51: K | I51: A | J51: B | K51: C | L51: PDO | N51: 16 | O51: ='Input Ramp Segments'!$AK$9 -> 0 | Q51: =IF(Main!$AG$14=TRUE, 'Input Ramp Segments'!$AL$9, "") ->  | S51: 36 | T51: ='Input Ramp Segments'!$BY$9 -> 0 | V51: =IF(Main!$AG$14=TRUE, 'Input Ramp Segments'!$BZ$9, "") -> 
B52: Multiple vehicle | D52: Head-on crashes: | G52: 3.615488529 | H52: 0.04041047767 | I52: 0.1032983586 | J52: 0.6844652891 | K52: 1.423869014 | L52: 1.363445163 | N52: 17 | O52: ='Input Ramp Segments'!$AM$9 -> 0 | Q52: =IF(Main!$AG$14=TRUE, 'Input Ramp Segments'!$AN$9, "") ->  | S52: 37 | T52: ='Input Ramp Segments'!$CA$9 -> 0 | V52: =IF(Main!$AG$14=TRUE, 'Input Ramp Segments'!$CB$9, "") -> 
D53: Right-angle crashes: | G53: 19.88043404 | H53: 0.1507712007 | I53: 0.3822550774 | J53: 2.55903101 | K53: 5.379388332 | L53: 11.40899086 | N53: 18 | O53: ='Input Ramp Segments'!$AO$9 -> 0 | Q53: =IF(Main!$AG$14=TRUE, 'Input Ramp Segments'!$AP$9, "") ->  | S53: 38 | T53: ='Input Ramp Segments'!$CC$9 -> 0 | V53: =IF(Main!$AG$14=TRUE, 'Input Ramp Segments'!$CD$9, "") -> 
D54: Rear-end crashes: | G54: 651.8733521 | H54: 3.78996706 | I54: 9.640059471 | J54: 64.2743988 | K54: 134.5592194 | L54: 439.6096191 | N54: 19 | O54: ='Input Ramp Segments'!$AQ$9 -> 0 | Q54: =IF(Main!$AG$14=TRUE, 'Input Ramp Segments'!$AR$9, "") ->  | S54: 39 | T54: ='Input Ramp Segments'!$CE$9 -> 0 | V54: =IF(Main!$AG$14=TRUE, 'Input Ramp Segments'!$CF$9, "") -> 
D55: Sideswipe crashes: | G55: 223.9382324 | H55: 0.9087199569 | I55: 2.308618784 | J55: 15.41573334 | K55: 32.32226181 | L55: 172.9828796 | N55: 20 | O55: ='Input Ramp Segments'!$AS$9 -> 0 | Q55: =IF(Main!$AG$14=TRUE, 'Input Ramp Segments'!$AT$9, "") ->  | S55: 40 | T55: ='Input Ramp Segments'!$CG$9 -> 0 | V55: =IF(Main!$AG$14=TRUE, 'Input Ramp Segments'!$CH$9, "") -> 
D56: Other multiple-vehicle crashes: | G56: 25.5586586 | H56: 0.167996332 | I56: 0.434689939 | J56: 2.836664677 | K56: 5.80775404 | L56: 16.31155205 | N56: Crossroad Ramp Terminals
D57: Total multiple-vehicle crashes: | G57: 924.8661499 | H57: 5.057865143 | I57: 12.86892128 | J57: 85.77029419 | K57: 179.4924927 | L57: 641.6764526 | N57: Number | O57: Config. | P57: Control | Q57: =IF(Main!$AK$14=TRUE, "Crash Period Description", "Study Period Description") -> Study Period Description | U57: =IF(Main!$AK$14=TRUE, "Study Period Description", "") -> 
B58: Single vehicle | D58: Crashes with animal: | G58: 5.787744045 | H58: 0.01004730444 | I58: 0.02681882307 | J58: 0.1629981399 | K58: 0.3130633831 | L58: 5.274816036
D59: Crashes with fixed object: | G59: 309.4994507 | H59: 2.101837635 | I59: 5.652270317 | J59: 33.86888885 | K59: 64.0929718 | L59: 203.783493 | N59: 1 | O59: ='Input Ramp Terminals'!$G$8 -> 0 | P59: ='Input Ramp Terminals'!$G$10 -> 0 | Q59: ='Input Ramp Terminals'!$G$9 -> 0 | U59: =IF(Main!$AK$14=TRUE, 'Input Ramp Terminals'!$H$9, "") -> 
D60: Crashes with other object: | G60: 40.50145721 | H60: 0.1184500456 | I60: 0.306727916 | J60: 1.973294973 | K60: 4.005706787 | L60: 34.09727859 | N60: =N59+1 -> 2 | O60: ='Input Ramp Terminals'!$I$8 -> 0 | P60: ='Input Ramp Terminals'!$I$10 -> 0 | Q60: ='Input Ramp Terminals'!$I$9 -> 0 | U60: =IF(Main!$AK$14=TRUE, 'Input Ramp Terminals'!$J$9, "") -> 
D61: Crashes with parked vehicle: | G61: 6.276807785 | H61: 0.04044154659 | I61: 0.1079138741 | J61: 0.6562772989 | K61: 1.261280775 | L61: 4.210894108 | N61: =N60+1 -> 3 | O61: ='Input Ramp Terminals'!$K$8 -> 0 | P61: ='Input Ramp Terminals'!$K$10 -> 0 | Q61: ='Input Ramp Terminals'!$K$9 -> 0 | U61: =IF(Main!$AK$14=TRUE, 'Input Ramp Terminals'!$L$9, "") -> 
D62: Other single-vehicle crashes | G62: 62.49694824 | H62: 0.6520834565 | I62: 1.767148018 | J62: 10.43343925 | K62: 19.43231201 | L62: 30.21196175 | N62: =N61+1 -> 4 | O62: ='Input Ramp Terminals'!$M$8 -> 0 | P62: ='Input Ramp Terminals'!$M$10 -> 0 | Q62: ='Input Ramp Terminals'!$M$9 -> 0 | U62: =IF(Main!$AK$14=TRUE, 'Input Ramp Terminals'!$N$9,"") -> 
D63: Total single-vehicle crashes: | G63: 424.5624084 | H63: 2.922859907 | I63: 7.860878944 | J63: 47.09489441 | K63: 89.10533142 | L63: 277.5784302 | N63: =N62+1 -> 5 | O63: ='Input Ramp Terminals'!$O$8 -> 0 | P63: ='Input Ramp Terminals'!$O$10 -> 0 | Q63: ='Input Ramp Terminals'!$O$9 -> 0 | U63: =IF(Main!$AK$14=TRUE, 'Input Ramp Terminals'!$P$9, "") -> 
E64: Total crashes: | G64: 1349.428589 | H64: 7.980726242 | I64: 20.72979927 | J64: 132.8651886 | K64: 268.5979004 | L64: 919.2549438 | N64: =N63+1 -> 6 | O64: ='Input Ramp Terminals'!$Q$8 -> 0 | P64: ='Input Ramp Terminals'!$Q$10 -> 0 | Q64: ='Input Ramp Terminals'!$Q$9 -> 0 | U64: =IF(Main!$AK$14=TRUE, 'Input Ramp Terminals'!$R$9, "") -> 

Sheet Output Freeway Segments
E3: Output Worksheet for Freeway Segments
B4: MV = multiple-vehicle model | C4: ENR = ramp entrance model | G4: ="Segment "& TEXT(INT((COLUMN()-5)/2),"0") -> Segment 1 | I4: ="Segment "& TEXT(INT((COLUMN()-5)/2),"0") -> Segment 2 | K4: ="Segment "& TEXT(INT((COLUMN()-5)/2),"0") -> Segment 3 | M4: ="Segment "& TEXT(INT((COLUMN()-5)/2),"0") -> Segment 4 | O4: ="Segment "& TEXT(INT((COLUMN()-5)/2),"0") -> Segment 5 | Q4: ="Segment "& TEXT(INT((COLUMN()-5)/2),"0") -> Segment 6 | S4: ="Segment "& TEXT(INT((COLUMN()-5)/2),"0") -> Segment 7 | U4: ="Segment "& TEXT(INT((COLUMN()-5)/2),"0") -> Segment 8 | W4: ="Segment "& TEXT(INT((COLUMN()-5)/2),"0") -> Segment 9 | Y4: ="Segment "& TEXT(INT((COLUMN()-5)/2),"0") -> Segment 10 | AA4: ="Segment "& TEXT(INT((COLUMN()-5)/2),"0") -> Segment 11 | AC4: ="Segment "& TEXT(INT((COLUMN()-5)/2),"0") -> Segment 12 | AE4: ="Segment "& TEXT(INT((COLUMN()-5)/2),"0") -> Segment 13 | AG4: ="Segment "& TEXT(INT((COLUMN()-5)/2),"0") -> Segment 14 | AI4: ="Segment "& TEXT(INT((COLUMN()-5)/2),"0") -> Segment 15 | AK4: ="Segment "& TEXT(INT((COLUMN()-5)/2),"0") -> Segment 16 | AM4: ="Segment "& TEXT(INT((COLUMN()-5)/2),"0") -> Segment 17 | AO4: ="Segment "& TEXT(INT((COLUMN()-5)/2),"0") -> Segment 18 | AQ4: ="Segment "& TEXT(INT((COLUMN()-5)/2),"0") -> Segment 19 | AS4: ="Segment "& TEXT(INT((COLUMN()-5)/2),"0") -> Segment 20
B5: SV = single-vehicle model | C5: EXR = ramp exit model | G5: =IF(Main!$AC$14=TRUE, "Crash Period", "Study Period") -> Study Period | H5: =IF(Main!$AC$14=TRUE, "Study Period", "") ->  | I5: =G5 -> Study Period | K5: Study Period | M5: Study Period | O5: Study Period | Q5: Study Period | S5: Study Period | U5: Study Period | W5: Study Period | Y5: Study Period | AA5: Study Period | AC5: Study Period | AE5: Study Period | AG5: Study Period | AI5: Study Period | AK5: Study Period | AM5: Study Period | AO5: Study Period | AQ5: Study Period | AS5: Study Period
C6: Applicable Models (y)
B7: Crash Modification Factors
B8: Fatal-and-Injury Crash CMFs
B9: Horizontal curve (CMF1,w,ac,y,fi): | C9: MV | E9: ENR | F9: EXR | G9: 1 | I9: 1 | K9: 1 | M9: 1 | O9: 1
D10: SV | G10: 1 | I10: 1 | K10: 1 | M10: 1 | O10: 1
B11: Lane width (CMF2,w,ac,y,fi): | C11: MV | D11: SV | E11: ENR | F11: EXR | G11: 1 | I11: 1 | K11: 1 | M11: 1 | O11: 1
B12: Outside shoulder width (CMF8,fs,ac,sv,fi): | D12: SV | G12: 1 | I12: 1 | K12: 1 | M12: 1 | O12: 1
B13: Inside shoulder width (CMF3,w,ac,y,fi): | C13: MV | D13: SV | E13: ENR | F13: EXR | G13: 0.9661849737 | I13: 0.9661849737 | K13: 0.9661849737 | M13: 0.9661849737 | O13: 0.9661849737
B14: Median width (CMF4,w,ac,y,fi): | C14: MV | E14: ENR | F14: EXR | G14: 1.043186545 | I14: 1.043186545 | K14: 1.043186545 | M14: 1.043186545 | O14: 1.043186545
D15: SV | G15: 0.9858214855 | I15: 0.9858214855 | K15: 0.9858214855 | M15: 0.9858214855 | O15: 0.9858214855
B16: Median barrier (CMF5,w,ac,y,fi): | C16: MV | D16: SV | E16: ENR | F16: EXR | G16: 1 | I16: 1 | K16: 1 | M16: 1 | O16: 1
B17: Shoulder rumble strip (CMF9,fs,ac,sv,fi): | D17: SV | G17: 1 | I17: 1 | K17: 1 | M17: 1 | O17: 1
B18: Outside clearance (CMF10,fs,ac,sv,fi): | D18: SV | G18: 1 | I18: 1 | K18: 1 | M18: 1 | O18: 1
B19: Outside barrier (CMF11,fs,ac,sv,fi): | D19: SV | G19: 1 | I19: 1 | K19: 1 | M19: 1 | O19: 1
B20: Lane change (CMF7,fs,ac,mv,fi): | C20: MV
E21: Year: | F21: =Main!AC5 -> 2025 | G21: 1.149977207 | I21: 1.001142979 | K21: 2.111315489 | M21: 1.000871778 | O21: 1.163286924
F22: =F21+1 -> 2026 | G22: 1.149171472 | I22: 1.00113678 | K22: 2.108678579 | M22: 1.000867128 | O22: 1.162409782
F23: =F22+1 -> 2027 | G23: 1.148385644 | I23: 1.001130819 | K23: 2.106108427 | M23: 1.000862598 | O23: 1.161554217
F24: 2028 | G24: 1.147618771 | I24: 1.001124978 | K24: 2.103601933 | M24: 1.000858068 | O24: 1.160719395
F25: 2029 | G25: 1.146870255 | I25: 1.001119256 | K25: 2.101155996 | M25: 1.000853777 | O25: 1.159904361
F26: 2030 | G26: 1.146139026 | I26: 1.001113653 | K26: 2.098768711 | M26: 1.000849485 | O26: 1.159108162
F27: 2031 | G27: 1.145424604 | I27: 1.00110817 | K27: 2.096437216 | M27: 1.000845194 | O27: 1.158330441
F28: 2032 | G28: 1.144726157 | I28: 1.001102924 | K28: 2.094159365 | M28: 1.00084126 | O28: 1.157569885
F29: 2033 | G29: 1.144043207 | I29: 1.001097679 | K29: 2.091933012 | M29: 1.000837326 | O29: 1.156826377
F30: 2034 | G30: 1.14337492 | I30: 1.001092672 | K30: 2.089755774 | M30: 1.000833392 | O30: 1.156098843
F31: 2035 | G31: 1.142720938 | I31: 1.001087666 | K31: 2.087626219 | M31: 1.000829577 | O31: 1.155386925
F32: 2036 | G32: 1.142080784 | I32: 1.001082778 | K32: 2.085542679 | M32: 1.000825882 | O32: 1.154689789
F33: 2037 | G33: 1.141453743 | I33: 1.00107801 | K33: 2.083503008 | M33: 1.000822186 | O33: 1.154007196
F34: 2038 | G34: 1.140839577 | I34: 1.00107336 | K34: 2.081505537 | M34: 1.000818729 | O34: 1.153338432
F35: 2039 | G35: 1.14023757 | I35: 1.001068711 | K35: 2.079548836 | M35: 1.000815153 | O35: 1.15268302
F36: 2040 | G36: 1.139647365 | I36: 1.001064301 | K36: 2.07763195 | M36: 1.000811815 | O36: 1.152040482
F37: 2041 | G37: 1.139068604 | I37: 1.001059771 | K37: 2.075752735 | M37: 1.000808358 | O37: 1.151410341
F38: 2042 | G38: 1.138500929 | I38: 1.001055479 | K38: 2.073910236 | M38: 1.00080514 | O38: 1.15079236
F39: 2043 | G39: 1.137943983 | I39: 1.001051188 | K39: 2.072103262 | M39: 1.000801802 | O39: 1.150185943
F40: 2044 | G40: 1.137397289 | I40: 1.001047134 | K40: 2.07033062 | M40: 1.000798583 | O40: 1.149590731
F41: 2045 | G41: 1.136860609 | I41: 1.001042962 | K41: 2.068590879 | M41: 1.000795603 | O41: 1.149006486
F42: 2046
F43: 2047
F44: 2048
B45: Ramp entrance (CMF12,sc,nEN,at,fi): | E45: ENR
E46: Year: | F46: =F21 -> 2025 | G46: 1.844920039 | I46: 1 | K46: 1 | M46: 1 | O46: 1.789461017
F47: =F22 -> 2026 | G47: 1.852167964 | I47: 1 | K47: 1 | M47: 1 | O47: 1.796491265
F48: 2027 | G48: 1.85930264 | I48: 1 | K48: 1 | M48: 1 | O48: 1.803411365
F49: 2028 | G49: 1.866328239 | I49: 1 | K49: 1 | M49: 1 | O49: 1.810225844
F50: 2029 | G50: 1.873248339 | I50: 1 | K50: 1 | M50: 1 | O50: 1.816937804
F51: 2030 | G51: 1.880066276 | I51: 1 | K51: 1 | M51: 1 | O51: 1.82355094
F52: 2031 | G52: 1.886785626 | I52: 1 | K52: 1 | M52: 1 | O52: 1.830068231
F53: 2032 | G53: 1.893409491 | I53: 1 | K53: 1 | M53: 1 | O53: 1.836493015
F54: 2033 | G54: 1.89994061 | I54: 1 | K54: 1 | M54: 1 | O54: 1.842827916
F55: 2034 | G55: 1.906382203 | I55: 1 | K55: 1 | M55: 1 | O55: 1.849075675
F56: 2035 | G56: 1.912736893 | I56: 1 | K56: 1 | M56: 1 | O56: 1.855239272
F57: 2036 | G57: 1.919007063 | I57: 1 | K57: 1 | M57: 1 | O57: 1.861320853
F58: 2037 | G58: 1.925195336 | I58: 1 | K58: 1 | M58: 1 | O58: 1.867323279
F59: 2038 | G59: 1.931303978 | I59: 1 | K59: 1 | M59: 1 | O59: 1.873248339
F60: 2039 | G60: 1.937335491 | I60: 1 | K60: 1 | M60: 1 | O60: 1.879098415
F61: 2040 | G61: 1.943291903 | I61: 1 | K61: 1 | M61: 1 | O61: 1.884875774
F62: 2041 | G62: 1.949175119 | I62: 1 | K62: 1 | M62: 1 | O62: 1.890582323
F63: 2042 | G63: 1.954987407 | I63: 1 | K63: 1 | M63: 1 | O63: 1.89621985
F64: 2043 | G64: 1.960730553 | I64: 1 | K64: 1 | M64: 1 | O64: 1.901790023
F65: 2044 | G65: 1.966406226 | I65: 1 | K65: 1 | M65: 1 | O65: 1.907295227
F66: 2045 | G66: 1.972016454 | I66: 1 | K66: 1 | M66: 1 | O66: 1.912736893
F67: 2046
F68: 2047
F69: =F44 -> 2048
B70: Ramp exit (CMF13,sc,nEX,at,fi): | F70: EXR | G70: 1.336427569 | I70: 1 | K70: 1 | M70: 1 | O70: 1.336427569
B71: High volume (CMF6,w,ac,y,fi): | C71: MV | E71: ENR | F71: EXR | G71: 1.110710621 | I71: 1.110710621 | K71: 1.110710621 | M71: 1.110710621 | O71: 1.110710621
D72: SV | G72: 0.9799536467 | I72: 0.9799536467 | K72: 0.9799536467 | M72: 0.9799536467 | O72: 0.9799536467
B73: Property-Damage-Only Crash CMFs
B74: Horizontal curve (CMF1,w,ac,y,pdo): | C74: MV | E74: ENR | F74: EXR | G74: 1 | I74: 1 | K74: 1 | M74: 1 | O74: 1
D75: SV | G75: 1 | I75: 1 | K75: 1 | M75: 1 | O75: 1
B76: Lane width (CMF2,w,ac,y,pdo): | C76: MV | D76: SV | E76: ENR | F76: EXR | G76: 1 | I76: 1 | K76: 1 | M76: 1 | O76: 1
B77: Outside shoulder width (CMF8,fs,ac,sv,pdo): | D77: SV | G77: 1 | I77: 1 | K77: 1 | M77: 1 | O77: 1
B78: Inside shoulder width (CMF3,w,ac,y,pdo): | C78: MV | D78: SV | E78: ENR | F78: EXR | G78: 0.9698634148 | I78: 0.9698634148 | K78: 0.9698634148 | M78: 0.9698634148 | O78: 0.9698634148
B79: Median width (CMF4,w,ac,y,pdo): | C79: MV | E79: ENR | F79: EXR | G79: 1.041581273 | I79: 1.041581273 | K79: 1.041581273 | M79: 1.041581273 | O79: 1.041581273
D80: SV | G80: 1.041289687 | I80: 1.041289687 | K80: 1.041289687 | M80: 1.041289687 | O80: 1.041289687
B81: Median barrier (CMF5,w,ac,y,pdo): | C81: MV | D81: SV | E81: ENR | F81: EXR | G81: 1 | I81: 1 | K81: 1 | M81: 1 | O81: 1
B82: Shoulder rumble strip (CMF9,fs,ac,sv,pdo): | D82: SV | G82: 1 | I82: 1 | K82: 1 | M82: 1 | O82: 1
B83: Outside clearance (CMF10,fs,ac,sv,pdo): | D83: SV | G83: 1 | I83: 1 | K83: 1 | M83: 1 | O83: 1
B84: Outside barrier (CMF11,fs,ac,sv,pdo): | D84: SV | G84: 1 | I84: 1 | K84: 1 | M84: 1 | O84: 1
B85: Lane change (CMF7,fs,ac,mv,pdo): | C85: MV
E86: Year: | F86: =F21 -> 2025 | G86: 1.137662172 | I86: 1.000764608 | K86: 1.784626365 | M86: 1.000579596 | O86: 1.150396347
F87: =F86+1 -> 2026 | G87: 1.136892915 | I87: 1.000760317 | K87: 1.782480597 | M87: 1.000576258 | O87: 1.149555802
F88: =F87+1 -> 2027 | G88: 1.136142731 | I88: 1.000756145 | K88: 1.780389309 | M88: 1.000573158 | O88: 1.148736238
F89: 2028 | G89: 1.135410786 | I89: 1.000752091 | K89: 1.778350234 | M89: 1.000570059 | O89: 1.147936583
F90: 2029 | G90: 1.134696484 | I90: 1.000748158 | K90: 1.776361108 | M90: 1.000567079 | O90: 1.147156119
F91: 2030 | G91: 1.133998752 | I91: 1.000744224 | K91: 1.774419665 | M91: 1.000564098 | O91: 1.146394014
F92: 2031 | G92: 1.133317232 | I92: 1.000740528 | K92: 1.772523999 | M92: 1.000561237 | O92: 1.145649433
F93: 2032 | G93: 1.132651091 | I93: 1.000736713 | K93: 1.770672083 | M93: 1.000558376 | O93: 1.14492178
F94: 2033 | G94: 1.13199985 | I94: 1.000733137 | K94: 1.768862605 | M94: 1.000555754 | O94: 1.1442101
F95: 2034 | G95: 1.131362915 | I95: 1.000729561 | K95: 1.767093539 | M95: 1.000553012 | O95: 1.143514156
F96: 2035 | G96: 1.13073945 | I96: 1.000726104 | K96: 1.765363336 | M96: 1.000550389 | O96: 1.142833233
F97: 2036 | G97: 1.130129337 | I97: 1.000722647 | K97: 1.763670564 | M97: 1.000547886 | O97: 1.142166615
F98: 2037 | G98: 1.12953186 | I98: 1.000719428 | K98: 1.762013793 | M98: 1.000545263 | O98: 1.141513944
F99: 2038 | G99: 1.128946781 | I99: 1.000716209 | K99: 1.760391831 | M99: 1.000542879 | O99: 1.140874624
F100: 2039 | G100: 1.128373384 | I100: 1.000712991 | K100: 1.758803129 | M100: 1.000540495 | O100: 1.140248179
F101: 2040 | G101: 1.127811193 | I101: 1.000709772 | K101: 1.757246614 | M101: 1.000538111 | O101: 1.139634132
F102: 2041 | G102: 1.127260208 | I102: 1.000706792 | K102: 1.755721331 | M102: 1.000535727 | O102: 1.139032125
F103: 2042 | G103: 1.126719832 | I103: 1.000703812 | K103: 1.754225969 | M103: 1.000533462 | O103: 1.138441801
F104: 2043 | G104: 1.126189709 | I104: 1.000700951 | K104: 1.752759576 | M104: 1.000531197 | O104: 1.137862444
F105: 2044 | G105: 1.12566936 | I105: 1.00069797 | K105: 1.751321316 | M105: 1.000529051 | O105: 1.137294054
F106: 2045 | G106: 1.125158668 | I106: 1.000695229 | K106: 1.749909997 | M106: 1.000526905 | O106: 1.136736155
F107: 2046
F108: 2047
F109: 2048
B110: Ramp entrance (CMF12,sc,nEN,at,pdo): | E110: ENR | G110: 1.197217345 | I110: 1 | K110: 1 | M110: 1 | O110: 1.197217345
B111: Ramp exit (CMF13,sc,nEX,at,pdo): | F111: EXR | G111: 1 | I111: 1 | K111: 1 | M111: 1 | O111: 1
B112: High volume (CMF6,w,ac,y,pdo): | C112: MV | E112: ENR | F112: EXR | G112: 1.088608146 | I112: 1.088608146 | K112: 1.088608146 | M112: 1.088608146 | O112: 1.088608146
D113: SV | G113: 0.8325183392 | I113: 0.8325183392 | K113: 0.8325183392 | M113: 0.8325183392 | O113: 0.8325183392
B114: =IF(Main!$AC$14=TRUE, "Expected Average Crash Frequency", "Predicted Average Crash Frequency") -> Predicted Average Crash Frequency
B115: Fatal-and-Injury Crash Frequency
B116: Freeway Segment Multiple-Vehicle Crash Analysis | F116: Year
B117: Overdispersion parameter (kfs,n,mv,fi):
B118: Observed crash count (N*o,fs,n,mv,fi), crashes:
B119: Reference year (r):
B120: Predicted average crash freq. for reference year (Np,fs,n,mv,fi,r), crashes/yr:
B121: Equivalent years associated with crash count (Cb,fs,n,mv,fi,r), yr:
B122: Expected average crash freq. for reference year given N*o (Ne,fs,n,mv,fi,r), crashes/yr:
B123: =IF(Main!$AC$14=TRUE, "Expected average crash frequency", "Predicted average crash frequency") -> Predicted average crash frequency | F123: =Main!$AC$5 -> 2025 | G123: 0.9761769772 | I123: 1.714758396 | K123: 3.167050123 | M123: 2.214648724 | O123: 1.046983719
B124: (Ne,fs,n,mv,fi), crashes/yr: | C124: (Np,fs,n,mv,fi), crashes/yr: | F124: =F123+1 -> 2026 | G124: 1.00474453 | I124: 1.766166806 | K124: 3.257944107 | M124: 2.281047344 | O124: 1.077565789
F125: =F124+1 -> 2027 | G125: 1.033572316 | I125: 1.818073392 | K125: 3.349625587 | M125: 2.348089218 | O125: 1.108424902
F126: 2028 | G126: 1.062657475 | I126: 1.870473146 | K126: 3.44208622 | M126: 2.415768147 | O126: 1.139558673
F127: 2029 | G127: 1.091997981 | I127: 1.923361421 | K127: 3.535316706 | M127: 2.484078407 | O127: 1.170964003
F128: 2030 | G128: 1.121590972 | I128: 1.976733446 | K128: 3.6293118 | M128: 2.553013325 | O128: 1.20263803
F129: 2031 | G129: 1.151434183 | I129: 2.030584812 | K129: 3.724062443 | M129: 2.622567177 | O129: 1.234578848
F130: 2032 | G130: 1.181525111 | I130: 2.084911346 | K130: 3.81956172 | M130: 2.692735195 | O130: 1.266783237
F131: 2033 | G131: 1.211861849 | I131: 2.139708519 | K131: 3.915803432 | M131: 2.763511181 | O131: 1.29924953
F132: 2034 | G132: 1.242441535 | I132: 2.194972515 | K132: 4.012779236 | M132: 2.834889889 | O132: 1.331974745
F133: 2035 | G133: 1.273262382 | I133: 2.250698805 | K133: 4.110483646 | M133: 2.906865835 | O133: 1.364956856
F134: 2036 | G134: 1.304322481 | I134: 2.306883574 | K134: 4.208910942 | M134: 2.979434252 | O134: 1.398193359
F135: 2037 | G135: 1.335619569 | I135: 2.363523483 | K135: 4.308053493 | M135: 3.052590132 | O135: 1.431682587
F136: 2038 | G136: 1.367151737 | I136: 2.420614243 | K136: 4.407904625 | M136: 3.126329184 | O136: 1.465421915
F137: 2039 | G137: 1.39891696 | I137: 2.478152514 | K137: 4.508459568 | M137: 3.200645208 | O137: 1.499409437
F138: 2040 | G138: 1.430913091 | I138: 2.536134481 | K138: 4.609713078 | M138: 3.275535583 | O138: 1.533643007
F139: 2041 | G139: 1.46313858 | I139: 2.59455657 | K139: 4.711657047 | M139: 3.350993872 | O139: 1.568120718
F140: 2042 | G140: 1.495591879 | I140: 2.653416157 | K140: 4.814288139 | M140: 3.427017212 | O140: 1.6028409
F141: 2043 | G141: 1.528270483 | I141: 2.712708712 | K141: 4.917600155 | M141: 3.503599882 | O141: 1.637801051
F142: 2044 | G142: 1.56117332 | I142: 2.772432327 | K142: 5.021588326 | M142: 3.58073926 | O142: 1.672999859
F143: 2045 | G143: 1.594298124 | I143: 2.832582474 | K143: 5.126245975 | M143: 3.658430815 | O143: 1.708435416
F144: 2046
F145: 2047
F146: 2048
B147: Freeway Segment Single-Vehicle Crash Analysis | F147: Year
B148: Overdispersion parameter (kfs,n,sv,fi):
B149: Observed crash count (N*o,fs,n,sv,fi), crashes:
B150: Reference year (r):
B151: Predicted average crash freq. for reference year (Np,fs,n,sv,fi,r), crashes/yr:
B152: Equivalent years associated with crash count (Cb,fs,n,sv,fi,r), yr:
B153: Expected average crash freq. for reference year given N*o (Na,fs,n,sv,fi,r), crashes/yr:
B154: =IF(Main!$AC$14=TRUE, "Expected average crash frequency", "Predicted average crash frequency") -> Predicted average crash frequency | F154: =F123 -> 2025 | G154: 0.4916257858 | I154: 1.138187289 | K154: 0.8404017687 | M154: 1.362652779 | O154: 0.5042410493
B155: (Ne,fs,n,sv,fi), crashes/yr: | C155: (Np,fs,n,sv,fi), crashes/yr: | F155: =F124 -> 2026 | G155: 0.4979553223 | I155: 1.15284121 | K155: 0.851221621 | M155: 1.380196452 | O155: 0.5107330084
F156: 2027 | G156: 0.5042410493 | I156: 1.167393565 | K156: 0.8619666696 | M156: 1.397618771 | O156: 0.5171800256
F157: 2028 | G157: 0.510484159 | I157: 1.181847215 | K157: 0.872638762 | M157: 1.414922833 | O157: 0.523583293
F158: 2029 | G158: 0.5166856647 | I158: 1.196204782 | K158: 0.8832399249 | M158: 1.432111859 | O158: 0.5299440026
F159: 2030 | G159: 0.5228466392 | I159: 1.210468292 | K159: 0.8937717676 | M159: 1.449188352 | O159: 0.5362630486
F160: 2031 | G160: 0.5289681554 | I160: 1.224640489 | K160: 0.9042359591 | M160: 1.466155529 | O160: 0.5425415635
F161: 2032 | G161: 0.5350509882 | I161: 1.238723278 | K161: 0.9146342874 | M161: 1.483015656 | O161: 0.5487806201
F162: 2033 | G162: 0.5410962701 | I162: 1.252718806 | K162: 0.924968183 | M162: 1.499771237 | O162: 0.5549809337
F163: 2034 | G163: 0.5471047163 | I163: 1.266629338 | K163: 0.9352391958 | M163: 1.516425014 | O163: 0.5611435771
F164: 2035 | G164: 0.5530772209 | I164: 1.280456543 | K164: 0.9454488158 | M164: 1.53297925 | O164: 0.5672692657
F165: 2036 | G165: 0.5590145588 | I165: 1.294202447 | K165: 0.9555983543 | M165: 1.549435973 | O165: 0.5733590126
F166: 2037 | G166: 0.5649175644 | I166: 1.307868719 | K166: 0.9656890631 | M166: 1.565797567 | O166: 0.5794135332
F167: 2038 | G167: 0.5707870126 | I167: 1.321457267 | K167: 0.9757224321 | M167: 1.582065821 | O167: 0.5854334831
F168: 2039 | G168: 0.5766234398 | I168: 1.33496964 | K168: 0.985699594 | M168: 1.598242998 | O168: 0.5914197564
F169: 2040 | G169: 0.5824277997 | I169: 1.348407507 | K169: 0.9956216812 | M169: 1.614331007 | O169: 0.5973730683
F170: 2041 | G170: 0.5882005692 | I170: 1.361772299 | K170: 1.005489826 | M170: 1.630331635 | O170: 0.6032938957
F171: 2042 | G171: 0.5939424634 | I171: 1.375065684 | K171: 1.015305281 | M171: 1.646246552 | O171: 0.6091831326
F172: 2043 | G172: 0.5996540785 | I172: 1.388288975 | K172: 1.025068879 | M172: 1.662077665 | O172: 0.6150413752
F173: 2044 | G173: 0.6053360701 | I173: 1.40144372 | K173: 1.034781933 | M173: 1.677826524 | O173: 0.6208691597
F174: 2045 | G174: 0.6109889746 | I174: 1.414530993 | K174: 1.044445157 | M174: 1.693494797 | O174: 0.6266671419
F175: 2046
F176: 2047
F177: 2048
B178: Ramp Entrance Crash Analysis | F178: Year
B179: Overdispersion parameter (ksc,EN,at,fi):
B180: Observed crash count (N*o,sc,EN,at,fi), crashes:
B181: Reference year (r):
B182: Predicted average crash freq. for reference year (Np,sc,EN,at,fi,r), crashes/yr:
B183: Equivalent years associated with crash count (Cb,sc,EN,at,fi,r), yr:
B184: Expected average crash freq. for reference year given N*o (Na,sc,EN,at,fi,r), crashes/yr:
B185: =IF(Main!$AC$14=TRUE, "Expected average crash frequency", "Predicted average crash frequency") -> Predicted average crash frequency | F185: =F154 -> 2025 | G185: 0.5347298384 | I185: 0 | K185: 0 | M185: 0 | O185: 0.5430742502
B186: (Ne,sc,EN,at,fi), crashes/yr: | C186: (Np,sc,EN,at,fi), crashes/yr: | F186: =F155 -> 2026 | G186: 0.5494462848 | I186: 0 | K186: 0 | M186: 0 | O186: 0.5580204129
F187: 2027 | G187: 0.5642701387 | I187: 0 | K187: 0 | M187: 0 | O187: 0.5730755329
F188: 2028 | G188: 0.579200089 | I188: 0 | K188: 0 | M188: 0 | O188: 0.5882385969
F189: 2029 | G189: 0.5942350626 | I189: 0 | K189: 0 | M189: 0 | O189: 0.6035080552
F190: 2030 | G190: 0.6093735695 | I190: 0 | K190: 0 | M190: 0 | O190: 0.6188828945
F191: 2031 | G191: 0.6246145964 | I191: 0 | K191: 0 | M191: 0 | O191: 0.6343617439
F192: 2032 | G192: 0.6399569511 | I192: 0 | K192: 0 | M192: 0 | O192: 0.6499435306
F193: 2033 | G193: 0.6553995013 | I193: 0 | K193: 0 | M193: 0 | O193: 0.6656270623
F194: 2034 | G194: 0.670941174 | I194: 0 | K194: 0 | M194: 0 | O194: 0.6814111471
F195: 2035 | G195: 0.6865808368 | I195: 0 | K195: 0 | M195: 0 | O195: 0.6972948909
F196: 2036 | G196: 0.7023174763 | I196: 0 | K196: 0 | M196: 0 | O196: 0.7132770419
F197: 2037 | G197: 0.7181501389 | I197: 0 | K197: 0 | M197: 0 | O197: 0.729356885
F198: 2038 | G198: 0.7340778708 | I198: 0 | K198: 0 | M198: 0 | O198: 0.7455331087
F199: 2039 | G199: 0.750099659 | I199: 0 | K199: 0 | M199: 0 | O199: 0.7618049383
F200: 2040 | G200: 0.7662146091 | I200: 0 | K200: 0 | M200: 0 | O200: 0.7781712413
F201: 2041 | G201: 0.7824217081 | I201: 0 | K201: 0 | M201: 0 | O201: 0.7946314812
F202: 2042 | G202: 0.7987203002 | I202: 0 | K202: 0 | M202: 0 | O202: 0.8111842871
... 382 more rows

Sheet Output Ramp Segments
E3: Output Worksheet for Ramp Segments
B4: MV = multiple-vehicle model | G4: ="Segment "& TEXT(INT((COLUMN()-5)/2),"0") -> Segment 1 | I4: ="Segment "& TEXT(INT((COLUMN()-5)/2),"0") -> Segment 2 | K4: ="Segment "& TEXT(INT((COLUMN()-5)/2),"0") -> Segment 3 | M4: ="Segment "& TEXT(INT((COLUMN()-5)/2),"0") -> Segment 4 | O4: ="Segment "& TEXT(INT((COLUMN()-5)/2),"0") -> Segment 5 | Q4: ="Segment "& TEXT(INT((COLUMN()-5)/2),"0") -> Segment 6 | S4: ="Segment "& TEXT(INT((COLUMN()-5)/2),"0") -> Segment 7 | U4: ="Segment "& TEXT(INT((COLUMN()-5)/2),"0") -> Segment 8 | W4: ="Segment "& TEXT(INT((COLUMN()-5)/2),"0") -> Segment 9 | Y4: ="Segment "& TEXT(INT((COLUMN()-5)/2),"0") -> Segment 10 | AA4: ="Segment "& TEXT(INT((COLUMN()-5)/2),"0") -> Segment 11 | AC4: ="Segment "& TEXT(INT((COLUMN()-5)/2),"0") -> Segment 12 | AE4: ="Segment "& TEXT(INT((COLUMN()-5)/2),"0") -> Segment 13 | AG4: ="Segment "& TEXT(INT((COLUMN()-5)/2),"0") -> Segment 14 | AI4: ="Segment "& TEXT(INT((COLUMN()-5)/2),"0") -> Segment 15 | AK4: ="Segment "& TEXT(INT((COLUMN()-5)/2),"0") -> Segment 16 | AM4: ="Segment "& TEXT(INT((COLUMN()-5)/2),"0") -> Segment 17 | AO4: ="Segment "& TEXT(INT((COLUMN()-5)/2),"0") -> Segment 18 | AQ4: ="Segment "& TEXT(INT((COLUMN()-5)/2),"0") -> Segment 19 | AS4: ="Segment "& TEXT(INT((COLUMN()-5)/2),"0") -> Segment 20 | AU4: ="Segment "& TEXT(INT((COLUMN()-5)/2),"0") -> Segment 21 | AW4: ="Segment "& TEXT(INT((COLUMN()-5)/2),"0") -> Segment 22 | AY4: ="Segment "& TEXT(INT((COLUMN()-5)/2),"0") -> Segment 23 | BA4: ="Segment "& TEXT(INT((COLUMN()-5)/2),"0") -> Segment 24 | BC4: ="Segment "& TEXT(INT((COLUMN()-5)/2),"0") -> Segment 25 | BE4: ="Segment "& TEXT(INT((COLUMN()-5)/2),"0") -> Segment 26 | BG4: ="Segment "& TEXT(INT((COLUMN()-5)/2),"0") -> Segment 27 | BI4: ="Segment "& TEXT(INT((COLUMN()-5)/2),"0") -> Segment 28 | BK4: ="Segment "& TEXT(INT((COLUMN()-5)/2),"0") -> Segment 29 | BM4: ="Segment "& TEXT(INT((COLUMN()-5)/2),"0") -> Segment 30 | BO4: ="Segment "& TEXT(INT((COLUMN()-5)/2),"0") -> Segment 31 | BQ4: ="Segment "& TEXT(INT((COLUMN()-5)/2),"0") -> Segment 32 | BS4: ="Segment "& TEXT(INT((COLUMN()-5)/2),"0") -> Segment 33 | BU4: ="Segment "& TEXT(INT((COLUMN()-5)/2),"0") -> Segment 34 | BW4: ="Segment "& TEXT(INT((COLUMN()-5)/2),"0") -> Segment 35 | BY4: ="Segment "& TEXT(INT((COLUMN()-5)/2),"0") -> Segment 36 | CA4: ="Segment "& TEXT(INT((COLUMN()-5)/2),"0") -> Segment 37 | CC4: ="Segment "& TEXT(INT((COLUMN()-5)/2),"0") -> Segment 38 | CE4: ="Segment "& TEXT(INT((COLUMN()-5)/2),"0") -> Segment 39 | CG4: ="Segment "& TEXT(INT((COLUMN()-5)/2),"0") -> Segment 40
B5: SV = single-vehicle model | E5: Applicable Models | G5: =IF(Main!$AG$14=TRUE, "Crash Period", "Study Period") -> Study Period | H5: =IF(Main!$AG$14=TRUE, "Study Period", "") ->  | I5: =G5 -> Study Period | K5: Study Period | M5: Study Period | O5: Study Period | Q5: Study Period | S5: Study Period | U5: Study Period | W5: Study Period | Y5: Study Period | AA5: Study Period | AC5: Study Period | AE5: Study Period | AG5: Study Period | AI5: Study Period | AK5: Study Period | AM5: Study Period | AO5: =AM5 -> Study Period | AQ5: Study Period | AS5: Study Period | AU5: Study Period | AW5: Study Period | AY5: Study Period | BA5: Study Period | BC5: Study Period | BE5: Study Period | BG5: Study Period | BI5: Study Period | BK5: Study Period | BM5: Study Period | BO5: Study Period | BQ5: Study Period | BS5: Study Period | BU5: =BS5 -> Study Period | BW5: Study Period | BY5: Study Period | CA5: Study Period | CC5: Study Period | CE5: Study Period | CG5: Study Period
B7: Crash Modification Factors
B8: Fatal-and-Injury Crash CMFs
B9: Horizontal curve (CMF1,w,x,y,fi): | E9: MV | G9: 1 | I9: 1 | K9: 1 | M9: 1 | O9: 1 | Q9: 1 | S9: 1 | U9: 1
F10: SV | G10: 1 | I10: 1 | K10: 1 | M10: 1 | O10: 1 | Q10: 1 | S10: 1 | U10: 1
B11: Lane width (CMF2, w,x,y,fi): | E11: MV | F11: SV | G11: 1 | I11: 1 | K11: 1 | M11: 1 | O11: 1 | Q11: 1 | S11: 1 | U11: 1
B12: Right shoulder width (CMF3,w,x,y,fi): | E12: MV | F12: SV | G12: 1 | I12: 1 | K12: 1 | M12: 1 | O12: 1 | Q12: 1 | S12: 1 | U12: 1
B13: Left shoulder width (CMF4,w,x,y,fi): | E13: MV | F13: SV | G13: 1 | I13: 1 | K13: 1 | M13: 1 | O13: 1 | Q13: 1 | S13: 1 | U13: 1
B14: Right side barrier (CMF5,w,x,y,fi): | E14: MV | F14: SV | G14: 1 | I14: 1 | K14: 1 | M14: 1 | O14: 1 | Q14: 1 | S14: 1 | U14: 1
B15: Left side barrier (CMF6,w,x,y,fi): | E15: MV | F15: SV | G15: 1 | I15: 1 | K15: 1 | M15: 1 | O15: 1 | Q15: 1 | S15: 1 | U15: 1
B16: Weaving section (CMF9,cds,ac,at,fi): | E16: MV | F16: SV
E17: Year: | F17: =Main!$AG$5 -> 2025 | G17: 1 | I17: 1 | K17: 1 | M17: 1 | O17: 1 | Q17: 1 | S17: 1 | U17: 1
F18: =F17+1 -> 2026 | G18: 1 | I18: 1 | K18: 1 | M18: 1 | O18: 1 | Q18: 1 | S18: 1 | U18: 1
F19: =F18+1 -> 2027 | G19: 1 | I19: 1 | K19: 1 | M19: 1 | O19: 1 | Q19: 1 | S19: 1 | U19: 1
F20: 2028 | G20: 1 | I20: 1 | K20: 1 | M20: 1 | O20: 1 | Q20: 1 | S20: 1 | U20: 1
F21: 2029 | G21: 1 | I21: 1 | K21: 1 | M21: 1 | O21: 1 | Q21: 1 | S21: 1 | U21: 1
F22: 2030 | G22: 1 | I22: 1 | K22: 1 | M22: 1 | O22: 1 | Q22: 1 | S22: 1 | U22: 1
F23: 2031 | G23: 1 | I23: 1 | K23: 1 | M23: 1 | O23: 1 | Q23: 1 | S23: 1 | U23: 1
F24: 2032 | G24: 1 | I24: 1 | K24: 1 | M24: 1 | O24: 1 | Q24: 1 | S24: 1 | U24: 1
F25: 2033 | G25: 1 | I25: 1 | K25: 1 | M25: 1 | O25: 1 | Q25: 1 | S25: 1 | U25: 1
F26: 2034 | G26: 1 | I26: 1 | K26: 1 | M26: 1 | O26: 1 | Q26: 1 | S26: 1 | U26: 1
F27: 2035 | G27: 1 | I27: 1 | K27: 1 | M27: 1 | O27: 1 | Q27: 1 | S27: 1 | U27: 1
F28: 2036 | G28: 1 | I28: 1 | K28: 1 | M28: 1 | O28: 1 | Q28: 1 | S28: 1 | U28: 1
F29: 2037 | G29: 1 | I29: 1 | K29: 1 | M29: 1 | O29: 1 | Q29: 1 | S29: 1 | U29: 1
F30: 2038 | G30: 1 | I30: 1 | K30: 1 | M30: 1 | O30: 1 | Q30: 1 | S30: 1 | U30: 1
F31: 2039 | G31: 1 | I31: 1 | K31: 1 | M31: 1 | O31: 1 | Q31: 1 | S31: 1 | U31: 1
F32: 2040 | G32: 1 | I32: 1 | K32: 1 | M32: 1 | O32: 1 | Q32: 1 | S32: 1 | U32: 1
F33: 2041 | G33: 1 | I33: 1 | K33: 1 | M33: 1 | O33: 1 | Q33: 1 | S33: 1 | U33: 1
F34: 2042 | G34: 1 | I34: 1 | K34: 1 | M34: 1 | O34: 1 | Q34: 1 | S34: 1 | U34: 1
F35: 2043 | G35: 1 | I35: 1 | K35: 1 | M35: 1 | O35: 1 | Q35: 1 | S35: 1 | U35: 1
F36: 2044 | G36: 1 | I36: 1 | K36: 1 | M36: 1 | O36: 1 | Q36: 1 | S36: 1 | U36: 1
F37: 2045 | G37: 1 | I37: 1 | K37: 1 | M37: 1 | O37: 1 | Q37: 1 | S37: 1 | U37: 1
F38: 2046
F39: 2047
F40: 2048
B41: Ramp speed-change lane (CMF8,w,x,mv,fi): | E41: MV | G41: 1 | I41: 1 | K41: 1 | M41: 1 | O41: 1 | Q41: 1 | S41: 1 | U41: 1
B42: Lane add or drop (CMF7,w,x,y,fi): | E42: MV | F42: SV | G42: 1 | I42: 1 | K42: 1 | M42: 1 | O42: 1 | Q42: 1 | S42: 1 | U42: 1
B43: Property-Damage-Only Crash CMFs
B44: Horizontal curve (CMF1,w,x,y,pdo): | E44: MV | G44: 1 | I44: 1 | K44: 1 | M44: 1 | O44: 1 | Q44: 1 | S44: 1 | U44: 1
F45: SV | G45: 1 | I45: 1 | K45: 1 | M45: 1 | O45: 1 | Q45: 1 | S45: 1 | U45: 1
B46: Lane width (CMF2, w,x,y,pdo): | E46: MV | F46: SV | G46: 1 | I46: 1 | K46: 1 | M46: 1 | O46: 1 | Q46: 1 | S46: 1 | U46: 1
B47: Right shoulder width (CMF3,w,x,y,pdo): | E47: MV | F47: SV | G47: 1 | I47: 1 | K47: 1 | M47: 1 | O47: 1 | Q47: 1 | S47: 1 | U47: 1
B48: Left shoulder width (CMF4,w,x,y,pdo): | E48: MV | F48: SV | G48: 1 | I48: 1 | K48: 1 | M48: 1 | O48: 1 | Q48: 1 | S48: 1 | U48: 1
B49: Right side barrier (CMF5,w,x,y,pdo): | E49: MV | F49: SV | G49: 1 | I49: 1 | K49: 1 | M49: 1 | O49: 1 | Q49: 1 | S49: 1 | U49: 1
B50: Left side barrier (CMF6,w,x,y,pdo): | E50: MV | F50: SV | G50: 1 | I50: 1 | K50: 1 | M50: 1 | O50: 1 | Q50: 1 | S50: 1 | U50: 1
B51: Weaving section (CMF9,cds,ac,at,pdo): | E51: MV | F51: SV
E52: Year: | F52: =Main!$AG$5 -> 2025 | G52: 1 | I52: 1 | K52: 1 | M52: 1 | O52: 1 | Q52: 1 | S52: 1 | U52: 1
F53: =F52+1 -> 2026 | G53: 1 | I53: 1 | K53: 1 | M53: 1 | O53: 1 | Q53: 1 | S53: 1 | U53: 1
F54: =F53+1 -> 2027 | G54: 1 | I54: 1 | K54: 1 | M54: 1 | O54: 1 | Q54: 1 | S54: 1 | U54: 1
F55: 2028 | G55: 1 | I55: 1 | K55: 1 | M55: 1 | O55: 1 | Q55: 1 | S55: 1 | U55: 1
F56: 2029 | G56: 1 | I56: 1 | K56: 1 | M56: 1 | O56: 1 | Q56: 1 | S56: 1 | U56: 1
F57: 2030 | G57: 1 | I57: 1 | K57: 1 | M57: 1 | O57: 1 | Q57: 1 | S57: 1 | U57: 1
F58: 2031 | G58: 1 | I58: 1 | K58: 1 | M58: 1 | O58: 1 | Q58: 1 | S58: 1 | U58: 1
F59: 2032 | G59: 1 | I59: 1 | K59: 1 | M59: 1 | O59: 1 | Q59: 1 | S59: 1 | U59: 1
F60: 2033 | G60: 1 | I60: 1 | K60: 1 | M60: 1 | O60: 1 | Q60: 1 | S60: 1 | U60: 1
F61: 2034 | G61: 1 | I61: 1 | K61: 1 | M61: 1 | O61: 1 | Q61: 1 | S61: 1 | U61: 1
F62: 2035 | G62: 1 | I62: 1 | K62: 1 | M62: 1 | O62: 1 | Q62: 1 | S62: 1 | U62: 1
F63: 2036 | G63: 1 | I63: 1 | K63: 1 | M63: 1 | O63: 1 | Q63: 1 | S63: 1 | U63: 1
F64: 2037 | G64: 1 | I64: 1 | K64: 1 | M64: 1 | O64: 1 | Q64: 1 | S64: 1 | U64: 1
F65: 2038 | G65: 1 | I65: 1 | K65: 1 | M65: 1 | O65: 1 | Q65: 1 | S65: 1 | U65: 1
F66: 2039 | G66: 1 | I66: 1 | K66: 1 | M66: 1 | O66: 1 | Q66: 1 | S66: 1 | U66: 1
F67: 2040 | G67: 1 | I67: 1 | K67: 1 | M67: 1 | O67: 1 | Q67: 1 | S67: 1 | U67: 1
F68: 2041 | G68: 1 | I68: 1 | K68: 1 | M68: 1 | O68: 1 | Q68: 1 | S68: 1 | U68: 1
F69: 2042 | G69: 1 | I69: 1 | K69: 1 | M69: 1 | O69: 1 | Q69: 1 | S69: 1 | U69: 1
F70: 2043 | G70: 1 | I70: 1 | K70: 1 | M70: 1 | O70: 1 | Q70: 1 | S70: 1 | U70: 1
F71: 2044 | G71: 1 | I71: 1 | K71: 1 | M71: 1 | O71: 1 | Q71: 1 | S71: 1 | U71: 1
F72: 2045 | G72: 1 | I72: 1 | K72: 1 | M72: 1 | O72: 1 | Q72: 1 | S72: 1 | U72: 1
F73: 2046
F74: 2047
F75: 2048
B76: Ramp speed-change lane (CMF8,w,x,mv,pdo): | E76: MV | G76: 1 | I76: 1 | K76: 1 | M76: 1 | O76: 1 | Q76: 1 | S76: 1 | U76: 1
B77: Lane add or drop (CMF7,w,x,y,pdo): | E77: MV | F77: SV | G77: 1 | I77: 1 | K77: 1 | M77: 1 | O77: 1 | Q77: 1 | S77: 1 | U77: 1
B78: =IF(Main!$AG$14=TRUE, "Expected Average Crash Frequency", "Predicted Average Crash Frequency") -> Predicted Average Crash Frequency
B79: Fatal-and-Injury Crash Frequency
B80: Multiple-Vehicle Crash Analysis | F80: Year
B81: Overdispersion parameter (kw,x,mv,fi):
B82: Observed crash count (N*o,w,x,mv,fi), crashes:
B83: Reference year (r):
B84: Predicted average crash freq. for reference year (Np,w,x,mv,fi,r), crashes/yr:
B85: Equivalent years associated with crash count (Cb,w,x,mv,fi,r), yr:
B86: Expected average crash freq. for reference year given N*o (Na,w,x,mv,fi,r), crashes/yr:
B87: =IF(Main!$AG$14=TRUE, "Expected average crash frequency", "Predicted average crash frequency") -> Predicted average crash frequency | F87: =Main!$AG$5 -> 2025 | G87: 0.007936364971 | I87: 0.09159207344 | K87: 0.008002704009 | M87: 0.02921679243 | O87: 0.04347902164 | Q87: 0.00822981447 | S87: 0.04163371772 | U87: 0.008917298168
B88: (Ne,w,x,mv,fi), crashes/yr: | C88: (Np,w,x,mv,fi), crashes/yr: | F88: =F87+1 -> 2026 | G88: 0.008109335788 | I88: 0.09385032952 | K88: 0.008142896928 | M88: 0.02977021039 | O88: 0.04436456785 | Q88: 0.008420945145 | S88: 0.04242233187 | U88: 0.00907351356
F89: =F88+1 -> 2027 | G89: 0.008284406736 | I89: 0.09614489228 | K89: 0.008283876814 | M89: 0.03032799624 | O89: 0.04525902867 | Q89: 0.008614777587 | S89: 0.04321717471 | U89: 0.009230605327
F90: 2028 | G90: 0.008461616933 | I90: 0.09847646952 | K90: 0.008425664157 | M90: 0.03089024685 | O90: 0.04616257548 | Q90: 0.008811364882 | S90: 0.04401838034 | U90: 0.009388596751
F91: 2029 | G91: 0.008641005494 | I91: 0.100845769 | K91: 0.008568279445 | M91: 0.03145705163 | O91: 0.04707537591 | Q91: 0.009010756388 | S91: 0.04482607171 | U91: 0.009547511116
F92: 2030 | G92: 0.008822610602 | I92: 0.1032535061 | K92: 0.008711743169 | M92: 0.03202849999 | O92: 0.04799760133 | Q92: 0.009213004261 | S92: 0.04564037919 | U92: 0.009707370773
F93: 2031 | G93: 0.009006473236 | I93: 0.1057004258 | K93: 0.008856073953 | M93: 0.03260467947 | O93: 0.04892941192 | Q93: 0.009418158792 | S93: 0.04646142945 | U93: 0.009868197143
F94: 2032 | G94: 0.009192630649 | I94: 0.1081872433 | K94: 0.009001292288 | M94: 0.03318567574 | O94: 0.04987097904 | Q94: 0.009626273997 | S94: 0.04728934914 | U94: 0.01003001165
F95: 2033 | G95: 0.009381121956 | I95: 0.1107147112 | K95: 0.009147415869 | M95: 0.03377157822 | O95: 0.05082246661 | Q95: 0.009837400168 | S95: 0.04812425748 | U95: 0.01019283477
F96: 2034 | G96: 0.009571987204 | I96: 0.113283582 | K96: 0.009294463322 | M96: 0.03436247259 | O96: 0.05178403854 | Q96: 0.01005159132 | S96: 0.04896627739 | U96: 0.01035668794
F97: 2035 | G97: 0.009765265509 | I97: 0.1158946007 | K97: 0.009442453273 | M97: 0.03495844454 | O97: 0.05275586247 | Q97: 0.01026889961 | S97: 0.04981552809 | U97: 0.01052159071
F98: 2036 | G98: 0.009960996918 | I98: 0.1185485423 | K98: 0.009591402486 | M98: 0.03555957228 | O98: 0.05373810232 | Q98: 0.01048937906 | S98: 0.05067213252 | U98: 0.01068756264
F99: 2037 | G99: 0.01015921962 | I99: 0.121246174 | K99: 0.009741329588 | M99: 0.03616594151 | O99: 0.05473091826 | Q99: 0.01071308274 | S99: 0.05153620616 | U99: 0.01085462421
F100: 2038 | G100: 0.01035997458 | I100: 0.1239882931 | K100: 0.009892251343 | M100: 0.0367776379 | O100: 0.05573447794 | Q100: 0.01094006654 | S100: 0.05240786821 | U100: 0.01102279499
F101: 2039 | G101: 0.01056330185 | I101: 0.1267756969 | K101: 0.01004418544 | M101: 0.03739474341 | O101: 0.05674894527 | Q101: 0.01117038447 | S101: 0.05328723788 | U101: 0.01119209267
F102: 2040 | G102: 0.01076924242 | I102: 0.1296091676 | K102: 0.01019714866 | M102: 0.03801734 | O102: 0.05777448416 | Q102: 0.01140409149 | S102: 0.05417443067 | U102: 0.01136253681
F103: 2041 | G103: 0.01097783539 | I103: 0.1324895322 | K103: 0.01035115682 | M103: 0.03864550591 | O103: 0.05881126225 | Q103: 0.0116412444 | S103: 0.05506956577 | U103: 0.0115341451
F104: 2042 | G104: 0.01118912268 | I104: 0.1354176253 | K104: 0.01050622668 | M104: 0.0392793268 | O104: 0.05985944346 | Q104: 0.01188190002 | S104: 0.05597275496 | U104: 0.01170693804
F105: 2043 | G105: 0.01140314527 | I105: 0.1383942664 | K105: 0.01066237502 | M105: 0.03991888091 | O105: 0.06091919541 | Q105: 0.01212611422 | S105: 0.05688411742 | U105: 0.01188093144
F106: 2044 | G106: 0.01161994413 | I106: 0.1414203048 | K106: 0.01081961766 | M106: 0.0405642502 | O106: 0.06199068204 | Q106: 0.01237394474 | S106: 0.05780376494 | U106: 0.01205614489
F107: 2045 | G107: 0.0118395621 | I107: 0.1444966048 | K107: 0.01097797137 | M107: 0.04121552035 | O107: 0.06307407469 | Q107: 0.01262545213 | S107: 0.05873181671 | U107: 0.01223259605
F108: 2046
F109: 2047
F110: 2048
B111: Single-Vehicle Crash Analysis | F111: Year
B112: Overdispersion parameter (kw,x,sv,fi):
B113: Observed crash count (N*o,w,x,sv,fi), crashes:
B114: Reference year (r):
B115: Predicted average crash freq. for reference year (Np,w,x,sv,fi,r), crashes/yr:
B116: Equivalent years associated with crash count (Cb,w,x,sv,fi,r), yr:
B117: Expected average crash freq. for reference year given N*o (Na,w,x,sv,fi,r), crashes/yr:
B118: =IF(Main!$AG$14=TRUE, "Expected average crash frequency", "Predicted average crash frequency") -> Predicted average crash frequency | F118: =F87 -> 2025 | G118: 0.1889849752 | I118: 0.1981543899 | K118: 0.2145431787 | M118: 0.1267156303 | O118: 0.1811790168 | Q118: 0.1869657487 | S118: 0.1078899875 | U118: 0.2390623987
B119: (Ne,w,x,sv,fi), crashes/yr: | C119: (Np,w,x,sv,fi), crashes/yr: | F119: =F88 -> 2026 | G119: 0.1916912049 | I119: 0.2009919286 | K119: 0.2176153958 | M119: 0.1285301745 | O119: 0.183773458 | Q119: 0.1896430701 | S119: 0.1094349548 | U119: 0.2424857318
F120: 2027 | G120: 0.1943825185 | I120: 0.2038138211 | K120: 0.2206706852 | M120: 0.13033472 | O120: 0.186353609 | Q120: 0.1923056245 | S120: 0.1109714061 | U120: 0.2458901852
F121: 2028 | G121: 0.1970592737 | I121: 0.2066204548 | K121: 0.2237094343 | M121: 0.1321294904 | O121: 0.1889197975 | Q121: 0.1949537843 | S121: 0.1124995351 | U121: 0.2492762208
F122: 2029 | G122: 0.1997218132 | I122: 0.2094121873 | K122: 0.2267320603 | M122: 0.1339147538 | O122: 0.1914723665 | Q122: 0.1975878775 | S122: 0.1140195653 | U122: 0.2526443005
F123: 2030 | G123: 0.2023704946 | I123: 0.2121893764 | K123: 0.2297389358 | M123: 0.135690704 | O123: 0.1940116435 | Q123: 0.2002082616 | S123: 0.1155316755 | U123: 0.2559948266
F124: 2031 | G124: 0.2050056159 | I124: 0.2149523646 | K124: 0.2327304482 | M124: 0.1374575794 | O124: 0.1965379268 | Q124: 0.2028152347 | S124: 0.1170360446 | U124: 0.2593281865
F125: 2032 | G125: 0.20762752 | I125: 0.2177014649 | K125: 0.2357069105 | M125: 0.1392155737 | O125: 0.1990515292 | Q125: 0.2054091096 | S125: 0.1185328662 | U125: 0.2626448572
F126: 2033 | G126: 0.2102364749 | I126: 0.2204370052 | K126: 0.2386686951 | M126: 0.1409648955 | O126: 0.2015527189 | Q126: 0.2079901844 | S126: 0.1200222969 | U126: 0.2659451067
F127: 2034 | G127: 0.2128327638 | I127: 0.2231592685 | K127: 0.241616115 | M127: 0.1427057236 | O127: 0.204041779 | Q127: 0.2105587572 | S127: 0.1215045005 | U127: 0.2692293823
F128: 2035 | G128: 0.2154166847 | I128: 0.2258685678 | K128: 0.2445494831 | M128: 0.1444382668 | O128: 0.206518963 | Q128: 0.2131150663 | S128: 0.1229796335 | U128: 0.2724979818
F129: 2036 | G129: 0.2179884911 | I129: 0.2285651416 | K129: 0.2474690974 | M129: 0.1461626738 | O129: 0.2089845389 | Q129: 0.21565938 | S129: 0.1244478598 | U129: 0.2757512629
F130: 2037 | G130: 0.220548436 | I130: 0.2312492877 | K130: 0.250375241 | M130: 0.1478791237 | O130: 0.2114387453 | Q130: 0.2181919664 | S130: 0.1259092987 | U130: 0.2789895535
F131: 2038 | G131: 0.2230967432 | I131: 0.2339212596 | K131: 0.2532681823 | M131: 0.1495877951 | O131: 0.2138818055 | Q131: 0.2207130641 | S131: 0.1273641139 | U131: 0.2822131217
F132: 2039 | G132: 0.2256336957 | I132: 0.2365812957 | K132: 0.2561482191 | M132: 0.1512888223 | O132: 0.2163139582 | Q132: 0.2232228965 | S132: 0.1288124323 | U132: 0.2854222953
F133: 2040 | G133: 0.2281594723 | I133: 0.2392296195 | K133: 0.25901559 | M133: 0.152982384 | O133: 0.2187354118 | Q133: 0.225721702 | S133: 0.1302543879 | U133: 0.2886173725
F134: 2041 | G134: 0.2306743264 | I134: 0.2418664992 | K134: 0.2618705332 | M134: 0.1546685994 | O134: 0.2211463898 | Q134: 0.2282096744 | S134: 0.1316900998 | U134: 0.2917985916
F135: 2042 | G135: 0.2331784517 | I135: 0.2444921285 | K135: 0.2647133172 | M135: 0.1563476324 | O135: 0.2235470861 | Q135: 0.230687052 | S135: 0.1331196874 | U135: 0.2949662805
F136: 2043 | G136: 0.2356720716 | I136: 0.247106716 | K136: 0.2675441802 | M136: 0.1580196172 | O136: 0.2259376943 | Q136: 0.2331540138 | S136: 0.1345432699 | U136: 0.2981206477
F137: 2044 | G137: 0.2381553501 | I137: 0.2497105002 | K137: 0.270363301 | M137: 0.159684673 | O137: 0.228318423 | Q137: 0.2356107831 | S137: 0.1359609514 | U137: 0.3012619615
F138: 2045 | G138: 0.2406285107 | I138: 0.2523036599 | K138: 0.2731709182 | M138: 0.1613429487 | O138: 0.2306894213 | Q138: 0.2380575091 | S138: 0.1373728663 | U138: 0.3043904603
F139: 2046
F140: 2047
F141: 2048
B142: Project Level Crash Analysis | F142: Year | G142: Project
B143: Observed crash count (N*o,aS,ac,at,fi), crashes:
B144: Reference year (r):
B145: Predicted average crash freq. for reference year (Np,aS,ac,at,fi,r), crashes/yr:
B146: Equivalent years associated with crash count (Cb,aS,ac,at,fi,r), yr:
B147: Independent sites crash analysis
B148: Variance when site crash frequencies are independent (V0,aS,ac,at,fi):
B149: Weight associated with Np,...r (w0,aS,ac,at,fi):
B150: Expected average crash freq. for reference year given N*o (N0,aS,ac,at,fi,r), crashes/yr:
B151: Correlated sites crash analysis
B152: Variance when site crash frequencies are correlated (V1,aS,ac,at,fi):
B153: Weight associated with Np,...r (w1,aS,ac,at,fi):
B154: Expected average crash freq. for reference year given N*o (N1,aS,ac,at,fi,r), crashes/yr:
B155: Expected average crash frequency | F155: =F118 -> 2025
B156: (Ne,aS,ac,at,fi), crashes/year: | F156: =F119 -> 2026
F157: 2027
F158: 2028
F159: 2029
F160: 2030
F161: 2031
F162: 2032
F163: 2033
F164: 2034
F165: 2035
F166: 2036
F167: 2037
F168: 2038
F169: 2039
F170: 2040
F171: 2041
F172: 2042
F173: 2043
F174: 2044
F175: 2045
F176: 2046
F177: 2047
F178: 2048
B179: Property-Damage-Only Crash Frequency
B180: Multiple-Vehicle Crash Analysis | F180: Year
B181: Overdispersion parameter (kw,x,mv,pdo):
B182: Observed crash count (N*o,w,x,mv,pdo), crashes:
B183: Reference year (r):
B184: Predicted average crash freq. for reference year (Np,w,x,mv,pdo,r), crashes/yr:
B185: Equivalent years associated with crash count (Cb,w,x,mv,pdo,r), yr:
B186: Expected average crash freq. for reference year given N*o (Na,w,x,mv,pdo,r), crashes/yr:
B187: =IF(Main!$AG$14=TRUE, "Expected average crash frequency", "Predicted average crash frequency") -> Predicted average crash frequency | F187: =Main!$AG$5 -> 2025 | G187: 0.02343915775 | I187: 0.2556572855 | K187: 0.02066393569 | M187: 0.05208687857 | O187: 0.08091393113 | Q187: 0.02470568009 | S187: 0.1057501882 | U187: 0.0230255276
B188: (Ne,w,x,mv,pdo), crashes/yr: | C188: (Np,w,x,mv,pdo), crashes/yr: | F188: =F187+1 -> 2026 | G188: 0.02402944863 | I188: 0.2620957494 | K188: 0.02118433453 | M188: 0.05339863151 | O188: 0.08295166492 | Q188: 0.0253278669 | S188: 0.1084133983 | U188: 0.02360540256
F189: =F188+1 -> 2027 | G189: 0.02462270856 | I189: 0.2685666382 | K189: 0.02170735411 | M189: 0.05471698567 | O189: 0.08499965817 | Q189: 0.02595318481 | S189: 0.1110900119 | U189: 0.02418819442
F190: 2028 | G190: 0.02521889843 | I190: 0.2750694156 | K190: 0.02223295346 | M190: 0.05604184791 | O190: 0.0870577544 | Q190: 0.02658158913 | S190: 0.113779828 | U190: 0.02477386221
F191: 2029 | G191: 0.0258179754 | I191: 0.2816037238 | K191: 0.02276109718 | M191: 0.05737312138 | O191: 0.08912581205 | Q191: 0.02721303701 | S191: 0.1164826751 | U191: 0.02536236495
F192: 2030 | G192: 0.0264198985 | I192: 0.2881690562 | K192: 0.02329175174 | M192: 0.05871072412 | O192: 0.09120370448 | Q192: 0.02784748375 | S192: 0.1191983595 | U192: 0.02595366724
F193: 2031 | G193: 0.02702463046 | I193: 0.2947650254 | K193: 0.02382488362 | M193: 0.06005457044 | O193: 0.09329128265 | Q193: 0.0284848921 | S193: 0.1219267249 | U193: 0.02654772624
F194: 2032 | G194: 0.02763213217 | I194: 0.3013912439 | K194: 0.02436045557 | M194: 0.06140457094 | O194: 0.09538843483 | Q194: 0.02912522107 | S194: 0.1246675849 | U194: 0.02714450657
F195: 2033 | G195: 0.02824237011 | I195: 0.3080472648 | K195: 0.02489843965 | M195: 0.06276065111 | O195: 0.09749502689 | Q195: 0.02976843156 | S195: 0.127420783 | U195: 0.0277439747
F196: 2034 | G196: 0.02885530703 | I196: 0.3147327304 | K196: 0.02543880418 | M196: 0.064122729 | O196: 0.09961093217 | Q196: 0.03041448817 | S196: 0.1301861554 | U196: 0.02834609523
F197: 2035 | G197: 0.02947090939 | I197: 0.321447283 | K197: 0.02598151751 | M197: 0.06549073011 | O197: 0.1017360389 | Q197: 0.03106335551 | S197: 0.132963568 | U197: 0.02895083278
F198: 2036 | G198: 0.03008914366 | I198: 0.3281905353 | K198: 0.02652655169 | M198: 0.06686457992 | O198: 0.1038702354 | Q198: 0.03171499446 | S198: 0.1357528418 | U198: 0.02955815755
F199: 2037 | G199: 0.03070997819 | I199: 0.3349621296 | K199: 0.02707387879 | M199: 0.06824420393 | O199: 0.1060134098 | Q199: 0.03236937523 | S199: 0.1385538578 | U199: 0.030168036
F200: 2038 | G200: 0.03133337945 | I200: 0.3417617679 | K200: 0.02762347087 | M200: 0.06962954253 | O200: 0.1081654504 | Q200: 0.03302646428 | S200: 0.141366452 | U200: 0.03078043833
F201: 2039 | G201: 0.03195932135 | I201: 0.3485890925 | K201: 0.02817529999 | M201: 0.07102052122 | O201: 0.1103262529 | Q201: 0.0336862281 | S201: 0.14419052 | U201: 0.03139533103
F202: 2040 | G202: 0.0325877741 | I202: 0.3554437757 | K202: 0.02872934006 | M202: 0.07241707295 | O202: 0.1124957204 | Q202: 0.03434863687 | S202: 0.1470258832 | U202: 0.03201269358
F203: 2041 | G203: 0.03321870416 | I203: 0.3623255193 | K203: 0.02928556688 | M203: 0.07381913811 | O203: 0.1146737412 | Q203: 0.03501366079 | S203: 0.149872452 | U203: 0.03263248876
... 137 more rows

Sheet Output Ramp Terminals
E3: Output Worksheet for Crossroad Ramp Terminals
B4: Signal = signalized intersection model | G4: ="Terminal "& TEXT(INT((COLUMN()-5)/2),"0") -> Terminal 1 | I4: ="Terminal "& TEXT(INT((COLUMN()-5)/2),"0") -> Terminal 2 | K4: ="Terminal "& TEXT(INT((COLUMN()-5)/2),"0") -> Terminal 3 | M4: ="Terminal "& TEXT(INT((COLUMN()-5)/2),"0") -> Terminal 4 | O4: ="Terminal "& TEXT(INT((COLUMN()-5)/2),"0") -> Terminal 5 | Q4: ="Terminal "& TEXT(INT((COLUMN()-5)/2),"0") -> Terminal 6
B5: Unsig = unsignalized intersection model | E5: Applicable Models | G5: =IF(Main!$AK$14=TRUE, "Crash Period", "Study Period") -> Study Period | H5: =IF(Main!$AK$14=TRUE, "Study Period", "") ->  | I5: =G5 -> Study Period | K5: Study Period | M5: Study Period | O5: Study Period | Q5: Study Period
B7: Crash Modification Factors
B8: Fatal-and-Injury Crash CMFs
B9: Non-ramp public street leg (CMF19,w,SG,at,fi): | E9: Signal
B10: Segment length (CMF14,w,x,at,fi): | E10: Signal | F10: Unsig
B11: Protected left-turn operation (CMF16,w,SG,at,fi): | E11: Signal
E12: Year: | F12: =Main!$AK$5 -> 2025
F13: =F12+1 -> 2026
F14: =F13+1 -> 2027
F15: 2028
F16: 2029
F17: 2030
F18: 2031
F19: 2032
F20: 2033
F21: 2034
F22: 2035
F23: 2036
F24: 2037
F25: 2038
F26: 2039
F27: 2040
F28: 2041
F29: 2042
F30: 2043
F31: 2044
F32: 2045
F33: 2046
F34: 2047
F35: 2048
B36: Channelized right turn on crossroad (CMF17,w,SG,at,fi): | E36: Signal
E37: Year: | F37: =Main!$AK$5 -> 2025
F38: =F37+1 -> 2026
F39: =F38+1 -> 2027
F40: 2028
F41: 2029
F42: 2030
F43: 2031
F44: 2032
F45: 2033
F46: 2034
F47: 2035
F48: 2036
F49: 2037
F50: 2038
F51: 2039
F52: 2040
F53: 2041
F54: 2042
F55: 2043
F56: 2044
F57: 2045
F58: 2046
F59: 2047
F60: 2048
B61: Channelized right turn on exit ramp (CMF18,w,SG,at,fi): | E61: Signal
E62: Year: | F62: =Main!$AK$5 -> 2025
F63: =F62+1 -> 2026
F64: =F63+1 -> 2027
F65: 2028
F66: 2029
F67: 2030
F68: 2031
F69: 2032
F70: 2033
F71: 2034
F72: 2035
F73: 2036
F74: 2037
F75: 2038
F76: 2039
F77: 2040
F78: 2041
F79: 2042
F80: 2043
F81: 2044
F82: 2045
F83: 2046
F84: 2047
F85: 2048
B86: Access point frequency (CMF13,w,x,at,fi): | E86: Signal | F86: Unsig
E87: Year: | F87: =Main!$AK$5 -> 2025
F88: =F87+1 -> 2026
F89: =F88+1 -> 2027
F90: 2028
F91: 2029
F92: 2030
F93: 2031
F94: 2032
F95: 2033
F96: 2034
F97: 2035
F98: 2036
F99: 2037
F100: 2038
F101: 2039
F102: 2040
F103: 2041
F104: 2042
F105: 2043
F106: 2044
F107: 2045
F108: 2046
F109: 2047
F110: 2048
B111: Crossroad left-turn lane (CMF11,w,x,at,fi): | E111: Signal | F111: Unsig
E112: Year: | F112: =Main!$AK$5 -> 2025
F113: =F112+1 -> 2026
F114: =F113+1 -> 2027
F115: 2028
F116: 2029
F117: 2030
F118: 2031
F119: 2032
F120: 2033
F121: 2034
F122: 2035
F123: 2036
F124: 2037
F125: 2038
F126: 2039
F127: 2040
F128: 2041
F129: 2042
F130: 2043
F131: 2044
F132: 2045
F133: 2046
F134: 2047
F135: 2048
B136: Crossroad right-turn lane (CMF12,w,x,at,fi): | E136: Signal | F136: Unsig
E137: Year: | F137: =Main!$AK$5 -> 2025
F138: =F137+1 -> 2026
F139: =F138+1 -> 2027
F140: 2028
F141: 2029
F142: 2030
F143: 2031
F144: 2032
F145: 2033
F146: 2034
F147: 2035
F148: 2036
F149: 2037
F150: 2038
F151: 2039
F152: 2040
F153: 2041
F154: 2042
F155: 2043
F156: 2044
F157: 2045
F158: 2046
F159: 2047
F160: 2048
B161: Median width (CMF15,w,x,at,fi): | E161: Signal | F161: Unsig
E162: Year: | F162: =Main!$AK$5 -> 2025
F163: =F162+1 -> 2026
F164: =F163+1 -> 2027
F165: 2028
F166: 2029
F167: 2030
F168: 2031
F169: 2032
F170: 2033
F171: 2034
F172: 2035
F173: 2036
F174: 2037
F175: 2038
F176: 2039
F177: 2040
F178: 2041
F179: 2042
F180: 2043
F181: 2044
F182: 2045
F183: 2046
F184: 2047
F185: 2048
B186: Exit ramp capacity (CMF10,w,x,at,fi): | E186: Signal | F186: Unsig
E187: Year: | F187: =Main!$AK$5 -> 2025
F188: =F187+1 -> 2026
F189: =F188+1 -> 2027
F190: 2028
F191: 2029
F192: 2030
F193: 2031
F194: 2032
F195: 2033
F196: 2034
F197: 2035
F198: 2036
F199: 2037
F200: 2038
F201: 2039
F202: 2040
F203: 2041
... 553 more rows

Sheet Calibration Factors
B3: Freeway Model Calibration Factors and Default Values
B4: Freeway Fatal-and-Injury Crash Frequency Models | J4: Model: exp(a + b ln[c AADTfs]) L
B5: Area Type | D5: Through Lanes | E5: Model | H5: Location | J5: a | K5: b | L5: c | M5: Inverse Disp. (K), mi | N5: Calib. Factor (C)
B7: Rural | D7: 4 | E7: Multiple-vehicle | H7: Freeway segment | J7: =(-5.47-0.505) -> -5.975 | K7: 1.492 | L7: 0.001 | M7: =17.6 -> 17.6 | N7: 1
E8: Single-vehicle | H8: Freeway segment | J8: =(-2.266+0.0351*D7) -> -2.1256 | K8: 0.646 | L8: 0.001 | M8: =30.1 -> 30.1 | N8: 1
E9: Ramp-entrance | H9: Speed-change lane | J9: =(-3.194 - 0.13*D7 - 0.18) -> -3.894 | K9: 1.173 | L9: =1/2000 -> 0.0005 | M9: =26.1 -> 26.1 | N9: 1
E10: Ramp-exit | H10: Speed-change lane | J10: =(-2.679) -> -2.679 | K10: 0.903 | L10: =1/2000 -> 0.0005 | M10: =1.78 -> 1.78 | N10: 1
D11: 6 | E11: Multiple-vehicle | H11: Freeway segment | J11: =(-5.587-0.505) -> -6.092 | K11: =K7 -> 1.492 | L11: 0.001 | M11: =M7 -> 17.6 | N11: 1
E12: Single-vehicle | H12: Freeway segment | J12: =(-2.266+0.0351*D11) -> -2.0554 | K12: 0.646 | L12: 0.001 | M12: 30.1 | N12: 1
E13: Ramp-entrance | H13: Speed-change lane | J13: =(-3.194 - 0.13*D11 - 0.18) -> -4.154 | K13: 1.173 | L13: 0.0005 | M13: 26.1 | N13: 1
E14: Ramp-exit | H14: Speed-change lane | J14: =(-2.679) -> -2.679 | K14: 0.903 | L14: 0.0005 | M14: 1.78 | N14: 1
D15: 8 | E15: Multiple-vehicle | H15: Freeway segment | J15: =(-5.635-0.505) -> -6.14 | K15: 1.492 | L15: 0.001 | M15: 17.6 | N15: 1
E16: Single-vehicle | H16: Freeway segment | J16: =(-2.266+0.0351*D15) -> -1.9852 | K16: 0.646 | L16: 0.001 | M16: 30.1 | N16: 1
E17: Ramp-entrance | H17: Speed-change lane | J17: =(-3.194 - 0.13*D15 - 0.18) -> -4.414 | K17: 1.173 | L17: 0.0005 | M17: 26.1 | N17: 1
E18: Ramp-exit | H18: Speed-change lane | J18: =(-2.679) -> -2.679 | K18: 0.903 | L18: 0.0005 | M18: 1.78 | N18: 1
B19: Urban | D19: 4 | E19: Multiple-vehicle | H19: Freeway segment | J19: =(-5.47) -> -5.47 | K19: 1.492 | L19: 0.001 | M19: 17.6 | N19: 1
E20: Single-vehicle | H20: Freeway segment | J20: =(-2.266+0.0351*D19) -> -2.1256 | K20: 0.646 | L20: 0.001 | M20: 30.1 | N20: 1
E21: Ramp-entrance | H21: Speed-change lane | J21: =(-3.194 - 0.13*D19 ) -> -3.714 | K21: 1.173 | L21: 0.0005 | M21: 26.1 | N21: 1
E22: Ramp-exit | H22: Speed-change lane | J22: =(-2.679) -> -2.679 | K22: 0.903 | L22: 0.0005 | M22: 1.78 | N22: 1
D23: 6 | E23: Multiple-vehicle | H23: Freeway segment | J23: =(-5.587) -> -5.587 | K23: 1.492 | L23: 0.001 | M23: =M19 -> 17.6 | N23: 1
E24: Single-vehicle | H24: Freeway segment | J24: =(-2.266+0.0351*D23) -> -2.0554 | K24: 0.646 | L24: 0.001 | M24: 30.1 | N24: 1
E25: Ramp-entrance | H25: Speed-change lane | J25: =(-3.194 - 0.13*D23 ) -> -3.974 | K25: 1.173 | L25: 0.0005 | M25: 26.1 | N25: 1
E26: Ramp-exit | H26: Speed-change lane | J26: =(-2.679) -> -2.679 | K26: 0.903 | L26: 0.0005 | M26: 1.78 | N26: 1
D27: 8 | E27: Multiple-vehicle | H27: Freeway segment | J27: =(-5.635) -> -5.635 | K27: 1.492 | L27: 0.001 | M27: 17.6 | N27: 1
E28: Single-vehicle | H28: Freeway segment | J28: =(-2.266+0.0351*D27) -> -1.9852 | K28: 0.646 | L28: 0.001 | M28: 30.1 | N28: 1
E29: Ramp-entrance | H29: Speed-change lane | J29: =(-3.194 - 0.13*D27 ) -> -4.234 | K29: 1.173 | L29: 0.0005 | M29: 26.1 | N29: 1
E30: Ramp-exit | H30: Speed-change lane | J30: =(-2.679) -> -2.679 | K30: 0.903 | L30: 0.0005 | M30: 1.78 | N30: 1
D31: 10 | E31: Multiple-vehicle | H31: Freeway segment | J31: =(-5.842) -> -5.842 | K31: 1.492 | L31: 0.001 | M31: 17.6 | N31: 1
E32: Single-vehicle | H32: Freeway segment | J32: =(-2.266+0.0351*D31) -> -1.915 | K32: 0.646 | L32: 0.001 | M32: 30.1 | N32: 1
E33: Ramp-entrance | H33: Speed-change lane | J33: =(-3.194 - 0.13*D31 ) -> -4.494 | K33: 1.173 | L33: 0.0005 | M33: 26.1 | N33: 1
E34: Ramp-exit | H34: Speed-change lane | J34: =(-2.679) -> -2.679 | K34: 0.903 | L34: 0.0005 | M34: 1.78 | N34: 1
B35: Freeway Property-Damage-Only Crash Frequency Models | J35: Model: exp(a + b ln[c AADTfs]) L
B36: Area Type | D36: Through Lanes | E36: Model | H36: Location | J36: a | K36: b | L36: c | M36: Inverse Disp. (K), mi | N36: Calib. Factor (C)
B38: Rural | D38: 4 | E38: Multiple-vehicle | H38: Freeway segment | J38: =(-6.355-0.332-0.193) -> -6.88 | K38: 1.936 | L38: =L7 -> 0.001 | M38: 18.8 | N38: 1
E39: Single-vehicle | H39: Freeway segment | J39: =(-1.955-0.0193*D38-0.203) -> -2.2352 | K39: 0.876 | L39: =L8 -> 0.001 | M39: 20.7 | N39: 1
E40: Ramp-entrance | H40: Speed-change lane | J40: =-2.18-0.101*D38-0.0989-0.212 -> -2.8949 | K40: 1.215 | L40: =L9 -> 0.0005 | M40: 24.8 | N40: 1
E41: Ramp-exit | H41: Speed-change lane | J41: =-1.575-0.223 -> -1.798 | K41: 0.932 | L41: =L10 -> 0.0005 | M41: 1.58 | N41: 1
D42: 6 | E42: Multiple-vehicle | H42: Freeway segment | J42: =(-6.616-0.332-0.193) -> -7.141 | K42: =K38 -> 1.936 | L42: 0.001 | M42: 18.8 | N42: 1
E43: Single-vehicle | H43: Freeway segment | J43: =(-1.955-0.0193*D42-0.203) -> -2.2738 | K43: 0.876 | L43: 0.001 | M43: 20.7 | N43: 1
E44: Ramp-entrance | H44: Speed-change lane | J44: =-2.18-0.101*D42-0.0989-0.212 -> -3.0969 | K44: 1.215 | L44: 0.0005 | M44: 24.8 | N44: 1
E45: Ramp-exit | H45: Speed-change lane | J45: =-1.575-0.223 -> -1.798 | K45: 0.932 | L45: 0.0005 | M45: 1.58 | N45: 1
D46: 8 | E46: Multiple-vehicle | H46: Freeway segment | J46: =(-6.804-0.332-0.193) -> -7.329 | K46: 1.936 | L46: 0.001 | M46: 18.8 | N46: 1
E47: Single-vehicle | H47: Freeway segment | J47: =(-1.955-0.0193*D46-0.203) -> -2.3124 | K47: 0.876 | L47: 0.001 | M47: 20.7 | N47: 1
E48: Ramp-entrance | H48: Speed-change lane | J48: =-2.18-0.101*D46-0.0989-0.212 -> -3.2989 | K48: =K44 -> 1.215 | L48: 0.0005 | M48: 24.8 | N48: 1
E49: Ramp-exit | H49: Speed-change lane | J49: =-1.575-0.223 -> -1.798 | K49: =K45 -> 0.932 | L49: 0.0005 | M49: 1.58 | N49: 1
B50: Urban | D50: 4 | E50: Multiple-vehicle | H50: Freeway segment | J50: =(-6.355-0-0.193) -> -6.548 | K50: 1.936 | L50: 0.001 | M50: 18.8 | N50: =N46 -> 1
E51: Single-vehicle | H51: Freeway segment | J51: =(-1.955-0.0193*D50-0.203) -> -2.2352 | K51: 0.876 | L51: 0.001 | M51: 20.7 | N51: =N47 -> 1
E52: Ramp-entrance | H52: Speed-change lane | J52: =-2.18-0.101*D50-0-0.212 -> -2.796 | K52: =K48 -> 1.215 | L52: 0.0005 | M52: 24.8 | N52: 1
E53: Ramp-exit | H53: Speed-change lane | J53: =-1.575-0.223 -> -1.798 | K53: =K49 -> 0.932 | L53: 0.0005 | M53: 1.58 | N53: 1
D54: 6 | E54: Multiple-vehicle | H54: Freeway segment | J54: =(-6.616-0-0.193) -> -6.809 | K54: 1.936 | L54: 0.001 | M54: 18.8 | N54: =N50 -> 1
E55: Single-vehicle | H55: Freeway segment | J55: =(-1.955-0.0193*D54-0.203) -> -2.2738 | K55: 0.876 | L55: 0.001 | M55: 20.7 | N55: =N51 -> 1
E56: Ramp-entrance | H56: Speed-change lane | J56: =-2.18-0.101*D54-0-0.212 -> -2.998 | K56: =K52 -> 1.215 | L56: 0.0005 | M56: 24.8 | N56: 1
E57: Ramp-exit | H57: Speed-change lane | J57: =-1.575-0.223 -> -1.798 | K57: =K53 -> 0.932 | L57: 0.0005 | M57: 1.58 | N57: 1
D58: 8 | E58: Multiple-vehicle | H58: Freeway segment | J58: =(-6.804-0-0.193) -> -6.997 | K58: 1.936 | L58: 0.001 | M58: 18.8 | N58: =N54 -> 1
E59: Single-vehicle | H59: Freeway segment | J59: =(-1.955-0.0193*D58-0.203) -> -2.3124 | K59: 0.876 | L59: 0.001 | M59: 20.7 | N59: =N55 -> 1
E60: Ramp-entrance | H60: Speed-change lane | J60: =-2.18-0.101*D58-0-0.212 -> -3.2 | K60: =K56 -> 1.215 | L60: 0.0005 | M60: 24.8 | N60: 1
E61: Ramp-exit | H61: Speed-change lane | J61: =-1.575-0.223 -> -1.798 | K61: =K57 -> 0.932 | L61: 0.0005 | M61: 1.58 | N61: 1
D62: 10 | E62: Multiple-vehicle | H62: Freeway segment | J62: =(-7.067-0-0.193) -> -7.26 | K62: 1.936 | L62: 0.001 | M62: 18.8 | N62: =N58 -> 1
E63: Single-vehicle | H63: Freeway segment | J63: =(-1.955-0.0193*D62-0.203) -> -2.351 | K63: 0.876 | L63: 0.001 | M63: 20.7 | N63: =N59 -> 1
E64: Ramp-entrance | H64: Speed-change lane | J64: =-2.18-0.101*D62-0-0.212 -> -3.402 | K64: =K60 -> 1.215 | L64: 0.0005 | M64: 24.8 | N64: 1
E65: Ramp-exit | H65: Speed-change lane | J65: =-1.575-0.223 -> -1.798 | K65: =K61 -> 0.932 | L65: =L61 -> 0.0005 | M65: =M61 -> 1.58 | N65: 1
B66: Freeway Crash Severity Model
L67: Calibration factor | N67: 1
B68: Freeway Crash Distribution
B69: Area Type | D69: Crash Type | F69: Crash Type Category | I69: Proportion of Crashes by Severity Level for Specific Models
I70: Main Lanes | K70: Ramp Entrance | M70: Ramp Exit
I71: FI | J71: PDO | K71: FI | L71: PDO | M71: FI | N71: PDO
B72: Rural | D72: Multiple vehicle | F72: Head-on | I72: 0.018 | J72: 0.004 | K72: 0.021 | L72: 0.004 | M72: 0 | N72: 0
F73: Right-angle | I73: 0.056 | J73: 0.03 | K73: 0.032 | L73: 0.013 | M73: 0.015 | N73: 0
F74: Rear-end | I74: 0.63 | J74: 0.508 | K74: 0.351 | L74: 0.26 | M74: 0.463 | N74: 0.304
F75: Sideswipe | I75: 0.237 | J75: 0.38 | K75: 0.128 | L75: 0.242 | M75: 0.104 | N75: 0.243
F76: Other multiple-vehicle crash | I76: 0.059 | J76: 0.078 | K76: 0.011 | L76: 0.04 | M76: 0 | N76: 0.009
H77: MV Total: | I77: =SUM(I72:I76) -> 1 | J77: =SUM(J72:J76) -> 1
D78: Single vehicle | F78: Crash with animal | I78: 0.01 | J78: 0.065 | K78: 0 | L78: 0.009 | M78: 0 | N78: 0.061
F79: Crash with fixed object | I79: 0.567 | J79: 0.625 | K79: 0.245 | L79: 0.296 | M79: 0.224 | N79: 0.235
F80: Crash with other object | I80: 0.031 | J80: 0.125 | K80: 0.021 | L80: 0.07 | M80: 0.03 | N80: 0.061
F81: Crash with parked vehicle | I81: 0.024 | J81: 0.023 | K81: 0.021 | L81: 0 | M81: 0 | N81: 0.017
F82: Other single-vehicle crash | I82: 0.368 | J82: 0.162 | K82: 0.17 | L82: 0.066 | M82: 0.164 | N82: 0.07
H83: SV Total: | I83: =SUM(I78:I82) -> 1 | J83: =SUM(J78:J82) -> 1
H84: Total: | K84: =SUM(K78:K82)+SUM(K72:K76) -> 1 | L84: =SUM(L78:L82)+SUM(L72:L76) -> 1 | M84: =SUM(M78:M82)+SUM(M72:M76) -> 1 | N84: =SUM(N78:N82)+SUM(N72:N76) -> 1
B85: Urban | D85: Multiple vehicle | F85: Head-on | I85: 0.008 | J85: 0.002 | K85: 0.004 | L85: 0.001 | M85: 0.005 | N85: 0.002
F86: Right-angle | I86: 0.031 | J86: 0.018 | K86: 0.019 | L86: 0.016 | M86: 0.011 | N86: 0.012
F87: Rear-end | I87: 0.75 | J87: 0.69 | K87: 0.543 | L87: 0.53 | M87: 0.549 | N87: 0.565
F88: Sideswipe | I88: 0.18 | J88: 0.266 | K88: 0.133 | L88: 0.252 | M88: 0.158 | N88: 0.138
F89: Other multiple-vehicle crash | I89: 0.031 | J89: 0.024 | K89: 0.017 | L89: 0.015 | M89: 0.016 | N89: 0.016
H90: MV Total: | I90: =SUM(I85:I89) -> 1 | J90: =SUM(J85:J89) -> 1
D91: Single vehicle | F91: Crash with animal | I91: 0.004 | J91: 0.022 | K91: 0 | L91: 0.002 | M91: 0 | N91: 0.007
F92: Crash with fixed object | I92: 0.722 | J92: 0.716 | K92: 0.194 | L92: 0.129 | M92: 0.196 | N92: 0.207
F93: Crash with other object | I93: 0.051 | J93: 0.139 | K93: 0.019 | L93: 0.036 | M93: 0.016 | N93: 0.03
F94: Crash with parked vehicle | I94: 0.015 | J94: 0.016 | K94: 0.004 | L94: 0.003 | M94: 0 | N94: 0
F95: Other single-vehicle crash | I95: 0.208 | J95: 0.107 | K95: 0.067 | L95: 0.016 | M95: 0.049 | N95: 0.023
H96: SV Total: | I96: =SUM(I91:I95) -> 1 | J96: =SUM(J91:J95) -> 1
H97: Total: | K97: =SUM(K91:K95)+SUM(K85:K89) -> 1 | L97: =SUM(L91:L95)+SUM(L85:L89) -> 1 | M97: =SUM(M91:M95)+SUM(M85:M89) -> 1 | N97: =SUM(N91:N95)+SUM(N85:N89) -> 1
B100: Ramp Segment Model Calibration Factors and Default Values
B101: Ramp Segment Fatal-and-Injury Crash Frequency Models | I101: Model: exp(a + b ln[c AADTr] + d [c AADTr]) L
B102: Area Type | D102: Through Lanes | E102: Number of Vehicles Involved | H102: Location | I102: a | J102: b | K102: c | L102: d | M102: Inverse Disp. (K), mi | N102: Calib. Factor (C)
B104: Rural | D104: 1 | E104: Multiple vehicle | H104: Entrance | I104: =(-2.997-0.508-1.721) -> -5.226 | J104: 0.524 | K104: 0.001 | L104: 0.0699 | M104: =14.6 -> 14.6 | N104: 1
E105: Multiple vehicle | H105: Exit | I105: =(-2.997-1.974-1.721) -> -6.692 | J105: 0.524 | K105: 0.001 | L105: 0.0699 | M105: =14.6 -> 14.6 | N105: 1
E106: Multiple vehicle | H106: C-D road | I106: =(-2.997-0-1.721) -> -4.718 | J106: 0.524 | K106: 0.001 | L106: 0.0699 | M106: =14.6 -> 14.6 | N106: 1
E107: Single vehicle | H107: Entrance | I107: =(-2.848+0.882-0.154) -> -2.12 | J107: 0.718 | K107: 0.001 | L107: 0 | M107: =7.91 -> 7.91 | N107: 1
E108: Single vehicle | H108: Exit | I108: =(-2.848+1.203-0.154) -> -1.799 | J108: 0.718 | K108: 0.001 | L108: 0 | M108: =7.91 -> 7.91 | N108: 1
E109: Single vehicle | H109: C-D road | I109: =(-2.848+0-0.154) -> -3.002 | J109: 0.718 | K109: 0.001 | L109: 0 | M109: =7.91 -> 7.91 | N109: 1
B110: Urban | D110: 1 | E110: Multiple vehicle | H110: Entrance | I110: =(-2.997-0.508-0) -> -3.505 | J110: =J104 -> 0.524 | K110: 0.001 | L110: 0.0699 | M110: 14.6 | N110: 1
E111: Multiple vehicle | H111: Exit | I111: =(-2.997-1.974-0) -> -4.971 | J111: 0.524 | K111: 0.001 | L111: 0.0699 | M111: 14.6 | N111: 1
E112: Multiple vehicle | H112: C-D road | I112: =(-2.997-0-0) -> -2.997 | J112: 0.524 | K112: 0.001 | L112: 0.0699 | M112: 14.6 | N112: 1
E113: Single vehicle | H113: Entrance | I113: =(-2.848+0.882-0) -> -1.966 | J113: 0.718 | K113: 0.001 | L113: 0 | M113: 7.91 | N113: 1
E114: Single vehicle | H114: Exit | I114: =(-2.848+1.203-0) -> -1.645 | J114: 0.718 | K114: 0.001 | L114: 0 | M114: 7.91 | N114: 1
E115: Single vehicle | H115: C-D road | I115: =(-2.848+0-0) -> -2.848 | J115: 0.718 | K115: 0.001 | L115: 0 | M115: 7.91 | N115: 1
D116: 2 | E116: Multiple vehicle | H116: Entrance | I116: =(-2.515-0.508-0) -> -3.023 | J116: 0.524 | K116: 0.001 | L116: 0.0699 | M116: 14.6 | N116: 1
E117: Multiple vehicle | H117: Exit | I117: =(-2.515-1.974-0) -> -4.489 | J117: 0.524 | K117: 0.001 | L117: 0.0699 | M117: 14.6 | N117: 1
E118: Multiple vehicle | H118: C-D road | I118: =(-2.515-0-0) -> -2.515 | J118: 0.524 | K118: 0.001 | L118: 0.0699 | M118: 14.6 | N118: 1
E119: Single vehicle | H119: Entrance | I119: =(-2.881+0.882-0) -> -1.999 | J119: 0.718 | K119: 0.001 | L119: 0 | M119: 7.91 | N119: 1
E120: Single vehicle | H120: Exit | I120: =(-2.881+1.203-0) -> -1.678 | J120: 0.718 | K120: 0.001 | L120: 0 | M120: 7.91 | N120: 1
E121: Single vehicle | H121: C-D road | I121: =(-2.881+0-0) -> -2.881 | J121: 0.718 | K121: 0.001 | L121: 0 | M121: 7.91 | N121: 1
B122: Ramp Segment Property-Damage-Only Crash Frequency Models | I122: Model: exp(a + b ln[c AADTr] + d [c AADTr]) L
B123: Area Type | D123: Through Lanes | E123: Number of Vehicles Involved | H123: Location | I123: a | J123: b | K123: c | L123: d | M123: Inverse Disp. (K), mi | N123: Calib. Factor (C)
B125: Rural | D125: 1 | E125: Multiple vehicle | H125: Entrance | I125: =(-3.311-0.508) -> -3.819 | J125: 1.256 | K125: 0.001 | L125: 0 | M125: 12.7 | N125: 1
E126: Multiple vehicle | H126: Exit | I126: =(-3.311-1.54) -> -4.851 | J126: 1.256 | K126: 0.001 | L126: 0 | M126: 12.7 | N126: 1
E127: Multiple vehicle | H127: C-D road | I127: =(-3.311-0) -> -3.311 | J127: 1.256 | K127: 0.001 | L127: 0 | M127: 12.7 | N127: 1
E128: Single vehicle | H128: Entrance | I128: =(-2.659+0.944-0.231) -> -1.946 | J128: 0.689 | K128: 0.001 | L128: 0 | M128: 9.77 | N128: 1
E129: Single vehicle | H129: Exit | I129: =(-2.659+1.151-0.231) -> -1.739 | J129: 0.689 | K129: 0.001 | L129: 0 | M129: 9.77 | N129: 1
E130: Single vehicle | H130: C-D road | I130: =(-2.659+0-0.231) -> -2.89 | J130: 0.689 | K130: 0.001 | L130: 0 | M130: 9.77 | N130: 1
B131: Urban | D131: 1 | E131: Multiple vehicle | H131: Entrance | I131: =(-3.311-0.508) -> -3.819 | J131: =J125 -> 1.256 | K131: 0.001 | L131: 0 | M131: 12.7 | N131: 1
E132: Multiple vehicle | H132: Exit | I132: =(-3.311-1.54) -> -4.851 | J132: 1.256 | K132: 0.001 | L132: 0 | M132: 12.7 | N132: 1
E133: Multiple vehicle | H133: C-D road | I133: =(-3.311-0) -> -3.311 | J133: 1.256 | K133: 0.001 | L133: 0 | M133: 12.7 | N133: 1
E134: Single vehicle | H134: Entrance | I134: =(-2.659+0.944-0) -> -1.715 | J134: 0.689 | K134: 0.001 | L134: 0 | M134: 9.77 | N134: 1
E135: Single vehicle | H135: Exit | I135: =(-2.659+1.151-0) -> -1.508 | J135: 0.689 | K135: 0.001 | L135: 0 | M135: 9.77 | N135: 1
E136: Single vehicle | H136: C-D road | I136: =(-2.659+0-0) -> -2.659 | J136: 0.689 | K136: 0.001 | L136: 0 | M136: 9.77 | N136: 1
D137: 2 | E137: Multiple vehicle | H137: Entrance | I137: =(-2.475-0.508) -> -2.983 | J137: 1.256 | K137: 0.001 | L137: 0 | M137: 12.7 | N137: 1
E138: Multiple vehicle | H138: Exit | I138: =(-2.475-1.54) -> -4.015 | J138: 1.256 | K138: 0.001 | L138: 0 | M138: 12.7 | N138: 1
E139: Multiple vehicle | H139: C-D road | I139: =(-2.475-0) -> -2.475 | J139: 1.256 | K139: 0.001 | L139: 0 | M139: 12.7 | N139: 1
E140: Single vehicle | H140: Entrance | I140: =(-2.344+0.944-0) -> -1.4 | J140: 0.689 | K140: 0.001 | L140: 0 | M140: 9.77 | N140: 1
E141: Single vehicle | H141: Exit | I141: =(-2.344+1.151-0) -> -1.193 | J141: 0.689 | K141: 0.001 | L141: 0 | M141: 9.77 | N141: 1
E142: Single vehicle | H142: C-D road | I142: =(-2.344+0-0) -> -2.344 | J142: 0.689 | K142: 0.001 | L142: 0 | M142: 9.77 | N142: 1
B143: Ramp Segment Crash Severity Model
L144: Calibration factor | N144: 1
B145: Ramp Segment Crash Distribution
B146: Area Type | D146: Crash Type | F146: Crash Type Category | I146: Proportion of Crashes by Severity Level for Specific Models
I147: C-D Road | K147: Entrance Ramp | M147: Exit Ramp
I148: FI | J148: PDO | K148: FI | L148: PDO | M148: FI | N148: PDO
B149: Rural | D149: Multiple vehicle | F149: Head-on | I149: =I162 -> 0.015 | J149: 0.009 | K149: =I149 -> 0.015 | L149: 0.009 | M149: =I149 -> 0.015 | N149: 0.009
F150: Right-angle | I150: 0.01 | J150: 0.005 | K150: 0.01 | L150: 0.005 | M150: 0.01 | N150: 0.005
F151: Rear-end | I151: 0.707 | J151: 0.55 | K151: 0.707 | L151: 0.55 | M151: 0.707 | N151: 0.55
F152: Sideswipe | I152: 0.129 | J152: 0.335 | K152: 0.129 | L152: 0.335 | M152: 0.129 | N152: 0.335
F153: Other multiple-vehicle crash | I153: 0.139 | J153: 0.101 | K153: 0.139 | L153: 0.101 | M153: 0.139 | N153: 0.101
H154: MV Total: | I154: =SUM(I149:I153) -> 1 | J154: 1 | K154: 1 | L154: 1 | M154: 1 | N154: 1
D155: Single vehicle | F155: Crash with animal | I155: 0.012 | J155: 0.022 | K155: =I155 -> 0.012 | L155: 0.022 | M155: =I155 -> 0.012 | N155: 0.022
F156: Crash with fixed object | I156: 0.422 | J156: 0.538 | K156: 0.422 | L156: 0.538 | M156: 0.422 | N156: 0.538
F157: Crash with other object | I157: 0 | J157: 0.011 | K157: 0 | L157: 0.011 | M157: 0 | N157: 0.011
F158: Crash with parked vehicle | I158: 0.024 | J158: 0.055 | K158: 0.024 | L158: 0.055 | M158: 0.024 | N158: 0.055
F159: Other single-vehicle crash | I159: 0.542 | J159: 0.374 | K159: 0.542 | L159: 0.374 | M159: 0.542 | N159: 0.374
H160: SV Total: | I160: =SUM(I155:I159) -> 1 | J160: 1 | K160: 1 | L160: 1 | M160: 1 | N160: 1
B162: Urban | D162: Multiple vehicle | F162: Head-on | I162: 0.015 | J162: 0.009 | K162: =I162 -> 0.015 | L162: 0.009 | M162: =I162 -> 0.015 | N162: 0.009
F163: Right-angle | I163: 0.01 | J163: 0.005 | K163: 0.01 | L163: 0.005 | M163: 0.01 | N163: 0.005
F164: Rear-end | I164: 0.707 | J164: 0.55 | K164: 0.707 | L164: 0.55 | M164: 0.707 | N164: 0.55
F165: Sideswipe | I165: 0.129 | J165: 0.335 | K165: 0.129 | L165: 0.335 | M165: 0.129 | N165: 0.335
F166: Other multiple-vehicle crash | I166: 0.139 | J166: 0.101 | K166: 0.139 | L166: 0.101 | M166: 0.139 | N166: 0.101
H167: MV Total: | I167: =SUM(I162:I166) -> 1 | J167: 1 | K167: 1 | L167: 1 | M167: 1 | N167: 1
D168: Single vehicle | F168: Crash with animal | I168: 0.003 | J168: 0.005 | K168: =I168 -> 0.003 | L168: =J168 -> 0.005 | M168: =I168 -> 0.003 | N168: 0.005
F169: Crash with fixed object | I169: 0.718 | J169: 0.834 | K169: =I169 -> 0.718 | L169: =J169 -> 0.834 | M169: 0.718 | N169: 0.834
F170: Crash with other object | I170: 0.015 | J170: 0.023 | K170: =I170 -> 0.015 | L170: 0.023 | M170: 0.015 | N170: 0.023
F171: Crash with parked vehicle | I171: 0.012 | J171: 0.012 | K171: 0.012 | L171: 0.012 | M171: 0.012 | N171: 0.012
F172: Other single-vehicle crash | I172: 0.252 | J172: 0.126 | K172: 0.252 | L172: 0.126 | M172: 0.252 | N172: 0.126
H173: SV Total: | I173: =SUM(I168:I172) -> 1 | J173: 1 | K173: 1 | L173: 1 | M173: 1 | N173: 1
B177: Ramp Terminal Model Calibration Factors and Default Values
B178: Ramp Terminal Fatal-and-Injury Crash Frequency Models | H178: Model: exp(a + b ln[c AADTin/2 + c AADTout/2] + d ln[c AADTex + c AADTen])
B179: Area Type | D179: Terminal Config. | E179: Control Type | G179: Through Lanes | I179: a | J179: b | K179: c | L179: d | M179: Inverse Disp. (K) | N179: Calib. Factor (C)
B181: Rural | D181: D3ex | E181: One-way stop | H181: 2 | I181: =-3.223+0.324 -> -2.899 | J181: 0.582 | K181: 0.001 | L181: 0.899 | M181: 2.16 | N181: 1
H182: 3 | I182: =-3.223+0.324 -> -2.899 | J182: 0.582 | K182: 0.001 | L182: 0.899 | M182: 2.16 | N182: =N181 -> 1
H183: 4 | I183: =-3.223+0.324 -> -2.899 | J183: 0.582 | K183: 0.001 | L183: 0.899 | M183: 2.16 | N183: =N182 -> 1
E184: Signalized | H184: 2 | I184: =-1.672+0.16*H184 -> -1.352 | J184: 0.379 | K184: 0.001 | L184: 0.394 | M184: 8.72 | N184: 1
H185: 3 | I185: =-1.672+0.16*H185 -> -1.192 | J185: 0.379 | K185: 0.001 | L185: 0.394 | M185: 8.72 | N185: =N184 -> 1
H186: 4 | I186: =-1.672+0.16*H186 -> -1.032 | J186: 0.379 | K186: 0.001 | L186: 0.394 | M186: 8.72 | N186: =N185 -> 1
D187: D3en | E187: One-way stop | H187: 2 | I187: =-3.141+0.324 -> -2.817 | J187: 0.709 | K187: 0.001 | L187: 0.73 | M187: 0.918 | N187: =N181 -> 1
H188: 3 | I188: =-3.141+0.324 -> -2.817 | J188: 0.709 | K188: 0.001 | L188: 0.73 | M188: 0.918 | N188: =N182 -> 1
H189: 4 | I189: =-3.141+0.324 -> -2.817 | J189: 0.709 | K189: 0.001 | L189: 0.73 | M189: 0.918 | N189: 1
E190: Signalized | H190: 2 | I190: =-2.388+0.16*H190 -> -2.068 | J190: 0.265 | K190: 0.001 | L190: 0.905 | M190: 5.37 | N190: 1
H191: 3 | I191: =-2.388+0.16*H191 -> -1.908 | J191: 0.265 | K191: 0.001 | L191: 0.905 | M191: 5.37 | N191: 1
H192: 4 | I192: =-2.388+0.16*H192 -> -1.748 | J192: 0.265 | K192: 0.001 | L192: 0.905 | M192: 5.37 | N192: 1
D193: D4 | E193: One-way stop | H193: 2 | I193: =-3.064+0.324 -> -2.74 | J193: 1.008 | K193: 0.001 | L193: 0.177 | M193: 2.58 | N193: =N187 -> 1
H194: 3 | I194: =-3.064+0.324 -> -2.74 | J194: 1.008 | K194: 0.001 | L194: 0.177 | M194: 2.58 | N194: 1
H195: 4 | I195: =-3.064+0.324 -> -2.74 | J195: 1.008 | K195: 0.001 | L195: 0.177 | M195: 2.58 | N195: 1
E196: Signalized | H196: 2 | I196: =-2.975+0.16*H196 -> -2.655 | J196: 1.191 | K196: 0.001 | L196: 0.131 | M196: 11.5 | N196: 1
H197: 3 | I197: =-2.975+0.16*H197 -> -2.495 | J197: 1.191 | K197: 0.001 | L197: 0.131 | M197: 11.5 | N197: 1
H198: 4 | I198: =-2.975+0.16*H198 -> -2.335 | J198: 1.191 | K198: 0.001 | L198: 0.131 | M198: 11.5 | N198: 1
D199: A4 | E199: One-way stop | H199: 2 | I199: =-3.223+0.324 -> -2.899 | J199: 0.582 | K199: 0.001 | L199: 0.899 | M199: 2.16 | N199: =N193 -> 1
H200: 3 | I200: =-3.223+0.324 -> -2.899 | J200: 0.582 | K200: 0.001 | L200: 0.899 | M200: 2.16 | N200: 1
H201: 4 | I201: =-3.223+0.324 -> -2.899 | J201: 0.582 | K201: 0.001 | L201: 0.899 | M201: 2.16 | N201: 1
E202: Signalized | H202: 2 | I202: =-1.672+0.16*H202 -> -1.352 | J202: 0.379 | K202: 0.001 | L202: 0.394 | M202: 8.72 | N202: 1
H203: 3 | I203: =-1.672+0.16*H203 -> -1.192 | J203: 0.379 | K203: 0.001 | L203: 0.394 | M203: 8.72 | N203: 1
H204: 4 | I204: =-1.672+0.16*H204 -> -1.032 | J204: 0.379 | K204: 0.001 | L204: 0.394 | M204: 8.72 | N204: 1
D205: B4 | E205: One-way stop | H205: 2 | I205: =-3.141+0.324 -> -2.817 | J205: 0.709 | K205: 0.001 | L205: 0.73 | M205: 0.918 | N205: =N199 -> 1
H206: 3 | I206: =-3.141+0.324 -> -2.817 | J206: 0.709 | K206: 0.001 | L206: 0.73 | M206: 0.918 | N206: 1
H207: 4 | I207: =-3.141+0.324 -> -2.817 | J207: 0.709 | K207: 0.001 | L207: 0.73 | M207: 0.918 | N207: 1
E208: Signalized | H208: 2 | I208: =-2.388+0.16*H208 -> -2.068 | J208: 0.265 | K208: 0.001 | L208: 0.905 | M208: 5.37 | N208: 1
H209: 3 | I209: =-2.388+0.16*H209 -> -1.908 | J209: 0.265 | K209: 0.001 | L209: 0.905 | M209: 5.37 | N209: 1
H210: 4 | I210: =-2.388+0.16*H210 -> -1.748 | J210: 0.265 | K210: 0.001 | L210: 0.905 | M210: 5.37 | N210: 1
D211: A2 | E211: One-way stop | H211: 2 | I211: =-2.687+0.324 -> -2.363 | J211: 0.26 | K211: 0.001 | L211: 0.947 | M211: 3.4 | N211: =N205 -> 1
H212: 3 | I212: =-2.687+0.324 -> -2.363 | J212: 0.26 | K212: 0.001 | L212: 0.947 | M212: 3.4 | N212: 1
H213: 4 | I213: =-2.687+0.324 -> -2.363 | J213: 0.26 | K213: 0.001 | L213: 0.947 | M213: 3.4 | N213: 1
... 193 more rows

Sheet Temp
A1: 0 | B1: 0 | C1: 0 | D1: 0 | E1: 0 | F1: 0 | G1: 0 | H1: 0 | I1: 0 | J1: 0 | K1: 0 | L1: 0 | M1: 0 | N1: 0 | O1: 0 | P1: 0
